{"text_format":"1","workbook":"xlsx","n_sheets":11,"sheets":["Prompt","C100","C101","C200","C300","C334","C400","C500","C700","C800","Enviar"],"not_rendered":{"charts":0,"images":6,"macros":1,"external_links":0,"defined_names":1,"comments":2,"pivot_tables":0},"unopened":[],"bounds":{"document_bytes":16777216,"sheet_cells":100000,"rows_first":2000,"rows_last":500,"rows_between":2000,"halvings":0,"cell_chars":16384,"cell_head_chars":4096},"cells_cut":0,"cells_raw":0,"read":"whole","date_system":"1900"}

{"sheet":"Prompt","index":0,"n_rows":79,"n_cols":4,"rows_kept":79,"cut":false,"hidden":true,"merged":[[1,3,2,6],[4,1,6,8],[43,1,44,8],[78,1,79,8],[9,1,10,8]]}
[]
[null,null,null,"¡ATENCIÓN!"]
[]
[]
[null,"Para hacer uso de las funcionalidades de esta Cédula Electrónica debe habilitar macros"]
[]
[]
[]
[]
[null,"Si utiliza Excel 2013 siga el siguiente procedimiento:"]
[]
[]
[]
[]
[]
[]
[]
[]
[]
[]
[]
[]
[]
[]
[]
[]
[]
[]
[]
[]
[]
[]
[]
[]
[]
[]
[]
[]
[]
[]
[]
[]
[]
[null,"Si utiliza Excel 2007 siga el siguiente procedimiento:"]
[]
[]
[]
[]
[]
[]
[]
[]
[]
[]
[]
[]
[]
[]
[]
[]
[]
[]
[]
[]
[]
[]
[]
[]
[]
[]
[]
[]
[]
[]
[]
[]
[]
[]
[null,"Si utiliza Excel 2000, 2002, 2003 siga el siguiente procedimiento:"]

{"sheet":"C100","index":1,"n_rows":562,"n_cols":24,"rows_kept":562,"cut":false,"hidden":false,"merged":[[357,14,358,14],[341,17,341,21],[357,15,358,17],[393,6,393,10],[358,6,358,10],[341,11,342,11],[343,11,344,11],[410,18,410,22],[357,20,358,20],[416,6,416,10],[36,4,38,5],[131,10,131,11],[53,15,53,20],[65,17,65,21],[83,19,83,20],[253,6,253,9],[74,21,74,22],[145,6,146,6],[145,7,146,7],[125,3,125,6],[125,10,125,11],[126,10,126,11],[127,10,127,11],[128,10,128,11],[183,4,183,9],[201,19,201,22],[145,8,147,9],[148,8,148,9],[149,8,149,9],[181,4,181,9],[145,3,146,5],[103,6,103,10],[105,17,105,21],[121,17,121,21],[70,14,70,17],[76,21,76,22],[73,21,73,22],[75,21,75,22],[46,17,46,22],[82,21,82,22],[71,21,71,22],[72,21,72,22],[76,16,76,18],[82,14,83,16],[82,19,82,20],[23,2,23,23],[12,9,12,10],[28,10,28,11],[36,6,36,9],[37,8,37,9],[31,10,31,11],[9,2,9,23],[16,9,16,10],[0,21,3,23],[1,5,1,20],[2,5,2,20],[3,5,3,20],[16,14,16,21],[14,9,14,21],[339,11,340,11],[70,21,70,22],[37,6,37,7],[86,19,86,22],[402,6,402,10],[181,11,183,11],[181,10,183,10],[329,4,329,10],[357,6,357,10],[184,4,184,9],[84,19,84,20],[85,19,85,20],[205,5,205,9],[186,19,186,20],[185,19,185,20],[330,11,331,11],[332,11,333,11],[334,11,335,11],[336,11,337,11],[221,8,221,11],[182,4,182,9],[309,17,309,22],[305,7,305,10],[295,17,295,22],[232,6,232,9],[129,10,129,11],[130,10,130,11],[218,7,218,8],[278,19,278,21],[278,15,278,17],[284,16,284,17],[131,5,131,7]]}
[null,null,null,null,null,null,null,null,null,null,null,null,null,null,null,null,null,null,null,null,null,"3AP"]
[null,null,null,null,null,"CENSO EDUCATIVO 2022"]
[null,null,null,null,null,"EDUCACIÓN BÁSICA REGULAR"]
[null,null,null,null,null,"PRIMARIA"]
[null,null,"Version :","2 - (32 y 64 bits)"]
[null,null,"INSTRUCCIONES DEL FORMATO ELECTRÓNICO "]
[]
[]
[]
[null,null,"IDENTIFICACIÓN DEL SERVICIO EDUCATIVO"]
[]
[]
[null,null,"1. CÓDIGO MODULAR :",null,null,null,null,null,null,null,null,null,null,null,null,null,null,null,null,"2. CÓDIGO DE ANEXO :"]
[]
[null,null,"3. NOMBRE DEL SERVICIO / NIVEL EDUCATIVO :",null,null,null,null,null,null,""]
[]
[null,null,"4. CÓDIGO DE LOCAL EDUCATIVO :",null,null,null,null,null,null,null,null,null,null,"5. DISTRITO : ",""]
[]
[]
[]
[null,null,null,"Esta Institución Educativa es de Gestión : ",null,null,null,null,null,""," 1 - Pública de gestión directa",null,null,null,""," 2 - Pública de gestión privada",null,null,null,null,null," 3 - Privada"]
[]
[]
[null,null,"100. CARACTERÍSTICAS DEL SERVICIO EDUCATIVO"]
[]
[null,null,"A. CARACTERÍSTICA DE LA ENSEÑANZA"]
[null,null,"101. CON RESPECTO A LAS CLASES:",null,null,null,null,null,null,null,null,null,null,"105. EN ESTE SERVICIO/NIVEL EDUCATIVO, ¿CUANTOS POSTULANTES POR GRADO"]
[null,null,null,null,null,null,null,null,"Día",null,"Mes",null,null," Y TURNO SE PRESENTARON PARA EL PRESENTE PERIODO LECTIVO?"]
[null,null,null,"A. ¿CUÁNDO INICIARON LAS CLASES?",null,null,null,null,null,"-"]
[null,null,null,null,null,null,null,null,null,null,null,null,null,null,null,"Grado",null,"1º","2º","3º","4º","5º","6º"]
[null,null,null,null,null,null,null,null,"Día",null,"Mes",null,null,null,null,"Turno mañana"]
[null,null,null,"B. ¿CUÁNDO TERMINARÁN LAS CLASES?",null,null,null,null,null,"-"]
[null,null,null,null,null,null,null,null,null,null,null,null,null,null,null,"Turno tarde"]
[]
[null,null,"102. HORARIO DE CLASES DE LOS ESTUDIANTES:",null,null,null,null,null,null,null,null,null,null,"106. EN EL PROCESO DE MATRÍCULA DEL PERIODO 2022, LOS PADRES DE FAMILIA, "]
[null,null,null,null,null,null,null,null,null,null,null,null,null," CUIDADORES(AS) O APODERADOS(AS) QUE SOLICITARON UNA O MÁS VACANTES"]
[null,null,null,null,"TURNO",null,"HORARIO DE CLASES",null,null,null,null,null,null," EN ESTE SERVICIO/NIVEL EDUCATIVO, ¿LOGRARON OBTENER EL TOTAL DE VACANTES"]
[null,null,null,null,null,null,"INICIO",null,"TÉRMINO",null,null,null,null," SOLICITADAS?"]
[null,null,null,null,null,null,"HORAS","MINUTOS","HORAS","MINUTOS",null,null,null,null,null,"Sí",null,"Pase a la pregunta 108."]
["01",null,null,"01","Mañana",{"$f":"COUNT(G40:J40)","v":0}]
["02",null,null,"02","Tarde",{"$f":"COUNT(G41:J41)","v":0},null,null,null,null,null,null,null,null,null,"No"]
["03",null,null,"03","Discontinuo",{"$f":"COUNT(G42:J42)","v":0}]
[null,null,null,null,null,null,null,null,null,null,null,null,null,null,null,"¿Por qué no lograron una ó más vacante(s)?  (Marque con un aspa “X” una opcion)"]
[null,null,"103. EN EL PRESENTE AÑO 2022, ¿BAJO QUÉ MODALIDAD SE REALIZAN LAS CLASES EN ESTE SERVICIO",null,null,null,null,null,null,null,null,null,null,null,null,"","No hay capacidad para recibirlos"]
[null,null,null,null,null,null,null,null,null,null,null,null,null,null,null,"","Hay capacidad, pero existen aulas con mucho riesgo"]
[null,null,null,null,null,null,null,null,null,null,null,null,null,null,null,"","Prefiero tener una carga docente baja, para un mejor aprendizaje"]
[null,null,null,null,null,null,null,null,null,null,null,null,null,null,null,"","Otro",""]
[null,null,null,null,"","Presencial","","Semi presencial",null,null,"Remoto / A distancia"]
[null,null,null,null,null,null,null,null,null,null,null,null,null,"107. ¿QUÉ CRITERIOS DE PRIORIZACIÓN TUVIERON EN CUENTA PARA LA MATRÍCULA DE"]
[null,null,null,null,null,null,null,null,null,null,null,null,null,null,"LOS ESTUDIANTES QUE SOLICITARON UNA VACANTE EN ESTE SERVICIO/NIVEL EDUCATIVO?"]
[null,null,"104. EN ESTE SERVICIO/NIVEL EDUCATIVO, ¿CUANTAS VACANTES POR GRADO Y"]
[null,null,null,"TURNO OFRECIÓ PARA EL PRESENTE PERIODO LECTIVO?",null,null,null,null,null,null,null,null,null,null,"(Marque con una “X” en “Si” o “No” según corresponda para cada criterio)"]
[]
[null,null,null,null,null,null,null,null,null,null,null,null,null,null,"NRO.","CRITERIOS",null,null,null,null,null,null," SI-NO"]
[null,null,null,null,"Grado",null,"1º","2º","3º","4º","5º","6º",null,null,1,"Cercanía del lugar de residencia del estudiante a la I.E.",null,null,null,null,null,null,"",{"$f":"COUNTIF(W55:W66,\"NO\")","v":0}]
[null,null,null,null,"Turno mañana",null,null,null,null,null,null,null,null,null,2,"Cercanía del trabajo de los padres o apoderados a la I.E.",null,null,null,null,null,null,""]
[null,null,null,null,null,null,null,null,null,null,null,null,null,null,3,"Hermanos (as) estudiando en la misma I.E.",null,null,null,null,null,null,""]
[null,null,null,null,"Turno tarde",null,null,null,null,null,null,null,null,null,4,"Hijos (as) de ex alumnos (as)",null,null,null,null,null,null,""]
[null,null,null,null,null,null,null,null,null,null,null,null,null,null,5,"Niños (as) con (NEE) asociadas a discapacidad",null,null,null,null,null,null,""]
[null,null,null,null,null,null,null,null,null,null,null,null,null,null,6,"Estado civil de los padres",null,null,null,null,null,null,""]
[null,null,null,null,null,null,null,null,null,null,null,null,null,null,7,"Record de rendimiento académico del estudiante",null,null,null,null,null,null,""]
[null,null,null,null,null,null,null,null,null,null,null,null,null,null,8,"Doc. que sustenten solvencia económica de los padres",null,null,null,null,null,null,""]
[null,null,null,null,null,null,null,null,null,null,null,null,null,null,9,"Orden de llegada de los documentos de inscripción del estudiante",null,null,null,null,null,null,""]
[null,null,null,null,null,null,null,null,null,null,null,null,null,null,10,"Que los estudiantes cuenten con documento de identidad",null,null,null,null,null,null,""]
[null,null,null,null,null,null,null,null,null,null,null,null,null,null,11,"Que el estudiante haya rendido una evaluación de ingreso ...",null,null,null,null,null,null,""]
[null,null,null,null,null,null,null,null,null,null,null,null,null,null,12,"Otros",null,"",null,null,null,null,""]
[null,null,null,null,null,null,null,null,null,null,null,null,null,null,null,null,null,null,null,null,null,null,{"$f":"COUNTIF(W55:W66,\"SI\") + COUNTIF(W55:W66,\"NO\")","v":0}]
[]
[null,null,"108. ¿HAS RECIBIDO MATERIALES FORMATIVOS O INFORMATIVOS , FÍSICOS O DIGITALES SOBRE LOS",null,null,null,null,null,null,null,null,null,null,"115. DURANTE EL AÑO 2020, ¿SE REALIZARON TALLERES DIRIGIDOS A LOS"]
[null,null,null,"INSTRUMENTOS DE GESTIÓN?",null,null,null,null,null,null,null,null,null," PADRES DE FAMILIA O APODERADOS EN EL SERVICIO/NIVEL EDUCATIVO?"]
[null,null,null,"(Marque con una “X”, una o más opciones)",null,null,null,null,null,null,null,null,null,null,"Talleres de ...",null,null,null,{"$f":"COUNTIF(T72:U79,\"X\")","v":0}," Si","No","Cantidad de Talleres"]
[null,null,null,null,null,null,null,null,null,null,null,null,null,null,"1. Aprendizajes"]
[null,null,null,null,"He recibido materiales y/o formación a través de la UGEL.",null,null,null,null,null,null,null,null,null,"2. Pauta de crianza"]
[null,null,null,null,"He recibido materiales y/o formación a través de la DRE.",null,null,null,null,null,null,null,null,null,"3. Violencia"]
[null,null,null,null,"He recibido materiales y/o formación a través de los programas formativos …",null,null,null,null,null,null,null,null,null,"4. Inclusión"]
[null,null,null,null,"He recibido materiales y/o formación a través de páginas web oficiales del Minedu…",null,null,null,null,null,null,null,null,null,"5. Alimentación y hábitos de higiene"]
[null,null,null,null,"He recibido materiales y/o formación a través de mis colegas o redes profesionales",null,null,null,null,null,null,null,null,null,"6. Otro"]
[null,null,null,null,"No he recibido materiales y/o información sobre los Instrumentos de Gestión"]
[]
[null,null,"109 ¿SE HA ELABORADO EL PLAN ANUAL DE TRABAJO (PAT) 2022?",null,null,null,null,null,null,null,null,null,null,"116. EL SERVICIO/NIVEL EDUCATIVO, ¿TIENE PRACTICANTES DE UNIVERSIDADES O INSTITUTOS?"]
[]
[null,null,null,"Sí",""," No  ","X"]
[null,null,null,null,null,null,null,null,null,null,null,null,null,null,"Entidad de Procedencia",null,null,null,"Marcar","Nro. de",null,"Asistencia en nro. de:"]
[null,null,null,null,null,"¿Han sido incorporadas las actividades anuales del plan TOECE?",null,null,null,null,null,null,null,null,null,null,null,{"$f":"COUNTIF(S85:S87,\"X\")","v":0},"\"X\"","Practicantes",null,"Días semana","Meses"]
[null,null,null,null,null,null,null,null,null,null,null,null,null,null,null,"1. de Universidad"]
[null,null,null,null,null,"Sí  ","",null,"No","",null,null,null,null,null,"2. de Instituto"]
[null,null,null,null,null,null,null,null,null,null,null,null,null,null,null,"3. Ninguno",null,null,""]
[]
[null,null,"110. EL SERVICIO/NIVEL EDUCATIVO, ¿CUENTA CON UN PLAN APROBADO DE GESTIÓN DE RIESGO DE",null,null,null,null,null,null,null,null,null,null,"117. ¿ESTE SERVICIO/NIVEL EDUCATIVO SE ENCUENTRA EN EL ÁMBITO DE ALGÚN ESTABLECIMIENTO DE SALUD?\n"]
[null,null," DESASTRES QUE CONTEMPLE LA FASE DE SOPORTE SOCIOEMOCIONAL, FASE DE ACTIVIDADES"]
[null,null," LÚDICAS Y FASE DE APLICACIÓN DEL CURRÍCULO?"]
[null,null,null,null,null,null,null,null,null,null,null,null,null,null,"Sí",null," No  ",null,null,null,"Pase a la pregunta 119."]
[null,null,null,"Sí",null," No  "]
[null,null,null,null,null,null,null,null,null,null,null,null,null,"118. ¿ESTE SERVICIO/NIVEL EDUCATIVO REALIZA COORDINACIONES Y/O ACCIONES"]
[null,null,null,null,null,null,null,null,null,null,null,null,null,null,"DE ARTICULACIÓN CON EL ESTABLECIMIENTO DE SALUD?"]
[null,null,"111. EN LOS ÚLTIMOS TRES MESES, ¿SE COORDINÓ U OFRECIÓ ALGÚN PROGRAMA  O SERVICIO, COMO?: "]
[null,null,null,null,null,null,null,null,null,null,null,null,null,null,"Sí",""," No  ",""]
[null,null,null,"(Marque con una “X”, una o más opciones)"]
[null,null,null,null,"Programa Qali Warma",null,null,null,null,null,null,null,null,null,null,null,"¿Qué tipo de coordinaciones y/o acciones realiza?"]
[null,null,null,null,"Campaña de vacunación",null,null,null,null,null,null,null,null,null,null,null,"(Marque con una “X”, una o más opciones)"]
[null,null,null,null,"Control de crecimiento y desarrollo"]
[null,null,null,null,"SAANEE",null,null,null,null,null,null,null,null,null,null,"","Salud física de estudiantes"]
[null,null,null,null,"SAEV",null,null,null,null,null,null,null,null,null,null,"","Salud física de docentes"]
[null,null,null,null,"Otro especificar",null,null,null,null,null,null,null,null,null,null,"","Salud mental del estudiante"]
[null,null,null,null,"NINGUNO.",null,null,null,null,null,null,null,null,null,null,"","Salud mental del docente"]
[null,null,null,null,null,null,null,null,null,null,null,null,null,null,null,"","Otros",""]
[null,null,"112. EL SERVICIO/NIVEL EDUCATIVO, ¿CUENTA CON UN PLAN APROBADO DE LUCHA CONTRA LA ANEMIA?\n "]
[null,null,null,null,null,null,null,null,null,null,null,null,null,"119. DURANTE EL AÑO 2021 Y HASTA LA FECHA DE LA APLICACIÓN DEL CENSO 2022,"]
[null,null,null,"Sí",null," No  ",null,null,null,null,null,null,null,"¿EN ESTE SERVICIO/NIVEL EDUCATIVO SE HAN REALIZADO ACCIONES PARA ATENDER"]
[null,null,null,null,null,null,null,null,null,null,null,null,null,"SITUACIONES DE INTERRUPCIÓN DE ESTUDIOS DE LOS ESTUDIANTES?"]
[]
[null,null,null,null,null,"¿Está incorporado en los documentos de gestión?"]
[null,null,null,null,null,null,null,null,null,null,null,null,null,null,"Sí",null," No  "]
[null,null,null,null,null,"Sí  ",null,null,"No"]
[null,null,null,null,null,null,null,null,null,null,null,null,null,null,null,null,"¿Qué acciones se realizaron? "]
[null,null,"113. DURANTE EL 2021 ¿HA COORDINADO CON ALGUNA INSTITUCIÓN PARA REALIZAR",null,null,null,null,null,null,null,null,null,null,null,null,null,"(Marque con una “X”, una o más opciones)"]
[null,null," ACTIVIDADADES RELACIONADA A LA LUCHA CONTRA LA ANEMIA?"]
[null,null,null,null,null,null,null,null,null,null,null,"Pase a la",null,null,null,null,"Seguimiento y visitas a estudiantes en riesgo de abandono \n"]
[null,null,null,null,null,null,null,null,null,null,null,"pregunta 115.",null,null,null,null,"Orientaciones a las familias sobre la continuidad en la IE "]
[null,null,null,"Sí",null,"No  ",null,null,"No sabe  ",null,null,null,null,null,null,null,"Flexibilización de la atención educativa brindada en la IE"]
[null,null,null,null,null,null,null,null,null,null,null,null,null,null,null,null,"Focalizar a los estudiantes en riesgo"]
[null,null,null,null,null,null,null,null,null,null,null,null,null,null,null,null,"Otros"]
[null,null,"114. INDIQUE USTED, ¿CUÁLES DE LAS SIGUIENTES INSTITUCIONES ORGANIZARON"]
[null,null," ALGUNA ACTIVIDAD RELACIONADA A LA LUCHA CONTRA LA ANEMIA?"]
[]
[null,null,null,"Entidad que Organizó",null,null,null,{"$f":"COUNTIF(I127:J132,\"X\")","v":0}," Si","No","Fecha (dd/mm/aaaa)"]
[null,null,null,"1. Servicio / Nivel Educativo",null,null,null,null,"","",""]
[null,null,null,"2. UGEL/DRE",null,null,null,null,"","",""]
[null,null,null,"3. Establecimiento de salud",null,null,null,null,"","",""]
[null,null,null,"4. Municipalidad",null,null,null,null,"","",""]
[null,null,null,"5. Organización No Gubernamental",null,null,null,null,"","",""]
[null,null,null,"6. Otro",null,"",null,null,"","",""]
[]
[]
[]
[null,null,"B. TUTORÍA , ORIENTACIÓN EDUCATIVA Y CONVIVENCIA ESCOLAR"]
[null,null,"120. EN ESTE NIVEL/SERVICIO EDUCATIVO ¿SE DESARROLLAN PROGRAMAS QUE PROMUEVAN LA ÉTICA,",null,null,null,null,null,null,null,null,null,null,"127. EL SERVICIO/NIVEL EDUCATIVO, ¿CUENTA CON NORMAS DE CONVIVENCIA"]
[null,null," INTEGRIDAD Y VALORES?",null,null,null,null,null,null,null,null,null,null,"         ESCOLAR ACTUALIZADAS PARA EL AÑO 2022?"]
[]
[null,null,null,"Sí",null," No  ",null,null,null,null,null,null,null,null,"Sí",null," No  ",null,null,null,"Pase a la pregunta 131."]
[]
[null,null,"121. INDIQUE, ¿CON CUALES DE LOS SIGUIENTES COMITÉS CUENTA ESTE SERVICIO/NIVEL EDUCATIVO Y CON"]
[null,null,null,"QUE FRECUENCIA SE REUNEN?",null,null,null,null,null,null,null,null,null,null,null,null,"¿Están incorporadas al reglamento interno?"]
[]
[null,null,null,"(Marque con una “X” la o las alternativas que correspondan)",null,null,null,null,null,null,null,null,null,null,null,null,"Sí  ",null,null,"No"]
[null,null,null,"Detalle de los comités en el\n Servicio/Nivel Educativo",null,null,"Cuenta con este comité","¿Está conformado\n mediante \n Resolución\n Directoral (RD)?","Frecuencia de las reuniones"]
[null,null,null,null,null,null,null,null,null,null,null,null,null,"128. ¿LAS NORMAS DE CONVIVENCIA ESCOLAR INCLUYEN NORMAS RELACIONADAS"]
[null,null,null,null,null,null,"SI - NO","SI - NO",null,null,null,null,null,"          A LA GESTIÓN DE BIENESTAR EN EL RETORNO A LA SEMIPRESENCIALIDAD"]
[null,null,null,"1.  Comité de Tutoría",null,null,null,null,null,null,null,null,"","          O PRESENCIALIDAD"]
[null,null,null,"2. Comité de Gestión del Bienestar",null,null,null,null,null,null,null,null,""]
[null,null,null,null,null,null,{"$f":"COUNTIF(G149:G150,\"SI\")+COUNTIF(G149:G150,\"NO\")","v":0},null,null,null,null,null,null,null,"Sí",""," No  ",""]
[null,null,"122. EL SERVICIO/NIVEL EDUCATIVO, ¿CUENTA CON PLAN DE TUTORÍA, ORIENTACIÓN EDUCATIVA Y "]
[null,null,null,"CONVIVENCIA ESCOLAR?",null,null,null,null,null,null,null,null,null,"129. ¿LAS NORMAS DE CONVIVENCIA ESCOLAR HAN SIDO CONSTRUIDAS CON LA"]
[null,null,null,null,null,null,null,null,null,null,null,null,null,null,"PARTICIPACIÓN DE REPRESENTANTES DE LAS/LOS ESTUDIANTES? "]
[null,null,null,"Sí",null," No  ",null,null,null,"Pase a la pregunta 127."]
[null,null,null,null,null,null,null,null,null,null,null,null,null,null,"Sí",""," No  ",""]
[null,null,"123. ¿EL PLAN DE TUTORÍA, ORIENTACIÓN EDUCATIVA Y CONVIVENCIA ESCOLAR PRESENTA AL MENOS"]
[null,null,null,"UNA ACTIVIDAD RELACIONADA A LA GESTIÓN DE BIENESTAR EN EL RETORNO A LA SEMIPRESENCIALIDAD"]
[null,null,null," O PRESENCIALIDAD?",null,null,null,null,null,null,null,null,null,"130. ¿EL SERVICIO/NIVEL EDUCATIVO CUENTA CON AL MENOS UNA/UN RESPONSABLE DE\n"]
[null,null,null,null,null,null,null,null,null,null,null,null,null,null,"CONVIVENCIA ESCOLAR ASIGNADO PARA EL AÑO 2022?"]
[null,null,null,"Sí",""," No  ",""]
[null,null,null,null,null,null,null,null,null,null,null,null,null,null,"Sí",""," No  ",""]
[]
[null,null,"124. ¿SE HA ACTUALIZADO EL PLAN DE TUTORÍA, CON RELACIÓN A LO ELABORADO  EN EL AÑO 2021?\n"]
[null,null,null,null,null,null,null,null,null,null,null,null,null,null,null,null,"¿Se encuentra registrado en el portal SíseVe?"]
[]
[null,null,null,"Sí",""," No  ","",null,null,null,null,null,null,null,null,null,"Sí  ","",null,"No",""]
[]
[null,null,null,null,null,null,null,null,null,null,null,null,null,"131. EL SERVICIO/NIVEL EDUCATIVO, ¿CUENTA CON LIBRO DE REGISTRO DE INCIDENCIAS "]
[null,null,null,null,null,null,null,null,null,null,null,null,null,null,"SOBRE VIOLENCIA Y ACOSO ESCOLAR EN EL MARCO DE LA LEY 29719?"]
[]
[null,null,"125. LOS DOCENTES TUTORES, ¿CUENTAN CON UN PLAN TUTORIAL DE AULA PARA ESTE AÑO 2022?"]
[null,null,null,null,null,null,null,null,null,null,null,null,null,null,"Sí",null," No  ",null,null,null,"Pase a la pregunta 133."]
[null,null,null,"(Marque con una “X”, una opción)"]
[null,null,null,"","1 - Sí, todos los docentes",null,null,null,null,null,null,null,null,null,null,null,"¿El libro de registro se encuentra en un lugar visible?"]
[null,null,null,"","2 - Sí, algunos docentes",null,null,null,null,null,null,null,null,null,null,null,"Sí  ",null,null,"No"]
[null,null,null,"","3 - Ninguno",null,null,null,"Pase a la pregunta 127."]
[null,null,null,null,null,null,null,null,null,null,null,null,null,"132. EN EL AÑO 2021, ¿SE HIZO USO DEL LIBRO DE REGISTRO DE INCIDENCIAS?"]
[null,null,"126. ¿QUÉ TEMAS HAN SIDO PRIORIZADOS EN ESTOS PLANES TUTORIALES DE AULA?"]
[null,null,null,null,null,null,null,null,null,null,null,null,null,null,"Sí",""," No  ",""]
[null,null,null,"(Marque con una “X” en “Si” o “No” según corresponda para cada tema)"]
[null,null,null,null,null,null,null,null,null,null,"¿Ha sido\nPriorizado?","¿Ha recibido\nAsist.\nTécnica?",null,null,null,null,"¿Cuántas incidencias se registraron en el año 2021?"]
[null,null,null,"NRO.","Temas para los Planes tutoriales",null,null,null,null,null,null,null,null,null,null,null,null,null,""]
[]
[null,null,null,null,null,null,null,null,null,null," SI - NO"," SI - NO",null,null,null,null,"Anote la fecha de la última incidencia registrada en el año 2021"]
[null,null,{"$f":"COUNTIF(K186:K206,\"NO\")","v":0},1,"Prevención de embarazo adolescente",null,null,null,null,null,"","",null,null,null,null,null,null,"DÍA","MES",null,"AÑO"]
[null,null,null,2,"Prevención de trata de personas",null,null,null,null,null,"","",null,null,null,null,null,null,"","",null,""]
[null,null,null,3,"Prevención de uso de drogas",null,null,null,null,null,"",""]
[null,null,null,4,"Prevención de trabajo infantil forzoso",null,null,null,null,null,"","",null,"133. EL SERVICIO/NIVEL EDUCATIVO, ¿REALIZA ACTIVIDADES PARA UNA CONVIVENCIA"]
[null,null,null,5,"Prevención de violencia escolar",null,null,null,null,null,"","",null,null,"ESCOLAR DEMOCRÁTICA ?"]
[null,null,null,6,"Prevención de violencia familiar",null,null,null,null,null,"",""]
[null,null,null,7,"Prevención de violencia sexual",null,null,null,null,null,"","",null,null," Sí",null," No  "]
[null,null,null,8,"Prevención de trastornos alimenticios",null,null,null,null,null,"",""]
[null,null,null,9,"Prevención ante fenómenos naturales",null,null,null,null,null,"","",null,null,null,null,"¿Cuenta con medios de verificación?"]
[null,null,null,10,"Prevención de VIH, TBC, Hepatitis B, y otras",null,null,null,null,null,"","",null,null,null,null," Sí   ",null,null," No  "]
[null,null,null,11,"Uso responsable de video juegos",null,null,null,null,null,"",""]
[null,null,null,12,"Uso responsable de redes sociales digitales",null,null,null,null,null,"","",null,null,null,null,null,null,"¿Con que medios de verificación cuenta?"]
[null,null,null,13,"Educación vial",null,null,null,null,null,"","",null,null,null,null,null,null,"(Marque con una “X”, una o más opciones)"]
[null,null,null,14,"Competencias Socioafectivas",null,null,null,null,null,"","",null,null,null,null,null,null,"Informe de actividades"]
[null,null,null,15,"Igualdad de género",null,null,null,null,null,"","",null,null,null,null,null,null,"Fotografías"]
[null,null,null,16,"Educación sexual integral",null,null,null,null,null,"","",null,null,null,null,null,null,"Videos"]
[null,null,null,17,"Promoción de la convivencia escolar",null,null,null,null,null,"","",null,null,null,null,null,null,"Otro"]
[null,null,null,18,"Acciones de Orientación vocacional",null,null,null,null,null,"",""]
[null,null,null,19,"Liderazgo",null,null,null,null,null,"",""]
[null,null,null,20,"Trabajo en Equipo",null,null,null,null,null,"",""]
[null,null,null,21,"Otro","",null,null,null,null,"",""]
[null,null,null,null,null,null,null,null,null,null,{"$f":"COUNTIF(K186:K206,\"SI\")+COUNTIF(K186:K206,\"NO\")","v":0},{"$f":"COUNTIF(L186:L206,\"SI\")+COUNTIF(L186:L206,\"NO\")","v":0}]
[]
[null,null,"134. EL SERVICIO/NIVEL EDUCATIVO, ¿REALIZA ACTIVIDADES PARA LA PREVENCIÓN DE LA VIOLENCIA",null,null,null,null,null,null,null,null,null,null,"144. ¿EL SERVICIO/NIVEL EDUCATIVO HA REALIZADO ALGUNA ACTIVIDAD COORDINADA"]
[null,null," CONTRA NIÑAS, NIÑOS Y ADOLESCENTES?",null,null,null,null,null,null,null,null,null,null,"  CON ALGUNO DE LOS ALIADOS ESTRATÉGICOS?"]
[]
[null,null,null," Sí",null," No  ",null,null,null,"Pase a la pregunta 136.",null,null,null,null," Sí",""," No  ",""]
[]
[null,null,null,null,null,"¿Cuenta con medios de verificación?"]
[null,null,null,null,null," Sí   ",null,null," No  ",null,null,null,null,"145. SEÑOR(A) DIRECTOR(A,) ¿EMPLEA USTED HERRAMIENTAS DE CONSULTA PARA"]
[null,null,null,null,null,null,null,null,null,null,null,null,null," VERIFICAR LA SITUACIÓN DEL PERSONAL DE ESTE SERVICIO/NIVEL EDUCATIVO, TAL COMO"]
[null,null,null,null,null,null,"        ¿Con que medios de verificación cuenta?",null,null,null,null,null,null," EL REGISTRO NACIONAL DE SANCIONES CONTRA SERVIDORES CIVILES – RNSSC?"]
[null,null,null,null,null,null,"(Marque con una “X”, una o más opciones)"]
[null,null,null,null,null,null,null,"Informe de actividades",null,"","","","",""," Sí",null," No  "]
[null,null,null,null,null,null,null,"Fotografías","","","","","","","","","",""]
[null,null,null,null,null,null,null,"Videos","","","","","","146. SEÑOR(A) DIRECTOR(A) ¿CONOCE USTED QUE PUEDE PRESENTAR DENUNCIAS"]
[null,null,null,null,null,null,null,"Otro",null,null,null,null,""," SOBRE POSIBLES ACTOS DE SOBORNO DE MANERA ANÓNIMA, CON LA FINALIDAD"]
[null,null,null,null,null,null,null,null,null,null,null,null,null," DE PROTEGER SU IDENTIDAD?"]
[null,null,"135. ¿CUÁLES SON LAS ACTIVIDADES QUE REALIZA ESTE NIVEL/SERVICIO EDUCATIVO, PARA LA PREVENCIÓN"]
[null,null,null,"DE LA VIOLENCIA CONTRA NIÑAS, NIÑOS Y ADOLESCENTES?",null,null,null,null,null,null,null,null,null,null," Sí",""," No  "]
[null,null,null,null,"(Marque con una “X”, una o más opciones)"]
[null,null,null,null,"","Gestión de talleres o reuniones con estudiantes.",null,null,null,null,null,null,null,"147. SEÑOR(A) DIRECTOR(A) ¿TIENE CONOCIMIENTO QUE LOS HECHOS DE VIOLENCIA,"]
[null,null,null,null,"","Capacitación a docentes para prevenir y/o atender casos de riesgo.",null,null,null,null,null,null,null," ADEMÁS DE SER REPORTADOS EN EL PORTAL DEL SÍSEVE, DEBEN SER REPORTADOS"]
[null,null,null,null,"","Envío de orientaciones a apoderados/as.",null,null,null,null,null,null,null," A LA UGEL?"]
[null,null,null,null,"","Gestión de talleres o reuniones con apoderados/as."]
[null,null,null,null,"","Gestión de estrategias en conjunto con otras organizaciones.",null,null,null,null,null,null,null,null," Sí",null," No  "]
[null,null,null,null,"","Monitoreo de situación emocional y familiar de estudiantes."]
[null,null,null,null,"","Otro","",null,null,null,null,null,null,"148. SEÑOR(A) DIRECTOR(A) ¿CONOCE USTED EN QUE CASOS TIENE COMPETENCIA PARA"]
[null,null,null,null,null,null,null,null,null,null,null,null,null," INVESTIGAR UNA DENUNCIA QUE HAYA SIDO PRESENTADA EN CONTRA DE PROFESORES,"]
[null,null,"136. USTED, SEÑOR(A) DIRECTOR(A), ¿CONOCE EL PORTAL SÍSEVE?",null,null,null,null,null,null,null,null,null,null," PERSONAL JERÁRQUICO Y SUBDIRECTOR DE ESTE SERVICIO/NIVEL EDUCATIVO QUE DIRIGE?\n"]
[]
[null,null,null," Sí",null," No  ",null,null,null,"Pase a la pregunta 139."]
[null,null,null,null,null,null,null,null,null,null,null,null,null,null," Sí",null," No  "]
[null,null,null,null,null,"¿Ha sido capacitado por algún integrante de la UGEL/DRE"]
[null,null,null,null,null,"en el uso del Portal SíseVe? ",null,null,null,null,null,null,null,"149. SEÑOR(A) DIRECTOR(A), DURANTE EL PRESENTE AÑO 2021, ¿HA RECIBIDO"]
[null,null,null,null,null," Sí   ",null,null," No  ",null,null,null,null," DENUNCIAS CONTRA EL PERSONAL DOCENTE DE ESTE SERVICIO/NIVEL EDUCATIVO?"]
[]
[null,null,"137. EL SERVICIO/NIVEL EDUCATIVO, ¿SE ENCUENTRA AFILIADO AL SÍSEVE ?",null,null,null,null,null,null,null,null,null,null,null," Sí",null," No  ",null,null,null,"Pase a la pregunta 151."]
[]
[null,null,null,"Sí","",null,null,null,null,"Para el año 2022 hasta la fecha de remisión del","",null,null,null,null,null,null,null,"¿Cuántas?"]
[null,null,null,null,null,null,null,null,null,"Censo, ¿Cuántos casos han sido reportados?"]
[null,null,null,null,null,null,null,null,null,null,null,null,null,"150. SOBRE LA ATENCIÓN A LAS DENUNCIAS RECIBIDAS CONTRA EL PERSONAL DOCENTE"]
[null,null,null,"No","","¿Porque razón el servicio y/o nivel educativo no está",null,null,null,null,null,null,null," EN EL PRESENTE AÑO, INDIQUE USTED:"]
[null,null,null,null,null,"afiliado al SÍSEVE?"]
[null,null,null,null,null,"(Marque con una “X”, una opción)",null,null,null,null,null,null,null,null,null,"A.   ¿ CUÁNTAS DERIVÓ A LA CPPADD ?"]
[null,null,null,null,"","Por falta de internet"]
[null,null,null,null,"","Lo conoce y no le parece importante afiliarse",null,null,null,null,null,null,null,null,null,"B.   ¿CUÁNTAS ASUMIÓ LA INVESTIGACIÓN POR SER DE SU COMPETENCIA?"]
[null,null,null,null,"","Le parece importante, pero no lo ve necesario para su I.E."]
[null,null,null,null,"","Otro",""]
[null,null,null,null,null,null,null,null,null,null,null,null,null,"151. SEÑOR(A) DIRECTOR(A), DURANTE EL PRESENTE AÑO, ¿USTED HA SIDO OBJETO DE "]
[null,null,"138. EN EL AÑO 2021, ¿UD. HA REPORTADO ALGUNA INCIDENCIA EN EL PORTAL SÍSEVE?",null,null,null,null,null,null,null,null,null,null,"DENUNCIAS POR ADOPTAR MEDIDAS EN PROTECCIÓN DEL ESTUDIANTE O DENUNCIAS DE"]
[null,null,null,null,null,"(Sistema Especializado en Reporte de casos sobre Violencia Escolar)",null,null,null,null,null,null,null,"CORRUPCIÓN?"]
[]
[null,null,null," Sí","",null,"Para el año 2021, ¿Cuántos casos fueron ",null,null,null,"",null,null,null," Sí",null," No  "]
[null,null,null,null,null,null,"reportados?"]
[null,null,null,"No","",null,null,null,null,null,null,null,null,null,null,null,"¿Cuántas?"]
[]
[null,null,"139. USTED, SEÑOR (A) DIRECTOR (A), ¿CONOCE LOS PROTOCOLOS PARA LA ATENCIÓN DE LOS",null,null,null,null,null,null,null,null,null,null,"152. SEÑOR(A) DIRECTOR(A), EN ESTE SERVICIO/NIVEL EDUCATIVO, ¿SE TIENEN IMPLEMENTADAS"]
[null,null," CASOS DE VIOLENCIA EN ESTE SERVICIO/NIVEL EDUCATIVO?",null,null,null,null,null,null,null,null,null,null," MEDIDAS DE SEGURIDAD PARA EL TRATAMIENTO DE LOS DATOS PERSONALES QUE ADMINISTRAN?"]
[]
[null,null,null," Sí",null," No  ",null,null,null,null,null,null,null,null,"(Ya sea de alumnos, profesores, personal administrativo o terceros. En cumplimiento de la"]
[null,null,null,null,null,null,null,null,null,null,null,null,null,null," ley N° 29733 y su reglamento)"]
[null,null,null,null,null,"¿Ha sido capacitado por algún integrante de la UGEL/DRE en el uso"]
[null,null,null,null,null,"de los Protocolos para la atención de los casos de violencia en la ",null,null,null,null,null,null,null,null," Sí",null," No  "]
[null,null,null,null,null,"Institución Educativa?"]
[null,null,null,null,null," Sí   ",null,null," No  ",null,null,null,null,"153. ESTE SERVICIO/NIVEL EDUCATIVO, ¿SE HA BENEFICIADO CON ALGUNA ACCIÓN"]
[null,null,null,null,null,null,null,null,null,null,null,null,null,null,"DE VOLUNTARIADO DURANTE ESTE PRIMER/SEGUNDO SEMESTRE DEL AÑO?"]
[null,null,"140. SEÑOR(A) DIRECTOR(A), EN EL AÑO 2021, ¿SE APLICARON LOS PROTOCOLOS PARA LA ATENCIÓN DE LOS"]
[null,null," CASOS DE VIOLENCIA EN EL SERVICIO/NIVEL EDUCATIVO QUE FUERON ACTUALIZADOS PARA LA",null,null,null,null,null,null,null,null,null,null,null," Sí",null," No  ",null,null,null,"Pase a la pregunta 155."]
[null,null," EDUCACIÓN A DISTANCIA?"]
[null,null,null,null,null,null,null,null,null,null,null,null,null,"154. SELECCIONE EL O LOS ASPECTOS EN QUE APORTARON LAS ACCIONES DE VOLUNTARIADO"]
[null,null,null," Sí",null," No  ",null,null,null,null,null,null,null,null,"IMPLEMENTADAS EN ESTE SERVICIO/NIVEL EDUCATIVO E INDIQUE\n"]
[null,null,null,null,null,null,null,null,null,null,null,null,null,null,"¿CUÁL DE ELLAS APORTÓ MÁS EN EL APRENDIZAJE DE LOS ESTUDIANTES? "]
[null,null,"141. ESTE SERVICIO/NIVEL EDUCATIVO, ¿RECIBE ASISTENCIA TÉCNICA PARA LA PROMOCIÓN DE LA CONVIVENCIA",null,null,null,null,null,null,null,null,null,null,null,null,"Aspectos en los que aportaron las acciones de voluntariado implementadas en la IE",null,null,"¿Aportaron en este aspecto?\nSI - NO","¿Cuál aporto más en el\n aprendizaje de los\n estudiantes?\n(Marque con una “X” \n solo una opción"]
[null,null," ESCOLAR, LA PREVENCIÓN Y ATENCIÓN DE LA VIOLENCIA ESCOLAR?",null,null,null,null,null,null,null,null,null,null,null,{"$f":"COUNTIF(S280:S285,\"NO\")","v":0},"Condiciones para el retorno estudiante",null,null,"",null,""]
[null,null,null,null,null,null,null,null,null,null,null,null,null,null,null,"Recuperación verano 2022",null,null,"",null,""]
[null,null,null," Sí",null," No  ",null,null,null,null,null,null,null,null,null,"Consolidación de los aprendizajes de",null,null,"",null,""]
[null,null,null,null,null,null,null,null,null,null,null,null,null,null,null,"Matrícula escolar",null,null,"",null,""]
[null,null,"142. ¿USTED HA RECURRIDO A LA UGEL/DRE SOLICITANDO ORIENTACIONES PARA MEJORAR LA CONVIVENCIA",null,null,null,null,null,null,null,null,null,null,null,null,"Identificación de estudiantes situación",null,null,"",null,""]
[null,null,null,"EN SU SERVICIO/NIVEL EDUCATIVO?",null,null,null,null,null,null,null,null,null,null,null,"Otro","",null,"",null,""]
[null,null,null,"(Orientaciones para la prevención de la violencia, atención de casos y promoción de la convivencia)",null,null,null,null,null,null,null,null,null,null,null,null,null,null,{"$f":"COUNTIF(S280:S285,\"SI\")+COUNTIF(S280:S285,\"NO\")","v":0},null,{"$f":"COUNTIF(U280:U285,\"X\")","v":0}]
[null,null,null," Sí",null," No  ",null,null,null,null,null,null,null,"155. ¿QUÉ ESTRATEGIAS DE TUTORÍA Y ORIENTACIÓN EDUCATIVA IMPLEMENTAN CON LOS ESTUDIANTES?"]
[]
[null,null,null,null,null,"¿Usted ha recibido alguna información y/o capacitación?",null,null,null,null,null,null,null,null,null,"(Marque con una “X”, una o más opciones)"]
[null,null,null,null,null," Sí   ",null,null," No  ",null,null,null,null,null,null,null,"Tutoría Individual"]
[null,null,null,null,null,null,null,null,null,null,null,null,null,null,null,null,"Tutoría grupal"]
[null,null,"143. ¿EL SERVICIO/NIVEL EDUCATIVO CUENTA CON UN MAPA O DIRECTORIO DE ALIADOS ESTRATÉGICOS",null,null,null,null,null,null,null,null,null,null,null,null,null,"Participación estudiantil "]
[null,null,null,"PARA LA PREVENCIÓN Y ATENCIÓN DE CASOS DE VIOLENCIA ESCOLAR?",null,null,null,null,null,null,null,null,null,null,null,null,"Trabajo con las familias y la comunidad"]
[null,null,null,null,null,null,null,null,null,null,null,null,null,null,null,null,"Orientación Educativa permanente"]
[null,null,null," Sí",null," No  ",null,null,null,"Pase a la pregunta 145.",null,null,null,null,null,null,"Ninguno"]
[null,null,null,null,null,null,null,null,null,null,null,null,null,null,null,null,"Otro"]
[null,null,null,null,null,"En caso de que cuente con un mapa o directorio de aliados estratégicos, "]
[null,null,null,null,null,"por favor, indique quiénes lo conforman:",null,null,null,null,null,null,null,"156. ESTE SERVICIO/NIVEL EDUCATIVO QUE DIRIGE, ¿DURANTE EL PRESENTE AÑO HA RECIBIDO O VIENE"]
[null,null,null,null,null,"(Marque con una “X”, una o más opciones)",null,null,null,null,null,null,null,null,"RECIBIENDO APOYO DE ALGUNA EMPRESA PRIVADA O DE ALGUNA ONG EN TEMAS DE MEJORA DE"]
[null,null,null,null,null,null,"DEMUNA",null,null,null,null,null,null,null," INFRAESTRUCTURA, MOBILIARIO Y EQUIPAMIENTO?"]
[null,null,null,null,null,null,"Defensoría del pueblo"]
[null,null,null,null,null,null,"Centro de emergencia Mujer (CEM)",null,null,null,null,null,null,null," Sí",null," No  ",null,null,"Pase a la pregunta 158."]
[null,null,null,null,null,null,"Centro o posta de salud"]
[null,null,null,null,null,null,"Iglesia",null,null,null,null,null,null,"157. INDIQUE EL TIPO DE APOYO QUE HA RECIBIDO DE LA EMPRESA PRIVADA U ONG MENCIONADA EN SU RESPUESTA "]
[null,null,null,null,null,null,"Comisaría",null,null,null,null,null,null,null,"ANTERIOR"]
[null,null,null,null,null,null,"Otro",null,null,null,null,null,null,null,null,"(Marque con una “X”, una o más opciones)"]
[null,null,null,null,null,null,null,null,null,null,null,null,null,null,null,null,"Infraestructura"]
[null,null,null,null,null,null,null,null,null,null,null,null,null,null,null,null,"Mobiliario"]
[null,null,null,null,null,null,null,null,null,null,null,null,null,null,null,null,"Equipamiento"]
[null,null,null,null,null,null,null,null,null,null,null,null,null,null,null,null,"Otro"]
[]
[]
[null,null,"C. ACOMPAÑAMIENTO Y SOPORTE PEDAGÓGICO"]
[null,null,"158. DESDE EL INICIO DEL AÑO ESCOLAR 2021 HASTA LA FECHA DE REPORTE DEL",null,null,null,null,null,null,null,null,null,null,"168. EL SERVICIO/NIVEL EDUCATIVO, ¿HA PLANTEADO PLANES DE MEJORA DE"]
[null,null," CENSO EDUCATIVO EL SERVICIO/NIVEL EDUCATIVO, ¿HA RECIBIDO COMUNICACIÓN",null,null,null,null,null,null,null,null,null,null," ACUERDO AL DIAGNÓSTICO DE LOGROS DE APRENDIZAJE DE LOS ESTUDIANTES"]
[null,null," O PARTICIPACIÓN PRESENCIAL O VIRTUAL/REMOTA DEL ESPECIALISTA",null,null,null,null,null,null,null,null,null,null," EN EL ÁREA DE COMUNICACIÓN?"]
[null,null," PEDAGÓGICO DE LA UGEL, CON LA FINALIDAD DE BRINDAR ASISTENCIA TÉCNICA?"]
[null,null,null,null,null,null,null,null,null,null,null,null,null,null," Sí",null," No  "]
[null,null,null,"Sí",null,null,"¿Cuántas veces?"]
[null,null,null,null,null,null,null,"Presencial:",null,null,null,null,null,null,null,null,"¿Cuenta con resultados?"]
[null,null,null,null,null,null,null,"Virtual/Remota:"]
[null,null,null,null,null,null,null,null,null,null,null,null,null,null,null,null," Sí  ",null,null," No  "]
[null,null,null," No  ",null,null,"Pase a la pregunta 160."]
[null,null,null,null,null,null,null,null,null,null,null,null,null,"169. EL SERVICIO/NIVEL EDUCATIVO, ¿REALIZA ACTIVIDADES PEDAGÓGICAS PARA"]
[null,null,null,null,null,null,null,null,null,null,null,null,null,null,"INCENTIVAR EL HÁBITO LECTOR EN LOS ESTUDIANTES?"]
[null,null,"159. ¿CUÁLES DE LAS SIGUIENTES ACCIONES HA REALIZADO EL ESPECIALISTA PEDAGÓGICO AL MOMENTO"]
[null,null,null,"DE BRINDAR LA ASISTENCIA TÉCNICA AL SERVICIO/NIVEL EDUCATIVO?",null,null,null,null,null,null,null,null,null,null," Sí",null," No  "]
[null,null,null,"(Marque con una “X” en “Si” o “No” según corresponda en cada acción)"]
[null,null,null,null,null,null,null,null,null,null,null,null,null,"170. DURANTE EL AÑO 2021, ¿SE REALIZÓ EL INFORME DEL PROGRESO DE LOS"]
[null,null,null,"NRO.","ACCIONES",null,null,null,null,null,null," SI - NO",null," ESTUDIANTES A LOS PADRES DE FAMILIA?"]
[null,null,{"$f":"COUNTIF(L331:L347,\"NO\")","v":0},1,"Pregunto sobre las necesidades y demandas pedagógicas del"]
[null,null,null,null,"servicio/nivel educativo",null,null,null,null,null,null,null,null,null,"Sí",null,null,"¿Cuántas veces?   "]
[null,null,null,2,"Observó alguna sesión o actividades de aprendizaje, ya sea de"]
[null,null,null,null,"manera presencial o virtual/remota (por lo menos una vez)",null,null,null,null,null,null,null,null,null,"No",null,null,"Pase a la pregunta 172."]
[null,null,null,3,"Sostuvó un clima de confianza y proximidad durante sus acciones"]
[null,null,null,null,"de asistencia técnica con este servicio/ nivel educativo",null,null,null,null,null,null,null,null,"171. ¿CÓMO SE REALIZÓ EL INFORME DEL PROGRESO DE LOS ESTUDIANTES A LOS"]
[null,null,null,4,"Generó algún espacio para que el director(a) del servicio/nivel",null,null,null,null,null,null,null,null,null,"PADRES DE FAMILIA EN EL AÑO 2021?"]
[null,null,null,null,"educativo autoevalúe su práctica",null,null,null,null,null,null,null,null,null,null,"(Marque con una “X” una opción)"]
[null,null,null,5,"Escuchó y respondió las dudas y consultas realizadas por usted",null,null,null,null,null,null,null,null,null,null,null,"Individual - (Informe de cada estudiante a cada PPFF)"]
[null,null,null,6,"Las orientaciones brindadas atendieron las necesidades y",null,null,null,null,null,null,null,null,null,null,null,"Pequeños grupos - (Informe en grupos de 2 hasta 10 estudiantes)"]
[null,null,null,null,"demandas señaladas",null,null,null,null,null,null,null,null,null,null,null,"Grupal - (Informe en grupos de 11 a más estudiantes)"]
[null,null,null,7,"Brindó orientaciones para la mejora de las prácticas pedagógicas",null,null,null,null,null,null,null,null,null,null,null,"Otros"]
[null,null,null,null,"y de gestión acorde al enfoque por competencias."]
[null,null,null,8,"Sugirió estrategias pedagógicas contextualizadas para mejorar las",null,null,null,null,null,null,null,null,"172. ¿HA VISITADO EL PORTAL WEB PARA DIRECTIVOS EN LOS ÚLTIMOS TRES MESES"]
[null,null,null,null,"prácticas docentes"]
[null,null,null,9,"Dio a conocer las fortalezas del servicio / nivel educativo",null,null,null,null,null,null,null,null,null," Sí",null," No  "]
[null,null,null,10,"Se asumieron compromisos y/o acuerdos para la mejora"]
[null,null,null,null,null,null,null,null,null,null,null,{"$f":"COUNTIF(L331:L347,\"SI\")+COUNTIF(L331:L347,\"NO\")","v":0},null,null,null,null,"¿La información encontrada en el portal web para directivos"]
[null,null,"160. DURANTE EL AÑO 2021 Y HASTA EL REPORTE DEL CENSO EDUCATIVO 2022, EL",null,null,null,null,null,null,null,null,null,null,null,null,null,"  le resulto de utilidad?"]
[null,null," EL SERVICIO/NIVEL EDUCATIVO, ¿HA RECIBIDO ALGÚN TIPO DE ACOMPAÑAMIENTO"]
[null,null," DIRIGIDO AL DIRECTIVO?",null,null,null,null,null,null,null,null,null,null,null,null,null," Sí  ",null,null," No  "]
[]
[null,null,null,"Sí",null," No  ",null,null,null,null,null,null,null,"173. ESTE SERVICIO/NIVEL EDUCATIVO, ¿HA RECIBIDO ALGÚN TIPO DE PERSONAL"]
[null,null,null,null,null,"¿Que Institución le brindó el acompañamiento?",null,null,null,null,null,null,null," DURANTE EL PROCESO EXTRAORDINARIO DE MATRÍCULA 2021?"]
[null,null,null,null,null,"(Marque con una “X” una o más opciones)",null,null,null,null,null,null,null,null,"(Marque con una “X” en “Sí” o “No” recibió algún tipo de personal y luego"]
[null,null,null,null,null,"DRE",null,null,null,null,null,null,null,null," consigne la cantidad recibida)"]
[null,null,null,null,null,"UGEL"]
[null,null,null,null,null,"MINEDU",null,null,null,null,null,null,null,null,"Nro.","Tipo de personal",null,null,null,"¿Recibió?","¿Cuántos recibió?"]
[null,null,null,null,null,"OTROS",null,null,null,null,null,null,null,null,null,null,null,null,{"$f":"COUNTIF(T360:T363,\"SI\") + COUNTIF(T360:T363,\"NO\")","v":0},"Sí - No"]
[null,null,null,null,null,null,null,null,null,null,null,null,null,null,1,"Director"]
[null,null,"161. DURANTE EL AÑO 2021, EL EQUIPO DIRECTIVO DE ESTE SERVICIO/NIVEL EDUCATIVO",null,null,null,null,null,null,null,null,null,null,null,2,"Sub-director"]
[null,null,"¿HA REALIZADO EL MONITOREO A LA PRÁCTICA PEDAGÓGICA DE LOS DOCENTES?",null,null,null,null,null,null,null,null,null,null,null,3,"Personal docente"]
[null,null,null,null,null,null,null,null,"(Marque con una “X” una opción)",null,null,null,null,null,4,"Personal administrativo"]
[null,null,null,"Sí",null,null,"\n¿A cuántos",null,"","Todos los docentes"]
[null,null,null,null,null,null,"\ndocentes?",null,"","Más del 50% de docentes",null,null,null,"174. EL SERVICIO/NIVEL EDUCATIVO, ¿REALIZA ACTIVIDADES PEDAGÓGICAS PARA INCENTIVAR EL HÁBITO"]
[null,null,null,null,null,null,null,null,"","Menos del 50% de docentes",null,null,null," LECTOR EN LOS ESTUDIANTES?"]
[]
[null,null,null," No  ",null,null,"Pase a la pregunta 163.",null,null,null,null,null,null,null," Sí",null," No  "]
[]
[null,null,"162. DURANTE EL AÑO 2021, EN PROMEDIO, ¿CUÁNTAS REUNIONES POR SEMANA",null,null,null,null,null,null,null,null,null,null,"175. DURANTE EL PRESENTE AÑO, ¿HA RECIBIDO LA VISITA DEL PERSONAL O MONITOR DE SEMÁFORO"]
[null,null," DE TRABAJO COLEGIADO O FORMACIÓN REALIZÓ CON EL PRESONAL DE ESTE",null,null,null,null,null,null,null,null,null,null," ESCUELA DEL MINEDU PARA EL RECOJO DE INFORMACIÓN EN ESTE SERVICIO/NIVEL EDUCATIVO?"]
[null,null," SERVICIO/NIVEL EDUCATIVO?"]
[null,null,null,null,null,null,null,null,null,null,null,null,null,null," Sí",null," No  "]
[null,null,null,null,"Promedio de reuniones por semana",null,null,null,null,null,""]
[null,null,null,null,null,null,null,null,null,null,null,null,null,null,null,null,"¿En qué mes o meses recibió la(s) visita(s)?"]
[null,null,"163. EN EL PRESENTE AÑO, EL PERSONAL DIRECTIVO DE ESTE SERVICIO/NIVEL EDUCATIVO",null,null,null,null,null,null,null,null,null,null,null,null,null,"(Marque con una  “X” una o más opciones)"]
[null,null,"¿BRINDA SOPORTE Y APOYO A LOS DOCENTES EN TORNO A SU DESEMPEÑO",null,null,null,null,null,null,null,null,null,null,null,null,null,null,"Enero",null,"Julio"]
[null,null,"EN EL MARCO DEL ACOMPAÑAMIENTO PEDAGÓGICO Y ESPACIOS DE TRABAJO",null,null,null,null,null,null,null,null,null,null,null,null,null,null,"Febrero",null,"Agosto"]
[null,null,"COLEGIADO?",null,null,null,null,null,null,null,null,null,null,null,null,null,null,"Marzo",null,"Setiembre"]
[null,null,null,null,null,null,null,null,null,null,null,null,null,null,null,null,null,"Abril",null,"Octubre"]
[null,null,null,"Sí",null," No  ",null,null,"Pase a la pregunta 165.",null,null,null,null,null,null,null,null,"Mayo",null,"Noviembre"]
[null,null,null,null,null,null,null,null,null,null,null,null,null,null,null,null,null,"Junio",null,"Diciembre"]
[null,null,"164. ¿QUÉ TEMAS HAN SIDO ABORDADOS MAYORITARIAMENTE POR EL EQUIPO",null,null,null,null,null,null,null,null,null,null,null,null,null,{"$f":"COUNTIF(Q377:Q382,\"X\")","v":0},null,{"$f":"COUNTIF(S377:S382,\"X\")","v":0}]
[null,null,"  DIRECTIVO DURANTE LAS SESIONES DE SOPORTE Y APOYO A LOS DOCENTES"]
[null,null,"  EN EL MARCO DEL ACOMPAÑAMIENTO PEDAGÓGICO Y ESPACIOS DE TRABAJO",null,null,null,null,null,null,null,null,null,null,null,null,null,"Durante la visita, el personal o monitor de Semáforo Escuela del MINEDU:\n"]
[null,null,"  COLEGIADO?",null,null,"(Marque con una  “X” una o más opciones)",null,null,null,null,null,null,null,null,null,null,"(Marque con una  “X” una o más opciones)"]
[null,null,null,null,null,null,null,null,null,null,null,null,null,null,null,null,null,"Ingresó al local educativo"]
[null,null,null,null,"Planificación curricular/Aprendizaje híbrido",null,null,null,null,null,null,null,null,null,null,null,null,"Visitó las aulas del local educativo"]
[null,null,null,null,"Conducción de los aprendizajes",null,null,null,null,null,null,null,null,null,null,null,null,"Se entrevistó con el director o persona encargada"]
[null,null,null,null,"Como brindar acompañamiento socioafectivo y cognitivo",null,null,null,null,null,null,null,null,null,null,null,null,"Se entrevistó con algún docente"]
[null,null,null,null,"Uso de los recursos y materiales educativos para atender la diversidad"]
[null,null,null,null,"Evaluación formativa y retroalimentación",null,null,null,null,null,null,null,null,"176. SEÑOR(A) DIRECTOR(A), DURANTE EL AÑO 2021 Y HASTA EL MOMENTO DEL CENSO EDUCATIVO"]
[null,null,null,null,"Fortalecimiento del uso de TIC",null,null,null,null,null,null,null,null," 2022, EN SU CONDICIÓN DE DIRECTOR(A), ¿USTED HA RECIBIDO ALGÚN TIPO DE ASISTENCIA"]
[null,null,null,null,"Otros temas",null,null,null,null,null,null,null,null," PEDAGÓGICA POR PARTE DE LOS ESPECIALISTAS DE UGEL Y/O DRE?"]
[]
[null,null,"165. EL SERVICIO/NIVEL EDUCATIVO, ¿ DESARROLLA LAS SIGUIENTES ESTRATEGIAS DE ACOMPAÑAMIENTO ?"]
[null,null,null,null,null,null,null,null,null,"¿Cuántos?"]
[null,null,null,null,null,null,null,null,null,"(Marque con una  “X” una opción)",null,null,null,null,null,"Sí",null," No  ",null,null,"Pase a la pregunta 178."]
[null,null,null,null,null,null,null,null,null,null,"de 1 a 4 por área"]
[null,null,null,null,"Visita en aula",null,null,null,null,null,"de 4 a 8 por área"]
[null,null,null,null,"Grupos de Interaprendizaje (GIA)",null,null,null,null,null,"Más de 8 por área"]
[null,null,null,null,"Talleres"]
[null,null,null,null,"Otros",null,null,null,null,null,null,null,null,"177. ¿QUÉ TIPO DE ASISTENCIA PEDAGÓGICA HA RECIBIDO POR PARTE DE LOS ESPECIALISTAS DE UGEL Y/O DRE?"]
[]
[null,null,"166. EL SERVICIO/NIVEL EDUCATIVO, ¿REALIZA ACTIVIDADES CON FAMILIAS Y",null,null,null,null,null,null,null,null,null,null,null,null,null,"(Marque con una  “X” una o más opciones)"]
[null,null," COMUNIDAD QUE AYUDEN A LA PROMOCIÓN DE UN AMBIENTE INSTITUCIONAL",null,null,null,null,null,null,null,null,null,null,null,null,null,"","Planificación curricular"]
[null,null," FAVORABLE PARA LA ATENCIÓN DE LA DIVERSIDAD?",null,null,null,null,null,null,null,null,null,null,null,null,null,"","Metodología y estrategias didácticas"]
[null,null,null,null,null,null,null,null,null,null,null,null,null,null,null,null,"","Retroalimentación, criterios e instrumentos de evaluación"]
[null,null,null,"Sí",null," No  ",null,null,null,"Pase a la pregunta 168.",null,null,null,null,null,null,"","Soporte emocional"]
[null,null,null,null,null,null,null,null,null,null,null,null,null,null,null,null,"","Experiencias pedagógicas innovadoras"]
[null,null,null,null,null,"¿Qué actividades realiza?",null,null,null,null,null,null,null,null,null,null,"","Otros",""]
[null,null,null,null,null,"(Marque con una  “X” una o más opciones)",null,null,null,null,null,null,null,null,null,null,"","Ninguna"]
[null,null,null,null,null,"Acompañamiento en el proceso de aprendizaje"]
[null,null,null,null,null,"Actividades que fortalecen las competencias parentales"]
[null,null,null,null,null,"Vínculos afectivos con hijos e hijas"]
[null,null,null,null,null,"Jornadas con madres y padres"]
[null,null,null,null,null,"Otros"]
[]
[null,null,"167. DE LAS ACTIVIDADES QUE REALIZA CON FAMILIAS Y COMUNIDAD, ¿POR LO "]
[null,null," MENOS UNA DE ELLAS TIENE COMO EJE PRINCIPAL LA EDUCACIÓN SEXUAL "]
[null,null," INTEGRAL (ESI)?"]
[]
[null,null,null,"Sí",""," No  ",""]
[]
[]
[]
[]
[]
[]
[]
[]
[]
[]
["Dias"]
[1]
[2]
[3]
[4]
[5]
[6]
[7]
[8]
[9]
[10]
[11]
[12]
[13]
[14]
[15]
[16]
[17]
[18]
[19]
[20]
[21]
[22]
[23]
[24]
[25]
[26]
[27]
[28]
[29]
[30]
[31]
[]
["Meses"]
["01: Enero"]
["02: Febrero"]
["03: Marzo"]
["04: Abril"]
["05: Mayo"]
["06: Junio"]
["07: Julio"]
["08: Agosto"]
["09: Septiembre"]
["10: Octubre"]
["11: Noviembre"]
["12: Diciembre"]
["01: Enero"]
["02: Febrero"]
["03: Marzo"]
["04: Abril"]
[]
["Lengua originaria"]
["0100: Castellano"]
["0200: Achuar"]
["0300: Aimara"]
["0400: Amahuaca"]
["0500: Arabela"]
["0600: Ashaninka"]
["0610: Asheninka"]
["0700: Awajún"]
["0800: Bora"]
["0900: Kapanawa"]
["1000: Cashinahua"]
["1100: Kawki"]
["1200: Chamikuro"]
["1300: Ese eja"]
["1400: Harakbut"]
["1500: Iñapari"]
["1600: Ikitu"]
["1700: Iskonawa"]
["1800: Jaqaru"]
["1900: Kakataibo"]
["2000: Kakinte"]
["2110: Kandozi-chapra (chapra)"]
["2120: Kandozi-chapra (kandozi)"]
["2200: Kukama kukamiria"]
["2300: Madija"]
["2400: Maijiki"]
["2500: Matsés"]
["2600: Matsigenka"]
["2700: Muniche"]
["2800: Murui-muinani"]
["2900: Matsigenka-montetokunirira"]
["3000: Nomatsigenga"]
["3100: Ocaina"]
["3200: Omagua"]
["3310: Quechua amazónico (Kichwa)"]
["3321: Quechua central (Ancash)"]
["3322: Quechua central (Huánuco)"]
["3323: Quechua central (Wanka)"]
["3324: Quechua central (Pasco)"]
["3331: Quechua norteño (Cajamarca)"]
["3332: Quechua norteño (Inkawasi Kañaris)"]
["3341: Quechua sureño (Chanka)"]
["3342: Quechua sureño (Collao)"]
["3400: Resigaro"]
["3500: Secoya"]
["3600: Sharanahua"]
["3700: Shawi"]
["3800: Shipibo-Konibo"]
["3900: Shiwilu"]
["4000: Taushiro"]
["4100: Ticuna"]
["4200: Urarina"]
["4300: Wampis"]
["4400: Yagua"]
["4500: Yaminahua"]
["4600: Yanesha"]
["4700: Yine"]
["4800: Nahua"]
["5000: Otra lengua originaria"]
["Lengua extranjera"]
["5100: Alemán"]
["5200: Inglés"]
["5300: Italiano"]
["5400: Japonés"]
["5500: Portugués"]
["5600: Ruso"]
["5700: Francés"]
["5800: Otra lengua extranjera"]
[]
["Frecuencia de las reuniones"]
["1: Semanal"]
["2: Quincenal"]
["3: Mensual"]
["4: Bimestral"]
["5: Trimestral"]
["6: Semestral"]
["7: No se reúnen"]

{"sheet":"C101","index":2,"n_rows":719,"n_cols":22,"rows_kept":719,"cut":false,"hidden":false,"merged":[[579,8,579,10],[579,17,579,22],[580,8,580,11],[580,17,580,22],[0,21,2,23],[576,8,576,11],[577,8,577,11],[578,17,578,22],[516,10,516,11],[517,17,517,20],[438,18,440,22],[440,6,440,10],[449,19,449,21],[452,2,452,12],[458,2,458,12],[458,20,458,22],[567,6,567,10],[574,9,574,11],[574,17,574,22],[526,4,527,9],[526,10,527,10],[526,11,527,11],[562,21,562,22],[563,21,563,22],[528,4,528,9],[429,14,431,21],[431,4,431,9],[437,19,437,20],[532,4,533,6],[1,4,1,20],[2,4,2,20],[488,16,488,17],[496,5,496,6],[503,3,503,4],[504,20,504,22]]}
[null,null,null,null,null,null,null,null,null,null,null,null,null,null,null,null,null,null,null,null,null,"3AP"]
[null,null,null,null,"CENSO EDUCATIVO 2022"]
[null,null,null,null,"MATRÍCULA, DOCENTES Y MATERIALES EDUCATIVOS"]
[]
[]
["GESTIÓN"]
[]
[]
[]
[]
[]
[]
[]
[]
[]
[]
[]
[]
[]
[]
[]
[]
[]
[]
[]
[]
[]
[]
[]
[]
[]
[]
[]
[]
[]
[]
[]
[]
[]
[]
[]
[]
[]
[]
[]
[]
[]
[]
[]
[]
[]
[]
[]
[]
[]
[]
[]
[]
[]
[]
[]
[]
[]
[]
[]
[]
[]
[]
[]
[]
[]
[]
[]
[]
[]
[]
[]
[]
[]
[]
[]
[]
[]
[]
[]
[]
[]
[]
[]
[]
[]
[]
[]
[]
[]
[]
[]
[]
[]
[]
[]
[]
[]
[]
[]
[]
[]
[]
[]
[]
[]
[]
[]
[]
[]
[]
[]
[]
[]
[]
[]
[]
[]
[]
[]
[]
[]
[]
[]
[]
[]
[]
[]
[]
[]
[]
[]
[]
[]
[]
[]
[]
[]
[]
[]
[]
[]
[]
[]
[]
[]
[]
[]
[]
[]
[]
[]
[]
[]
[]
[]
[]
[]
[]
[]
[]
[]
[]
[]
[]
[]
[]
[]
[]
[]
[]
[]
[]
[]
[]
[]
[]
[]
[]
[]
[]
[]
[]
[]
[]
[]
[]
[]
[]
[]
[]
[]
[]
[]
[]
[]
[]
[]
[]
[]
[]
[]
[]
[]
[]
[]
[]
[]
[]
[]
[]
[]
[]
[]
[]
[]
[]
[]
[]
[]
[]
[]
[]
[]
[]
[]
[]
[]
[]
[]
[]
[]
[]
[]
[]
[]
[]
[]
[]
[]
[]
[]
[]
[]
[]
[]
[]
[]
[]
[]
[]
[]
[]
[]
[]
[]
[]
[]
[]
[]
[]
[]
[]
[]
[]
[]
[]
[]
[]
[]
[]
[]
[]
[]
[]
[]
[]
[]
[]
[]
[]
[]
[]
[]
[]
[]
[]
[]
[]
[]
[]
[]
[]
[]
[]
[]
[]
[]
[]
[]
[]
[]
[]
[]
[]
[]
[]
[]
[]
[]
[]
[]
[]
[]
[]
[]
[]
[]
[]
[]
[]
[]
[]
[]
[]
[]
[]
[]
[]
[]
[]
[]
[]
[]
[]
[]
[]
[]
[]
[]
[]
[]
[]
[]
[]
[]
[]
[]
[]
[]
[]
[]
[]
[]
[]
[]
[]
[]
[]
[]
[]
[]
[]
[]
[]
[]
[]
[]
[]
[]
[]
[]
[]
[]
[]
[]
[]
[]
[]
[]
[]
[]
[]
[]
[]
[]
[]
[]
[]
[]
[]
[]
[]
[]
[]
[]
[]
[]
[]
[]
[]
[]
[]
[]
[]
[]
[]
[]
[]
[]
[]
[]
[]
[]
[]
[]
[]
[]
[]
[]
[]
[{"$f":"IF(OR('C100'!J21<>\"\",'C100'!O21<>\"\"),\"X\",\"\")","v":""},null,"D. SOBRE LA BASE DEL CENSO DE POBLACIÓN Y VIVIENDA 2017 DEL INEI"]
[{"$f":"IF('C100'!U21<>\"\",\"X\",\"\")","v":""},null,"178. SEGÚN LAS COSTUMBRES Y EL ORIGEN FAMILIAR, ¿USTED CONSIDERA"]
[null,null,null,"QUE SU SERVICIO/NIVEL EDUCATIVO CUENTA CON ESTUDIANTES"]
[null,null,null,"PERTENECIENTES A LOS SIGUIENTES GRUPOS ÉTNICOS?",null,null,null,null,null,null,null,null,null,null,"SOLO SI MARCÓ DOS O MÁS ALTERNATIVAS EN LA PREGUNTA ANTERIOR, RESPONDA:"]
[]
[{"$f":"IF(K432>1,\"X\",\"\")","v":""},null,null,"CÓDIGO","GRUPO ÉTNICO",null,null,null,null,null,{"$f":"COUNTIF(L433:L441,\"SI\")","v":0}," SI - NO"]
[null,null,null,1,"Quechua",null,null,null,null,null,null,null,{"$f":"IF(L433=\"SI\",1,0)","v":0}]
[null,null,null,2,"Aimara",null,null,null,null,null,null,null,{"$f":"IF(L434=\"SI\",1,0)","v":0}]
[null,null,null,3,"Nativo o indígena de la Amazonía",null,null,null,null,null,null,null,0]
[null,null,null,4,"Perteneciente o parte de otro pueblo indígena u originario",null,null,null,null,null,null,null,0,"179. ¿EXISTE UN GRUPO QUE TENGA MAYOR CANTIDAD DE ESTUDIANTES?"]
[null,null,null,5,"Negro moreno, zambo, mulato/Pueblo afroperuano o afrodescendiente",null,null,null,null,null,null,null,0]
[null,null,null,6,"Blanco",null,null,null,null,null,null,null,0,null,"Sí",null,null,null,"Código  :  "]
[null,null,null,7,"Mestizo",null,null,null,null,null,null,null,0,null,null,null,null,null,"Indique el grupo étnico en el que identifica mayor cantidad de estudiantes utilizando el COD. seleccionado en la pregunta 178."]
[null,null,null,8,"Asiático peruano",null,null,null,null,null,null,null,0,null,"No"]
[null,null,null,9,"Otro  especifique",null,"",null,null,null,null,null,0]
[null,null,null,null,null,null,null,null,null,null,null,{"$f":"COUNTIF(L433:L441,\"SI\")+COUNTIF(L433:L441,\"NO\")","v":0}]
[]
[null,null,"E. CARACTERÍSTICAS DE LA ENSEÑANZA EN CONTEXTOS BILINGÜES (SOLO GESTIÓN PÚBLICA)"]
[null,null,"180. ESTE SERVICIO/NIVEL EDUCATIVO, ¿ESTÁ RECONOCIDO COMO EIB?",null,null,null,null,null,null,null,null,null,null,"183. USTED, SEÑOR(A) DIRECTOR(A), ¿CONOCE SI EN LA COMUNIDAD DONDE SE ENCUENTRA EL"]
[null,null,null,null,null,null,null,null,null,null,null,null,null,"SERVICIO/NIVEL EDUCATIVO, LOS PADRES DE FAMILIA, OTROS ADULTOS Y/O ANCIANOS Y ANCIANAS"]
[null,null,null,null,null,"EIB de Fortalecimiento",null,null,"",null,null,null,null,"HABLAN UNA LENGUA ORIGINARIA?"]
[null,null,null,"Sí",null,"EIB de Revitalización"]
[null,null,null,null,null,"EIB en Ámbitos Urbano",null,null,""]
[null,null,null,null,null,null,null,null,{"$f":"CONCATENATE(I448,I449)","v":""},null,null,null,null,null,"Sí",null,null,null,"¿Qué lengua originaria?   "]
[null,null,null,"No","",null,"Pase a la pregunta 183.",null,null,null,null,null,null,null,null,null,null,null,null,"Anote el código según la"]
[null,null,null,null,null,null,null,null,null,null,null,null,null,null,"No","",null,null,null,"tabla de lenguas originarias"]
[null,null,"SOLO SI ES EIB DE FORTALECIMIENTO, RESPONDA:",null,null,null,null,null,null,null,null,null,null,null,null,null,null,null,null,"de la página 15"]
[null,null,"181. ESTE SERVICIO/NIVEL EDUCATIVO, ¿OFRECE ENSEÑANZA DEL CASTELLANO COMO SEGUNDA LENGUA?",null,null,null,null,null,null,null,null,null,null,"184. LOS ESTUDIANTES DE ESTE SERVICIO/NIVEL EDUCATIVO, ¿HABLAN UNA LENGUA ORIGINARIA?"]
[null,null," "]
[]
[null,null,null,"Sí","",null,null,null,"No","",null,null,null,null,"Sí",""]
[null,null,null,null,null,null,null,null,null,null,null,null,null,null,null,null,"Todos","",null,null,"¿Qué lengua  originaria?"]
[null,null,"SOLO SI ES EIB DE REVITALIZACIÓN O EIB EN ÁMBITOS URBANOS, RESPONDA:",null,null,null,null,null,null,null,null,null,null,null,null,null,"La mayoría","",null,null,""]
[null,null,"182. ESTE SERVICIO/NIVEL EDUCATIVO, ¿OFRECE ENSEÑANZA DE LA LENGUA ORIGINARIA",null,null,null,null,null,null,null,null,null,null,null,null,null,"Pocos",""]
[null,null," COMO SEGUNDA LENGUA?",null,null,null,null,null,null,null,null,null,null,null,null,null,null,{"$f":"CONCATENATE(R458,R459,R460)","v":""},null,null,"Anote el código según la"]
[null,null,null,null,null,null,null,null,null,null,null,null,null,null,"No",null,null,null,null,null,"tabla de lenguas originarias"]
[null,null,null,"Sí","",null,null,null,"No","",null,null,null,null,null,null,null,null,null,null,"de la página 15"]
[]
[]
[null,null,"F. ATENCIÓN A LA DIVERSIDAD Y SOBRE EL SERVICIO DE APOYO Y ASESORAMIENTO A LAS NECESIDADES EDUCATIVAS ESPECIALES - SAANEE"]
[null,null,"185. ESTE SERVICIO/NIVEL EDUCATIVO ¿TIENE TECNOLOGÍA PARA RESPONDER A",null,null,null,null,null,null,null,null,null,null,"193. PARA LOS CASOS DETECTADOS DE ESTUDIANTES CON OTRO TIPO DE NEE O"]
[null,null," LAS NECESIDADES EDUCATIVAS ESPECIALES (NEE) DE LOS ESTUDIANTES?",null,null,null,null,null,null,null,null,null,null," ENFERMEDAD, INDIQUE ¿CUÁL FUE SU SITUACIÓN AL MATRICULARSE EN EL"]
[null,null,null,"Sí",null,null,null,null,"No",null,null,null,null," PRESENTE AÑO 2022?"]
[]
[null,null,"186. ESTE SERVICIO/NIVEL EDUCATIVO ¿CUENTA CON MATERIALES EDUCATIVOS",null,null,null,null,null,null,null,null,null,null,null,"SITUACIÓN AL MATRICULARSE",null,null,null,null,null,null,"N° de estudiantes detectados"]
[null,null," PARA ATENDER A ESTUDIANTES CON NECESIDADES EDUCATIVAS ESPECIALES (NEE)?",null,null,null,null,null,null,null,null,null,null,null,"Número de estudiantes con otro tipo de NEE o\n enfermedad"]
[null,null,null,"Sí",null,null,null,null,"No",null,null,null,null,null,"que desertaron o se retiraron"]
[null,null,null,null,null,null,null,null,null,null,null,null,null,null,"Número de estudiantes con otro tipo de NEE o\n enfermedad"]
[null,null,"187.  EL LOCAL DONDE OPERA ESTE SERVICIO/NIVEL EDUCATIVO, ¿CUENTA CON INFRAESTRUCTURA",null,null,null,null,null,null,null,null,null,null,null,"que promovieron de grado"]
[null,null," PARA RESPONDER A LA DIVERSIDAD O LAS NEE, (RAMPA, SEÑALÉTICA, ENTRE OTROS)?"]
[null,null,null,"Sí",null,null,null,null,"No"]
[null,null,null,null,null,null,null,null,null,null,null,null,null,"194.  ¿EL SERVICIO/NIVEL EDUCATIVO HA RECIBIDO ASISTENCIA Y ORIENTACION PARA LA"]
[null,null,null,null,null,null,null,null,null,null,null,null,null,"   ATENCIÓN EDUCATIVA DE ESTUDIANTES CON DISCAPACIDAD, DE PARTE DEL SERVICIO DE"]
[null,null,null,null,null,"¿Es suficiente? ",null,null,null,null,null,null,null,"   APOYO EDUCATIVO VIRTUAL (SAEV)?"]
[null,null,null,null,null,"Sí",null,null,"No"]
[null,null,null,null,null,null,null,null,null,null,null,null,null,null,"Sí","",null,"No"]
[null,null,"188. ESTE SERVICIO/NIVEL EDUCATIVO, ¿CUENTA CON UN ESPECIALISTA DEL EQUI PO DE SERVICIO DE"]
[null,null,null,"APOYO Y ASESORAMIENTO DE LAS NECESIDADES EDUCA TIVAS ESPECIALES (SAANEE) QUE "]
[null,null,null,"LE HAYA SIDO ASIGNADO?"]
[null,null,null,"Sí",null,null,null,null,"No",null,null,null,null,null,null,null,"¿Cuántos estudiantes con discapacidad están a cargo de los docentes que han"]
[null,null,null,null,null,null,null,null,null,null,null,null,null,null,null,null,"recibido asistencia y orientación por el Servicio de Apoyo Educativo Virtual (SAEV)?"]
[null,null,"189. DURANTE EL PRESENTE AÑO, ESTE SERVICIO/NIVEL EDUCATIVO ¿HA RECIBIDO ASISTENCIA Y"]
[null,null,null,"ORIENTACIÓN PARA LA ATENCIÓN EDUCATIVA DE ESTUDIANTES CON DISCAPACIDAD, DE PARTE",null,null,null,null,null,null,null,null,null,null,null,null,"Cantidad :",null,""]
[null,null,null," DEL EQUIPO DE SERVICIO DE APOYO Y ASESO RAMIENTO DE LAS NECESIDADES EDUCATIVAS"]
[null,null,null," ESPECIALES (SAANEE)?"]
[null,null,null,null,null,null,null,null,null,null,null,null,null,"195.  ¿DURANTE LOS ÚLTIMOS 5 AÑOS, EL PERSONAL DE ESTE SERVICIO/NIVEL EDUCATIVO"]
[null,null,null,"Sí",null,"No  ",null,null,null,"Pase a la pregunta 191",null,null,null,"   (YA SEA PERSONAL DIRECTIVO/JERÁRQUICO, PERSONAL DOCENTE, AUXILIARES O PERSONAL"]
[null,null,null,null,null,null,null,null,null,null,null,null,null,"   ADMINISTRATIVO), HA RECIBIDO CAPACITACIÓN EN TEMAS DE EDUCACIÓN INCLUSIVA O "]
[null,null,null,null,null,"¿Cuántas asesorías (presenciales o virtuales) ha brindado el equipo",null,null,null,null,null,null,null,"   ATENCIÓN A LA DIVERSIDAD DE PARTE DE ESPECIALISTAS DE DRE/GRE Y/O UGEL, O ALGUNA"]
[null,null,null,null,null,"SAANEE a este servicio educativo 2022?",null,null,null,null,null,null,null,"   OTRA INSTITUCIÓN?"]
[null,null,null,null,null,"Cantidad :",null,null,null,null,null,null,null,null,null,null,null,null,"¿Qué instancia o institución brindó la capacitación?"]
[null,null,null,null,null,null,null,null,null,null,null,null,null,null,null,null,null,null,"(Marque con una  “X” una o más opciones)"]
[null,null,"190.  ¿CUÁNTOS DOCENTES DE ESTE SERVICIO/NIVEL EDUCATIVO HAN RECIBIDO ASISTENCIA Y",null,null,null,null,null,null,null,null,null,null,null,"Sí",null,null,null,null,"Minedu"]
[null,null,null,"ORIENTACIÓN PARA LA ATENCIÓN EDUCATIVA DE ESTUDIANTES CON DISCAPACIDAD DE PARTE",null,null,null,null,null,null,null,null,null,null,null,null,null,null,null,"DRE/GRE"]
[null,null,null,"DEL EQUIPO DE SERVICIO DE APOYO Y ASESORAMIENTO DE LAS NECESIDADES EDUCATIVAS",null,null,null,null,null,null,null,null,null,null,null,null,null,null,null,"UGEL"]
[null,null,null,"ESPECIALES (SAANEE) ?",null,null,null,null,null,null,null,null,null,null,null,null,null,null,null,"Organizaciones sin fines de lucro"]
[null,null,null,null,null,null,null,null,null,null,null,null,null,null,"No",null,null,null,null,"Entidad privada, como auspicio"]
[null,null,null,"Cantidad :",null,null,null,null,null,null,null,null,null,null,null,null,null,null,null,"Inversión propia"]
[null,null,null,null,null,null,null,null,null,null,null,null,null,null,null,null,null,null,null,"Otros"]
[null,null,"191. ¿ALGUNO DE LOS DOCENTES DE ESTE SERVICIO/NIVEL EDUCATIVO HAN RECIBIDO O RECIBEN"]
[null,null,"  CAPACITACIÓN EN TEMAS RELACIONADOS A INCLUSIÓN Y ATENCIÓN A LA DIVERSIDAD EN LOS"]
[null,null,"  ÚLTIMOS 2 AÑOS?"]
[null,null,null,null,null,null,null,"¿De quién recibieron o reciben?",null,null,null,null,null,"196.  ¿QUÉ ESTRATEGIAS FORMATIVAS VIRTUALES PRIORIZARÍA SOBRE TEMAS DE"]
[null,null,null,"Sí   ","",null,null,"(Marque con una  “X” una o más opciones)",null,null,null,null,null,null,"EDUCACIÓN INCLUSIVA O ATENCIÓN A LA DIVERSIDAD?"]
[null,null,null,null,null,null,null,null,"","Minedu",null,null,null,null,null,"(Marque con una  “X” una o más opciones)"]
[null,null,null,null,null,null,null,null,"","DRE/GRE",null,null,null,null,null,null,"Curso virtual tutorado"]
[null,null,null,null,null,null,null,null,"","UGEL",null,null,null,null,null,null,"Curso virtual autoformativo"]
[null,null,null,"No   ",null,null,null,null,"","Organizaciones sin fines de lucro",null,null,null,null,null,null,"Grupo o círculo de interaprendizaje"]
[null,null,null,null,null,null,null,null,"","Entidad privada, como auspicio",null,null,null,null,null,null,"Comunidades profesionales de aprendizaje"]
[null,null,null,null,null,null,null,null,"","Inversión propia",null,null,null,null,null,null,"Asesoría personalizada"]
[null,null,null,null,null,null,null,null,"","Otros","",null,null,null,null,null,"Pasantia"]
[null,null,null,null,null,null,null,null,null,null,null,null,null,null,null,null,"Otros "]
[]
[null,null,"192. EN ESTE SERVICIO/NIVEL EDUCATIVO ¿SE HAN DETECTADO OTROS TIPOS DE NECESIDADES"]
[null,null,null," EDUCATIVAS ESPECIALES O ENFERMEDAD ENTRE LOS MATRICULADOS?",null,null,null,null,null,null,null,null,null,"197.  ¿EL SERVICIO/NIVEL EDUCATIVO, CUENTA CON RESPONSABLE DE INCLUSIÓN?"]
[]
[null,null,null,"Sí   ",null,null,"No","",null,"Pase a la pregunta 194."]
[null,null,null,null,"     Completa  la tabla",null,null,null,null,null,null,null,null,null,"Sí",null,null,"No"]
[null,null,null,null,"(Marque con una “X” en “Si” o “No” según corresponda en cada tipo de NEE)"]
[null,null,null,null,"      "]
[null,null,null,null,"OTRO TIPO DE NEE O ENFERMEDAD",null,null,null,null,null,"¿Detectado?\nSI / NO","Nro.\nEstudiantes"]
[]
[null,null,null,null," TOTAL DE ESTUDIANTES DETECTADOS",null,null,null,null,null,null,{"$f":"SUM(L530:L534)","v":0}]
[null,null,null,1,"Física"]
[null,null,null,2,"Talla baja"]
[null,null,null,3,"Enfermedades raras"]
[null,null,null,4,"Transtornos y problemas de aprendizaje",null,null,"Dislexia"]
[null,null,null,null,null,null,null,"TDAH"]
[null,null,null,null,null,null,null,null,null,null,{"$f":"COUNTIF(K530:K534,\"SI\")+COUNTIF(K530:K534,\"NO\")","v":0}]
[]
[null,null,"G. LOGÍSTICA POR COVID-19 (SOLO GESTIÓN PÚBLICA)"]
[null,null,"198.A.  EL LOCAL DONDE OPERA ESTE SERVICIO/NIVEL EDUCATIVO, ¿CUENTA CON INFRAESTRUCTURA",null,null,null,null,null,null,null,null,null,null,"198.C. ESTE SERVICIO/NIVEL EDUCATIVO, ¿CUENTA CON EL KIT DE HIGIENE PARA "]
[null,null,null,"  PARA RESPONDER A LA DIVERSIDAD O LAS NEE, (RAMPA, SEÑALÉTICA, ENTRE OTROS)?",null,null,null,null,null,null,null,null,null,"LAVADO DE MANOS CUYA ENTREGA ES GESTIONADA POR EL MINISTERIO DE EDUCACIÓN?"]
[null,null,null,"Sí   ","",null,null,null,"No",""]
[]
[]
[null,null,null,null,null,"¿Estos insumos son suficientes para asignarlos a todo el",null,null,null,null,null,null,null,null,"Sí","",null,"No",""]
[null,null,null,null,null,"personal que labora presencialmente en a I. E.?"]
[null,null,null,null,null,"Sí","",null,"No",""]
[]
[null,null,"198.B. LOS ESTUDIANTES DE ESTE SERVICIO/NIVEL EDUCATIVO QUE ASISTEN PRESENCIALMENTE,",null,null,null,null,null,null,null,null,null,null,null,null,null,null,null,"¿Por qué motivo?"]
[null,null,null,"¿HAN RECIBIDO EL KIT COVID-19 CONFORMADO POR: MASCARILLAS TEXTILES (3 MASCARILLAS POR",null,null,null,null,null,null,null,null,null,null,null,null,null,null,"(Marque con una  “X” una opción)"]
[null,null,null,"CADA 2 MESES) O MASCARILLAS QUIRÚRGICAS (1 MASCARILLA DIARIA)? ",null,null,null,null,null,null,null,null,null,null,null,null,null,null,"","No está focalizado \no no es beneficiario"]
[null,null,null,"Sí   ","",null,null,null,"No","",null,null,null,null,null,null,null,null,"","Otro motivo"]
[]
[]
[null,null,null,null,null,"¿Estos insumos son suficientes para asignarlos a todos"]
[null,null,null,null,null,"las/los estudiantes que asisten presencialmente a la I. E.?"]
[null,null,null,null,null,"Sí","",null,"No",""]
[]
[]
[null,null,"H. SUPERVISIÓN DE LA PRESTACIÓN DEL SERVICIO EDUCATIVO DE GESTIÓN PRIVADA"]
[null,null,"199.A. EN EL AÑO 2021, ¿ESTE SERVICIO/NIVEL EDUCATIVO FUE SUPERVISADO",null,null,null,null,null,null,null,null,null,null,"199.C. FORMA DE CONSTITUCIÓN (solo para personas jurídicas)"]
[null,null,"POR LA UGEL A LA QUE PERTENECE?",null,null,null,null,null,null,null,null,null,null,null,"Marque con una ‘’X’’ y registra la información solicitada según corresponda"]
[]
[null,null,null,"Sí   ","",null,null," No  ","",null,null,null,null,null,"","  Sociedad"]
[null,null,null,null,null,null,null,null,null,null,null,null,null,null,null,null,null,"N° de Partida Regristral  ",null,null,null,""]
[null,null,null,null,"¿Qué aspectos fueron supervisados?",null,null,null,null,null,null,null,null,null,null,null,null,"N° de Asiento Registral  ",null,null,null,""]
[null,null,null,null,"(Marque con una  “X” una o más opciones)"]
[null,null,null,null,"","Entrega de información a los usuarios(as)\nrespecto del servicio educativo"]
[null,null,null,null,"","Infraestructura educativa",null,null,null,null,null,null,null,null,"","  Asociación"]
[null,null,null,null,"","Otros",""]
[]
[null,null,"199.B. COMPLETE LOS SIGUIENTES DATOS SOBRE LA PROMOTORÍA DE ESTE SERVICIO/",null,null,null,null,null,null,null,null,null,null,"199.D. ¿ESTE SERVICIO/NIVEL EDUCATIVO PERTENECE A ALGUNA ASOCIACIÓN QUE AGRUPE A II.EE. PRIVADAS?"]
[null,null,null,"NIVEL EDUCATIVO DE GESTIÓN PRIVADA"]
[null,null,null,"Marque con una ‘’x’’ y registra la información solicitada según corresponda",null,null,null,null,null,null,null,null,null,null," Sí","",null,null," No  ",""]
[null,null,null,"Tipo de persona:"]
[]
[null,null,null,null,"","  Natural",null,"",":","",null,null,null,null,"Nombre de la asociación:",null,null,""]
[]
[null,null,null,null,null,null,null,"Nombres  ","",null,null,null,null,null,"Datos de contacto de la asociación:"]
[null,null,null,null,null,null,null,"Apellidos  ",""]
[null,null,null,null,null,null,null,null,null,null,null,null,null,null,null,null,"Web ",""]
[null,null,null,null,"","  Jurídica",null,"RUC  ","",null,null,null,null,null,null,null,"Correo electrónico ",""]
[null,null,null,null,null,null,null,"Razón social  ","",null,null,null,null,null,null,null,"Teléfono/celular ",""]
[]
[]
[]
[]
[]
[]
[]
[]
[]
["Dias"]
[1]
[2]
[3]
[4]
[5]
[6]
[7]
[8]
[9]
[10]
[11]
[12]
[13]
[14]
[15]
[16]
[17]
[18]
[19]
[20]
[21]
[22]
[23]
[24]
[25]
[26]
[27]
[28]
[29]
[30]
[31]
[]
["Meses"]
["01: Enero"]
["02: Febrero"]
["03: Marzo"]
["04: Abril"]
["05: Mayo"]
["06: Junio"]
["07: Julio"]
["08: Agosto"]
["09: Septiembre"]
["10: Octubre"]
["11: Noviembre"]
["12: Diciembre"]
["01: Enero"]
["02: Febrero"]
["03: Marzo"]
["04: Abril"]
[]
["Lengua originaria"]
["0100: Castellano"]
["0200: Achuar"]
["0300: Aimara"]
["0400: Amahuaca"]
["0500: Arabela"]
["0600: Ashaninka"]
["0610: Asheninka"]
["0700: Awajún"]
["0800: Bora"]
["0900: Kapanawa"]
["1000: Cashinahua"]
["1100: Kawki"]
["1200: Chamikuro"]
["1300: Ese eja"]
["1400: Harakbut"]
["1500: Iñapari"]
["1600: Ikitu"]
["1700: Iskonawa"]
["1800: Jaqaru"]
["1900: Kakataibo"]
["2000: Kakinte"]
["2110: Kandozi-chapra (chapra)"]
["2120: Kandozi-chapra (kandozi)"]
["2200: Kukama kukamiria"]
["2300: Madija"]
["2400: Maijiki"]
["2500: Matsés"]
["2600: Matsigenka"]
["2700: Muniche"]
["2800: Murui-muinani"]
["2900: Matsigenka-montetokunirira"]
["3000: Nomatsigenga"]
["3100: Ocaina"]
["3200: Omagua"]
["3310: Quechua amazónico (Kichwa)"]
["3321: Quechua central (Ancash)"]
["3322: Quechua central (Huánuco)"]
["3323: Quechua central (Wanka)"]
["3324: Quechua central (Pasco)"]
["3331: Quechua norteño (Cajamarca)"]
["3332: Quechua norteño (Inkawasi Kañaris)"]
["3341: Quechua sureño (Chanka)"]
["3342: Quechua sureño (Collao)"]
["3400: Resigaro"]
["3500: Secoya"]
["3600: Sharanahua"]
["3700: Shawi"]
["3800: Shipibo-Konibo"]
["3900: Shiwilu"]
["4000: Taushiro"]
["4100: Ticuna"]
["4200: Urarina"]
["4300: Wampis"]
["4400: Yagua"]
["4500: Yaminahua"]
["4600: Yanesha"]
["4700: Yine"]
["4800: Nahua"]
["5000: Otra lengua originaria"]
["Lengua extranjera"]
["5100: Alemán"]
["5200: Inglés"]
["5300: Italiano"]
["5400: Japonés"]
["5500: Portugués"]
["5600: Ruso"]
["5700: Francés"]
["5800: Otra lengua extranjera"]
[]
["Frecuencia de las reuniones"]
["1: Semanal"]
["2: Quincenal"]
["3: Mensual"]
["4: Bimestral"]
["5: Trimestral"]
["6: Semestral"]
["7: No se reúnen"]

{"sheet":"C200","index":3,"n_rows":76,"n_cols":24,"rows_kept":76,"cut":false,"hidden":false,"merged":[[0,18,2,20],[6,2,6,20],[8,2,8,3],[1,4,1,16],[2,4,2,16],[11,17,11,18],[11,19,11,20],[30,4,30,18],[35,4,37,9],[35,10,36,11],[36,12,36,13],[36,14,36,15],[36,16,36,17],[36,18,36,19],[36,20,36,21],[10,7,11,8],[11,9,11,10],[11,11,11,12],[11,15,11,16],[11,13,11,14],[10,2,12,2],[13,2,16,2],[30,2,30,3],[21,7,22,8],[19,2,19,3],[10,3,12,6],[36,22,36,23],[39,4,41,5],[35,12,35,23],[21,9,21,14],[23,2,26,2],[23,7,23,8],[24,7,24,8],[25,7,25,8],[26,7,26,8],[21,2,22,2],[21,3,22,6]]}
[null,null,null,null,null,null,null,null,null,null,null,null,null,null,null,null,null,null,"3AP"]
[null,null,null,null,"CENSO EDUCATIVO 2022"]
[null,null,null,null,"MATRÍCULA, DOCENTES Y MATERIALES EDUCATIVOS"]
[]
[]
[]
[null,null,"200. MATRÍCULA Y SECCIONES\nDocumento fuente : Nómina de matrícula"]
[]
[null,null,"CUADRO 201.",null,"MATRÍCULA TOTAL, POR GRADO DE ESTUDIO, SEGÚN TURNO DE ENSEÑANZA"]
[]
[null,null,"VARIABLE","SITUACIÓN AL MATRICULARSE",null,null,null,"TOTAL",null,"GRADO DE ESTUDIO"]
[null,null,null,null,null,null,null,null,null,"1º",null,"2º",null,"3º",null,"4º",null,"5º",null,"6º"]
[null,null,null,null,null,null,null,"H","M","H","M","H","M","H","M","H","M","H","M","H","M"]
["00",null,"MATRICULA","TOTAL",null,null,null,{"$f":"SUM(H15:H17)","v":0},0,0,0,0,0,0,0,0,0,0,0,0,0]
["01",null,null,"MAÑANA",null,null,null,{"$f":"J15+L15+N15+P15+R15+T15","v":0},0]
["02",null,null,"TARDE",null,null,null,0,0]
["03",null,null,"DISCONTINUO",null,null,null,0,0]
[null,null,"Nota.-","Incluya a todos los estudiantes matriculados en este servicio/nivel educativo, así la prestación del servicio sea presencial, semipresencial o virtual."]
[]
[null,null,"CUADRO 202.",null,"SECCIONES  POR GRADO DE ESTUDIO, SEGÚN TURNO DE ENSEÑANZA"]
[]
[null,null,"VARIABLE","SITUACIÓN AL MATRICULARSE",null,null,null,"TOTAL",null,"GRADO DE ESTUDIO"]
[null,null,null,null,null,null,null,null,null,"1º","2º","3º","4º","5º","6º"]
["00",null,"SECCIONES","TOTAL",null,null,null,{"$f":"SUM(H25:I27)","v":0},null,{"$f":"SUM(J25:J27)","v":0},0,0,0,0,0]
["01",null,null,"MAÑANA  ",null,null,null,{"$f":"SUM(J25:O25)","v":0}]
["02",null,null,"TARDE   ",null,null,null,{"$f":"SUM(J26:O26)","v":0}]
["03",null,null,"DISCONTINUO ",null,null,null,{"$f":"SUM(J27:O27)","v":0}]
[null,null,"Nota.-","Incluya a todos los estudiantes matriculados en este servicio/nivel educativo, así la prestación del servicio sea presencial, semipresencial o virtual."]
[]
[]
[null,null,"CUADRO 203.",null,"ESTUDIANTES MATRICULADOS POR GRADO DE ESTUDIO Y SEXO, Y QUE SE ENCUENTREN EN SITUACIÓN DE HOSPITALIZACIÓN AL MOMENTO\nDEL REPORTE DEL CENSO EDUCATIVO 2022"]
[]
[]
[null,null,"ESTE SERVICIO/NIVEL EDUCATIVO, ¿CUENTA CON AL MENOS UN ESTUDIANTE EN SITUACIÓN DE HOSPITALIZACIÓN?"]
[]
[null,null,null,null,"SITUACIÓN DE HOSPITALIZACIÓN",null,null,null,null,null,"TOTAL",null,"GRADO DE ESTUDIO Y SEXO"]
[null,null,null,null,null,null,null,null,null,null,null,null,"1º",null,"2º",null,"3º",null,"4º",null,"5º",null,"6º"]
[null,null,null,null,null,null,null,null,null,null,"H","M","H","M","H","M","H","M","H","M","H","M","H","M"]
["00",null,null,"Sí       ",null,null,"TOTAL",null,null,null,{"$f":"SUM(K40:K42)","v":0},{"$f":"SUM(L40:L42)","v":0},{"$f":"SUM(M40:M42)","v":0},0,0,0,0,0,0,0,0,0,0,0]
["01",null,null,null,"Estudiantes en situación de hospitalización",null,"Menos de 15 días de hospitalización",null,null,null,{"$f":"M40+O40+Q40+S40+U40+W40","v":0},0]
["02",null,null,"No",null,null,"De 15 a 30 días de hospitalización",null,null,null,0,0]
["03",null,"Pase a la sección 300.",null,null,null,"De 30 a más días de hospitalización",null,null,null,0,0]
[null,null,null,null,"Nota:","Los totales de esta tabla deben ser iguales o menores a los de la tabla 201."]
[]
[]
[]
[]
[]
["Horas"]
["07"]
["08"]
["09"]
["10"]
["11"]
["12"]
["13"]
["14"]
["15"]
["16"]
["17"]
["18"]
["19"]
["20"]
[]
["Minutos"]
["00"]
["10"]
["15"]
["20"]
["25"]
["30"]
["35"]
["40"]
["45"]
["50"]
["55"]

{"sheet":"C300","index":4,"n_rows":320,"n_cols":73,"rows_kept":320,"cut":false,"hidden":false,"merged":[[14,30,14,31],[15,11,17,11],[15,21,17,21],[15,28,17,28],[15,20,17,20],[15,22,17,22],[15,27,17,27],[15,29,17,29],[15,19,17,19],[15,26,17,26],[15,15,15,16],[14,15,14,16],[15,18,17,18],[15,17,17,17],[15,25,17,25],[15,70,17,70],[16,59,17,59],[15,40,17,40],[15,65,17,65],[15,64,17,64],[16,54,17,54],[16,62,16,63],[16,56,17,56],[16,53,17,53],[16,52,17,52],[15,67,17,67],[15,68,17,68],[15,69,17,69],[14,41,14,46],[15,41,16,46],[16,49,17,49],[16,48,17,48],[14,47,14,56],[16,55,17,55],[16,51,17,51],[16,47,17,47],[15,32,17,32],[15,30,16,31],[15,37,17,37],[15,34,17,34],[15,35,17,35],[15,36,17,36],[15,33,17,33],[15,38,17,38],[15,39,17,39],[16,50,17,50],[15,66,17,66],[16,61,17,61],[16,60,17,60],[16,57,17,57],[16,58,17,58],[6,11,6,25],[15,24,17,24],[15,23,17,23],[0,25,2,25],[1,14,1,24],[2,14,2,24],[14,61,14,63],[15,47,15,56],[14,57,14,60],[15,61,15,63],[15,57,15,60]]}
[null,null,null,null,null,null,null,null,null,null,null,null,null,null,null,null,null,null,null,null,null,null,null,null,null,"3AP"]
[null,null,null,null,null,null,null,null,null,null,null,null,null,null,"CENSO EDUCATIVO 2022"]
[null,null,null,null,null,null,null,null,null,null,null,null,null,null,"MATRÍCULA, DOCENTES Y MATERIALES EDUCATIVOS"]
[]
["PERSONAL",{"$f":"P10+W10+Y10","v":0}]
[]
["DOCENTES",{"$f":"COUNTIF(R19:R318,\"01: Docente\")","v":0},null,null,null,null,null,null,null,null,null,"300. PERSONAL DOCENTE, AUXILIARES DE EDUCACIÓN Y ADMINISTRATIVOS (Para II.EE. Públicas y Privadas)"]
["AUXILIARES",{"$f":"COUNTIF(R19:R318,\"03: Aux. de Educación\")","v":0},null,null,null,null,null,null,null,null,null,"Anote los totales de personal que labora en su institución educativa."]
["ADMINISTRATIVOS",{"$f":"COUNTIF(R19:R318,\"02: Administrativo\")","v":0}]
["DOCENTE DE AULA",{"$f":"COUNTIF(AK19:AK318,\"05: (111)-Docente de Aula\")","v":0},null,null,null,null,null,null,null,null,null,null,null,null,"Total Docentes : ",null,null,null,"Docentes de aula : ",null,null,"Auxiliares  de Educación : ",null,"Administrativos : "]
["DOCENTES CON SECCIÓN",{"$f":"COUNTIF(AO19:AO318,\"SI\")","v":0}]
[null,{"$f":"B7+B8+B9","v":0},null,null,null,null,null,null,null,null,null,"A continuación, REGISTRE a todo el personal docente, auxiliares de educación y personal administrativo que se encuentre laborando en el servicio/nivel educativo durante el periodo de reporte del censo educativo."]
["LICENCIA",null,null,null,null,null,null,null,null,null,null,"(EXCLUYA al personal que se encuentre haciendo uso de licencia y a los que han sido destacados a otra IE/DRE/UGEL)"]
[null,null,null,null,null,null,null,null,null,null,null,null,null,null,null,null,null,null,null,null,null,null,null,null,"G. Pública",null,null,null,null,null,null,null,"G. Pública",null,null,"G. Pública",null,null,null,"G. Pública",null,null,null,null,null,null,null,null,null,null,null,null,null,null,null,null,null,null,null,null,null,null,null,null,null,"G. Pública"]
["DOC. LENGUA ORIGINARIA",{"$f":"SUM(J19:J318)","v":0},null,null,null,null,null,null,null,null,null,301,301.10000000000002,301.2,301.3,302,null,303,304,305,306,307,308,309,310,311,312,313,314,315,316,null,317,318,319,320,321,322,323,324,325,326,null,null,null,null,null,327,null,null,null,null,null,null,null,null,null,328,null,null,null,329,null,null,330,331,332,333,333.1,333.2,333.3]
["GESTION PRIVADA",{"$f":"IF(OR('C100'!J21=\"X\",'C100'!O21=\"X\"),1,IF('C100'!U21=\"X\",3,\"\"))","v":""},null,null,null,null,null,null,null,null,null,"Nº",null,null,null,"Documento de Identidad",null,"Tipo de\nPersonal","Edad","Sexo","Lengua\nmaterna","¿Domina una lengua originaria?\n\nSí - No","Lengua originaria\nque domina","Fuente de\nfinanciamiento","Condición\nlaboral","Modalidad de contrato","Máximo nivel\neducativo\nalcanzado","Especialidad Pedagógica\nque ha estudiado","¿En qué tipo de\ninstitución obtuvo su\nformación pedagógica?","Segunda especialidad","Estudios de Postgrado en Pedagogía",null,"Tiempo\nde\nservicio\n(en años)","Años de experiencia Laboral","Años de\nexperiencia\nlaboral en\neste servicio/\nnivel\neducativo","Escala\nmagisterial","Función o cargo","Situación en cargo\ndirectivo","Licencia\no\nDestaque","Jornada\nlaboral según\nNombramiento\no Contrato","¿Tiene secciones a cargo?","Grados atendidos\nmarque con una \"X\"\nsegún corresponda",null,null,null,null,null,"Área(s) curricular(es) a cargo (Marque con una \"X\" según corresponda)",null,null,null,null,null,null,null,null,null,"Conocimiento de Ingles",null,null,null,"Certificación de Inglés",null,null,"¿El docente enseña inglés?\nSí / No","Desde el año 2021 a la fecha, ¿ha recibido capacitación en la implementación del Currículo Nacional?\nSí - No","¿Cuenta con constancia de participación en el curso virtual autoformativo de CNEB? (Perú Educa)\nSí / No","¿Atiende a estudiantes con NEE asociadas a discapacidad?\n\nSí / No","¿Presenta alguna\ndiscapacidad?\n\n\n\nSí / No","Solo si respondió \nSí en la pregunta \n333.1 ¿Cúal es el \ntipo de discapacidad? ","¿Ha recibido asistencia y \norientación para la atención \neducativa de estudiantes con \ndiscapacidad de parte del \nequipo de Servicio de Apoyo\nEducativo Virtual (SAEV)?\nSí / No"]
[null,null,"Exp1","Exp2","Exp3","Exp4","Exp5","Exp6","Exp7","Exp8",null,null,"Apellido\nPaterno","Apellido\nMaterno","Nombres",302.10000000000002,302.2,null,null,null,null,null,null,null,null,null,null,null,null,null,null,null,null,null,null,null,null,null,null,null,null,null,null,null,null,null,null,"Mate-\nmática","Comu-\nnica-\nción","Inglés como lengua extranjera","Personal Social","Arte y Cultura","Ciencia y Tecno- logía","Educa-\nción\nFísica","Educa- ción Religiosa","Castellano como segunda Lengua","Tutoría y orienta- ción educativa","No Sabe","Habla","Lee","Escribe","No Tiene","Si Tiene"]
["302.1 Tipo de documento de Identidad","314. Tipo de inst. donde estudio","Corr","Escala","Gest","Secc","Fun- cion","Duplex","Fmt","Leng",null,null,null,null,null,"Tipo","Número",null,null,null,null,null,null,null,null,null,null,null,null,null,"Estudios de Maestría","Estudios de Doctorado",null,null,null,null,null,null,null,null,null,"1º","2º","3º","4º","5º","6º",null,null,null,null,null,null,null,null,null,null,null,null,null,null,null,"Nacional","Interna- cional"]
["01: DNI.","01: IESP (Público)",1,{"$f":"IF(AND(LEFT(R19,2)=\"01\",LEFT(Y19,2)=\"01\",LEFT(X19,2)=\"01\",E19=1),1,0)","v":0},{"$f":"$B$16","v":""},{"$f":"COUNTIF(AP19:AU19,\"X\")","v":0},{"$f":"IF(R19<>\"\",VALUE(LEFT(R19,2)),0)","v":0},{"$f":"IF(Q19<>\"\",COUNTIF($Q$19:$Q$318,Q19),0)","v":0},{"$f":"IF(L19<>\"\",1,0)","v":0},{"$f":"IF(AND(R19=\"01: Docente\",V19=\"SI\"),1,0)","v":0},{"$f":"IF(X19=$A$102,1,IF(X19=$A$103,2,IF(X19=$A$104,3,IF(X19=$A$105,4,IF(X19=$A$106,5,0)))))","v":2},{"$f":"IF($C19<=$B$5,C19,\"\")","v":""}]
["02: Carnet Ext.","02: IESP (Privado)",2,{"$f":"IF(AND(LEFT(R20,2)=\"01\",LEFT(Y20,2)=\"01\",LEFT(X20,2)=\"01\",E20=1),1,0)","v":0},{"$f":"$B$16","v":""},{"$f":"COUNTIF(AP20:AU20,\"X\")","v":0},{"$f":"IF(R20<>\"\",VALUE(LEFT(R20,2)),0)","v":0},{"$f":"IF(Q20<>\"\",COUNTIF($Q$19:$Q$318,Q20),0)","v":0},0,{"$f":"IF(AND(R20=\"01: Docente\",V20=\"SI\"),1,0)","v":0},2,{"$f":"IF($C20<=$B$5,C20,\"\")","v":""},null,null,null,null,null,null,null,null,null,null,null,null,null,null,null,null,null,null,null,null,null,null,null,null,null,null,null,null,null,null,null,null,null,null,null,null,null,null,null,null,null,null,null,null,null,null,null,null,null,null,null,null,null,null,null,null,null,null,null,"",""]
["03: Pasaporte","03: Universidad Privada",3,0,"",0,0,0,0,0,2,{"$f":"IF($C21<=$B$5,C21,\"\")","v":""},null,null,null,null,null,null,null,null,null,null,null,null,null,null,null,null,null,null,null,null,null,null,null,null,null,null,null,null,null,null,null,null,null,null,null,null,null,null,null,null,null,null,null,null,null,null,null,null,null,null,null,null,null,null,null,null,null,null,null,"",""]
[null,"04: Universidad Pública",4,0,"",0,0,0,0,0,2,"",null,null,null,null,null,null,null,null,null,null,null,null,null,null,null,null,null,null,null,null,null,null,null,null,null,null,null,null,null,null,null,null,null,null,null,null,null,null,null,null,null,null,null,null,null,null,null,null,null,null,null,null,null,null,null,null,null,null,null,"",""]
["303. Tipo de Personal","05: Sin formación pedagógica",5,0,"",0,0,0,0,0,2,"",null,null,null,null,null,null,null,null,null,null,null,null,null,null,null,null,null,null,null,null,null,null,null,null,null,null,null,null,null,null,null,null,null,null,null,null,null,null,null,null,null,null,null,null,null,null,null,null,null,null,null,null,null,null,null,null,null,null,null,"",""]
["01: Docente",null,6,0,"",0,0,0,0,0,2,"",null,null,null,null,null,null,null,null,null,null,null,null,null,null,null,null,null,null,null,null,null,null,null,null,null,null,null,null,null,null,null,null,null,null,null,null,null,null,null,null,null,null,null,null,null,null,null,null,null,null,null,null,null,null,null,null,null,null,null,"",""]
["02: Administrativo","315. Segunda Especialidad",7,0,"",0,0,0,0,0,2,"",null,null,null,null,null,null,null,null,null,null,null,null,null,null,null,null,null,null,null,null,null,null,null,null,null,null,null,null,null,null,null,null,null,null,null,null,null,null,null,null,null,null,null,null,null,null,null,null,null,null,null,null,null,null,null,null,null,null,null,"",""]
["03: Aux. de Educación","Utilice las especialidades de la tabla de códigos 313.",8,0,"",0,0,0,0,0,2,"",null,null,null,null,null,null,null,null,null,null,null,null,null,null,null,null,null,null,null,null,null,null,null,null,null,null,null,null,null,null,null,null,null,null,null,null,null,null,null,null,null,null,null,null,null,null,null,null,null,null,null,null,null,null,null,null,null,null,null,"",""]
[null,null,9,0,"",0,0,0,0,0,2,"",null,null,null,null,null,null,null,null,null,null,null,null,null,null,null,null,null,null,null,null,null,null,null,null,null,null,null,null,null,null,null,null,null,null,null,null,null,null,null,null,null,null,null,null,null,null,null,null,null,null,null,null,null,null,null,null,null,null,null,"",""]
["305. Sexo","316. Estudios de Postgrado en Pedagogía",10,0,"",0,0,0,0,0,2,"",null,null,null,null,null,null,null,null,null,null,null,null,null,null,null,null,null,null,null,null,null,null,null,null,null,null,null,null,null,null,null,null,null,null,null,null,null,null,null,null,null,null,null,null,null,null,null,null,null,null,null,null,null,null,null,null,null,null,null,"",""]
["Hombre","Estudios de Maestría",11,0,"",0,0,0,0,0,2,"",null,null,null,null,null,null,null,null,null,null,null,null,null,null,null,null,null,null,null,null,null,null,null,null,null,null,null,null,null,null,null,null,null,null,null,null,null,null,null,null,null,null,null,null,null,null,null,null,null,null,null,null,null,null,null,null,null,null,null,"",""]
["Mujer","01: Concluida con grado",12,0,"",0,0,0,0,0,2,"",null,null,null,null,null,null,null,null,null,null,null,null,null,null,null,null,null,null,null,null,null,null,null,null,null,null,null,null,null,null,null,null,null,null,null,null,null,null,null,null,null,null,null,null,null,null,null,null,null,null,null,null,null,null,null,null,null,null,null,"",""]
[null,"02: Concluida sin grado",13,0,"",0,0,0,0,0,2,"",null,null,null,null,null,null,null,null,null,null,null,null,null,null,null,null,null,null,null,null,null,null,null,null,null,null,null,null,null,null,null,null,null,null,null,null,null,null,null,null,null,null,null,null,null,null,null,null,null,null,null,null,null,null,null,null,null,null,null,"",""]
["306. Lengua Materna","03: En proceso/no concluida",14,0,"",0,0,0,0,0,2,"",null,null,null,null,null,null,null,null,null,null,null,null,null,null,null,null,null,null,null,null,null,null,null,null,null,null,null,null,null,null,null,null,null,null,null,null,null,null,null,null,null,null,null,null,null,null,null,null,null,null,null,null,null,null,null,null,null,null,null,"",""]
["0100: Castellano","04: Sin Maestría",15,0,"",0,0,0,0,0,2,"",null,null,null,null,null,null,null,null,null,null,null,null,null,null,null,null,null,null,null,null,null,null,null,null,null,null,null,null,null,null,null,null,null,null,null,null,null,null,null,null,null,null,null,null,null,null,null,null,null,null,null,null,null,null,null,null,null,null,null,"",""]
["0200: Achuar","Estudios de Doctorado",16,0,"",0,0,0,0,0,2,"",null,null,null,null,null,null,null,null,null,null,null,null,null,null,null,null,null,null,null,null,null,null,null,null,null,null,null,null,null,null,null,null,null,null,null,null,null,null,null,null,null,null,null,null,null,null,null,null,null,null,null,null,null,null,null,null,null,null,null,"",""]
["0300: Aimara","05: Concluido con grado",17,0,"",0,0,0,0,0,2,"",null,null,null,null,null,null,null,null,null,null,null,null,null,null,null,null,null,null,null,null,null,null,null,null,null,null,null,null,null,null,null,null,null,null,null,null,null,null,null,null,null,null,null,null,null,null,null,null,null,null,null,null,null,null,null,null,null,null,null,"",""]
["0400: Amahuaca","06: Concluido sin grado",18,0,"",0,0,0,0,0,2,"",null,null,null,null,null,null,null,null,null,null,null,null,null,null,null,null,null,null,null,null,null,null,null,null,null,null,null,null,null,null,null,null,null,null,null,null,null,null,null,null,null,null,null,null,null,null,null,null,null,null,null,null,null,null,null,null,null,null,null,"",""]
["0500: Arabela","07: En proceso/no concluido",19,0,"",0,0,0,0,0,2,"",null,null,null,null,null,null,null,null,null,null,null,null,null,null,null,null,null,null,null,null,null,null,null,null,null,null,null,null,null,null,null,null,null,null,null,null,null,null,null,null,null,null,null,null,null,null,null,null,null,null,null,null,null,null,null,null,null,null,null,"",""]
["0600: Ashaninka","08: Sin Doctorado",20,0,"",0,0,0,0,0,2,"",null,null,null,null,null,null,null,null,null,null,null,null,null,null,null,null,null,null,null,null,null,null,null,null,null,null,null,null,null,null,null,null,null,null,null,null,null,null,null,null,null,null,null,null,null,null,null,null,null,null,null,null,null,null,null,null,null,null,null,"",""]
["0610: Asheninka",null,21,0,"",0,0,0,0,0,2,"",null,null,null,null,null,null,null,null,null,null,null,null,null,null,null,null,null,null,null,null,null,null,null,null,null,null,null,null,null,null,null,null,null,null,null,null,null,null,null,null,null,null,null,null,null,null,null,null,null,null,null,null,null,null,null,null,null,null,null,"",""]
["0700: Awajún","317. Tiempo de Servicio",22,0,"",0,0,0,0,0,2,"",null,null,null,null,null,null,null,null,null,null,null,null,null,null,null,null,null,null,null,null,null,null,null,null,null,null,null,null,null,null,null,null,null,null,null,null,null,null,null,null,null,null,null,null,null,null,null,null,null,null,null,null,null,null,null,null,null,null,null,"",""]
["0800: Bora","Solo personal Nombrado.",23,0,"",0,0,0,0,0,2,"",null,null,null,null,null,null,null,null,null,null,null,null,null,null,null,null,null,null,null,null,null,null,null,null,null,null,null,null,null,null,null,null,null,null,null,null,null,null,null,null,null,null,null,null,null,null,null,null,null,null,null,null,null,null,null,null,null,null,null,"",""]
["0900: Kapanawa","Tiempo contado expresado en años desde su fecha de Nombramiento",24,0,"",0,0,0,0,0,2,"",null,null,null,null,null,null,null,null,null,null,null,null,null,null,null,null,null,null,null,null,null,null,null,null,null,null,null,null,null,null,null,null,null,null,null,null,null,null,null,null,null,null,null,null,null,null,null,null,null,null,null,null,null,null,null,null,null,null,null,"",""]
["1000: Cashinahua",null,25,0,"",0,0,0,0,0,2,"",null,null,null,null,null,null,null,null,null,null,null,null,null,null,null,null,null,null,null,null,null,null,null,null,null,null,null,null,null,null,null,null,null,null,null,null,null,null,null,null,null,null,null,null,null,null,null,null,null,null,null,null,null,null,null,null,null,null,null,"",""]
["1100: Kawki","318. Años de Experiencia Laboral",26,0,"",0,0,0,0,0,2,"",null,null,null,null,null,null,null,null,null,null,null,null,null,null,null,null,null,null,null,null,null,null,null,null,null,null,null,null,null,null,null,null,null,null,null,null,null,null,null,null,null,null,null,null,null,null,null,null,null,null,null,null,null,null,null,null,null,null,null,"",""]
["1200: Chamikuro","Registre el total de años que tiene como experiencia",27,0,"",0,0,0,0,0,2,"",null,null,null,null,null,null,null,null,null,null,null,null,null,null,null,null,null,null,null,null,null,null,null,null,null,null,null,null,null,null,null,null,null,null,null,null,null,null,null,null,null,null,null,null,null,null,null,null,null,null,null,null,null,null,null,null,null,null,null,"",""]
["1300: Ese eja","en el Tipo de Personal que se está registrando (Tabla 301.)",28,0,"",0,0,0,0,0,2,"",null,null,null,null,null,null,null,null,null,null,null,null,null,null,null,null,null,null,null,null,null,null,null,null,null,null,null,null,null,null,null,null,null,null,null,null,null,null,null,null,null,null,null,null,null,null,null,null,null,null,null,null,null,null,null,null,null,null,null,"",""]
["1400: Harakbut",null,29,0,"",0,0,0,0,0,2,"",null,null,null,null,null,null,null,null,null,null,null,null,null,null,null,null,null,null,null,null,null,null,null,null,null,null,null,null,null,null,null,null,null,null,null,null,null,null,null,null,null,null,null,null,null,null,null,null,null,null,null,null,null,null,null,null,null,null,null,"",""]
["1500: Iñapari","319. Años de experiencia laboral en este servicio/ nivel educativo",30,0,"",0,0,0,0,0,2,"",null,null,null,null,null,null,null,null,null,null,null,null,null,null,null,null,null,null,null,null,null,null,null,null,null,null,null,null,null,null,null,null,null,null,null,null,null,null,null,null,null,null,null,null,null,null,null,null,null,null,null,null,null,null,null,null,null,null,null,"",""]
["1600: Ikitu","Anote el N° de años de experiencia prestando servicios",31,0,"",0,0,0,0,0,2,"",null,null,null,null,null,null,null,null,null,null,null,null,null,null,null,null,null,null,null,null,null,null,null,null,null,null,null,null,null,null,null,null,null,null,null,null,null,null,null,null,null,null,null,null,null,null,null,null,null,null,null,null,null,null,null,null,null,null,null,"",""]
["1700: Iskonawa","en este servicio/nivel educativo por el tipo de personal",32,0,"",0,0,0,0,0,2,"",null,null,null,null,null,null,null,null,null,null,null,null,null,null,null,null,null,null,null,null,null,null,null,null,null,null,null,null,null,null,null,null,null,null,null,null,null,null,null,null,null,null,null,null,null,null,null,null,null,null,null,null,null,null,null,null,null,null,null,"",""]
["1800: Jaqaru","que se está registrando (Tabla 301.)",33,0,"",0,0,0,0,0,2,"",null,null,null,null,null,null,null,null,null,null,null,null,null,null,null,null,null,null,null,null,null,null,null,null,null,null,null,null,null,null,null,null,null,null,null,null,null,null,null,null,null,null,null,null,null,null,null,null,null,null,null,null,null,null,null,null,null,null,null,"",""]
["1900: Kakataibo",null,34,0,"",0,0,0,0,0,2,"",null,null,null,null,null,null,null,null,null,null,null,null,null,null,null,null,null,null,null,null,null,null,null,null,null,null,null,null,null,null,null,null,null,null,null,null,null,null,null,null,null,null,null,null,null,null,null,null,null,null,null,null,null,null,null,null,null,null,null,"",""]
["2000: Kakinte","320. Escala Magisterial",35,0,"",0,0,0,0,0,2,"",null,null,null,null,null,null,null,null,null,null,null,null,null,null,null,null,null,null,null,null,null,null,null,null,null,null,null,null,null,null,null,null,null,null,null,null,null,null,null,null,null,null,null,null,null,null,null,null,null,null,null,null,null,null,null,null,null,null,null,"",""]
["2110: Kandozi-chapra (chapra)","Complete los datos de Escala Magisterial, según corresponda",36,0,"",0,0,0,0,0,2,"",null,null,null,null,null,null,null,null,null,null,null,null,null,null,null,null,null,null,null,null,null,null,null,null,null,null,null,null,null,null,null,null,null,null,null,null,null,null,null,null,null,null,null,null,null,null,null,null,null,null,null,null,null,null,null,null,null,null,null,"",""]
["2120: Kandozi-chapra (kandozi)","01: Primera",37,0,"",0,0,0,0,0,2,"",null,null,null,null,null,null,null,null,null,null,null,null,null,null,null,null,null,null,null,null,null,null,null,null,null,null,null,null,null,null,null,null,null,null,null,null,null,null,null,null,null,null,null,null,null,null,null,null,null,null,null,null,null,null,null,null,null,null,null,"",""]
["2200: Kukama kukamiria","02: Segunda",38,0,"",0,0,0,0,0,2,"",null,null,null,null,null,null,null,null,null,null,null,null,null,null,null,null,null,null,null,null,null,null,null,null,null,null,null,null,null,null,null,null,null,null,null,null,null,null,null,null,null,null,null,null,null,null,null,null,null,null,null,null,null,null,null,null,null,null,null,"",""]
["2300: Madija","03: Tercera",39,0,"",0,0,0,0,0,2,"",null,null,null,null,null,null,null,null,null,null,null,null,null,null,null,null,null,null,null,null,null,null,null,null,null,null,null,null,null,null,null,null,null,null,null,null,null,null,null,null,null,null,null,null,null,null,null,null,null,null,null,null,null,null,null,null,null,null,null,"",""]
["2400: Maijiki","04: Cuarta",40,0,"",0,0,0,0,0,2,"",null,null,null,null,null,null,null,null,null,null,null,null,null,null,null,null,null,null,null,null,null,null,null,null,null,null,null,null,null,null,null,null,null,null,null,null,null,null,null,null,null,null,null,null,null,null,null,null,null,null,null,null,null,null,null,null,null,null,null,"",""]
["2500: Matsés","05: Quinta",41,0,"",0,0,0,0,0,2,"",null,null,null,null,null,null,null,null,null,null,null,null,null,null,null,null,null,null,null,null,null,null,null,null,null,null,null,null,null,null,null,null,null,null,null,null,null,null,null,null,null,null,null,null,null,null,null,null,null,null,null,null,null,null,null,null,null,null,null,"",""]
["2600: Matsigenka","06: Sexta",42,0,"",0,0,0,0,0,2,"",null,null,null,null,null,null,null,null,null,null,null,null,null,null,null,null,null,null,null,null,null,null,null,null,null,null,null,null,null,null,null,null,null,null,null,null,null,null,null,null,null,null,null,null,null,null,null,null,null,null,null,null,null,null,null,null,null,null,null,"",""]
["2700: Muniche","07: Séptima",43,0,"",0,0,0,0,0,2,"",null,null,null,null,null,null,null,null,null,null,null,null,null,null,null,null,null,null,null,null,null,null,null,null,null,null,null,null,null,null,null,null,null,null,null,null,null,null,null,null,null,null,null,null,null,null,null,null,null,null,null,null,null,null,null,null,null,null,null,"",""]
["2800: Murui-muinani","08: Octava",44,0,"",0,0,0,0,0,2,"",null,null,null,null,null,null,null,null,null,null,null,null,null,null,null,null,null,null,null,null,null,null,null,null,null,null,null,null,null,null,null,null,null,null,null,null,null,null,null,null,null,null,null,null,null,null,null,null,null,null,null,null,null,null,null,null,null,null,null,"",""]
["2900: Matsigenka-montetokunirira","09: Sin Escala",45,0,"",0,0,0,0,0,2,"",null,null,null,null,null,null,null,null,null,null,null,null,null,null,null,null,null,null,null,null,null,null,null,null,null,null,null,null,null,null,null,null,null,null,null,null,null,null,null,null,null,null,null,null,null,null,null,null,null,null,null,null,null,null,null,null,null,null,null,"",""]
["3000: Nomatsigenga",null,46,0,"",0,0,0,0,0,2,"",null,null,null,null,null,null,null,null,null,null,null,null,null,null,null,null,null,null,null,null,null,null,null,null,null,null,null,null,null,null,null,null,null,null,null,null,null,null,null,null,null,null,null,null,null,null,null,null,null,null,null,null,null,null,null,null,null,null,null,"",""]
["3100: Ocaina","321. Función o Cargo",47,0,"",0,0,0,0,0,2,"",null,null,null,null,null,null,null,null,null,null,null,null,null,null,null,null,null,null,null,null,null,null,null,null,null,null,null,null,null,null,null,null,null,null,null,null,null,null,null,null,null,null,null,null,null,null,null,null,null,null,null,null,null,null,null,null,null,null,null,"",""]
["3200: Omagua","Docentes",48,0,"",0,0,0,0,0,2,"",null,null,null,null,null,null,null,null,null,null,null,null,null,null,null,null,null,null,null,null,null,null,null,null,null,null,null,null,null,null,null,null,null,null,null,null,null,null,null,null,null,null,null,null,null,null,null,null,null,null,null,null,null,null,null,null,null,null,null,"",""]
["3310: Quechua amazónico (Kichwa)","01: (101)-Director General",49,0,"",0,0,0,0,0,2,"",null,null,null,null,null,null,null,null,null,null,null,null,null,null,null,null,null,null,null,null,null,null,null,null,null,null,null,null,null,null,null,null,null,null,null,null,null,null,null,null,null,null,null,null,null,null,null,null,null,null,null,null,null,null,null,null,null,null,null,"",""]
["3321: Quechua central (Ancash)","02: (102)-Director",50,0,"",0,0,0,0,0,2,"",null,null,null,null,null,null,null,null,null,null,null,null,null,null,null,null,null,null,null,null,null,null,null,null,null,null,null,null,null,null,null,null,null,null,null,null,null,null,null,null,null,null,null,null,null,null,null,null,null,null,null,null,null,null,null,null,null,null,null,"",""]
["3322: Quechua central (Huánuco)","03: (103)-Sub Director",51,0,"",0,0,0,0,0,2,"",null,null,null,null,null,null,null,null,null,null,null,null,null,null,null,null,null,null,null,null,null,null,null,null,null,null,null,null,null,null,null,null,null,null,null,null,null,null,null,null,null,null,null,null,null,null,null,null,null,null,null,null,null,null,null,null,null,null,null,"",""]
["3323: Quechua central (Wanka)","04: (106)-Coordinador, Asesor",52,0,"",0,0,0,0,0,2,"",null,null,null,null,null,null,null,null,null,null,null,null,null,null,null,null,null,null,null,null,null,null,null,null,null,null,null,null,null,null,null,null,null,null,null,null,null,null,null,null,null,null,null,null,null,null,null,null,null,null,null,null,null,null,null,null,null,null,null,"",""]
["3324: Quechua central (Pasco)","05: (111)-Docente de Aula",53,0,"",0,0,0,0,0,2,"",null,null,null,null,null,null,null,null,null,null,null,null,null,null,null,null,null,null,null,null,null,null,null,null,null,null,null,null,null,null,null,null,null,null,null,null,null,null,null,null,null,null,null,null,null,null,null,null,null,null,null,null,null,null,null,null,null,null,null,"",""]
["3331: Quechua norteño (Cajamarca)","06: (112)-Doc. Especial - Educación Física",54,0,"",0,0,0,0,0,2,"",null,null,null,null,null,null,null,null,null,null,null,null,null,null,null,null,null,null,null,null,null,null,null,null,null,null,null,null,null,null,null,null,null,null,null,null,null,null,null,null,null,null,null,null,null,null,null,null,null,null,null,null,null,null,null,null,null,null,null,"",""]
["3332: Quechua norteño (Inkawasi Kañaris)","07: (113)-Doc. Especial - Computación",55,0,"",0,0,0,0,0,2,"",null,null,null,null,null,null,null,null,null,null,null,null,null,null,null,null,null,null,null,null,null,null,null,null,null,null,null,null,null,null,null,null,null,null,null,null,null,null,null,null,null,null,null,null,null,null,null,null,null,null,null,null,null,null,null,null,null,null,null,"",""]
["3341: Quechua sureño (Chanka)","08: (114)-Doc. Especial - Aula de Innovación Pedagógica",56,0,"",0,0,0,0,0,2,"",null,null,null,null,null,null,null,null,null,null,null,null,null,null,null,null,null,null,null,null,null,null,null,null,null,null,null,null,null,null,null,null,null,null,null,null,null,null,null,null,null,null,null,null,null,null,null,null,null,null,null,null,null,null,null,null,null,null,null,"",""]
["3342: Quechua sureño (Collao)","09: (115)-Doc. Especial - otro",57,0,"",0,0,0,0,0,2,"",null,null,null,null,null,null,null,null,null,null,null,null,null,null,null,null,null,null,null,null,null,null,null,null,null,null,null,null,null,null,null,null,null,null,null,null,null,null,null,null,null,null,null,null,null,null,null,null,null,null,null,null,null,null,null,null,null,null,null,"",""]
["3400: Resigaro","10: (116)-Doc. de Aula con función o cargo directivo",58,0,"",0,0,0,0,0,2,"",null,null,null,null,null,null,null,null,null,null,null,null,null,null,null,null,null,null,null,null,null,null,null,null,null,null,null,null,null,null,null,null,null,null,null,null,null,null,null,null,null,null,null,null,null,null,null,null,null,null,null,null,null,null,null,null,null,null,null,"",""]
["3500: Secoya","11: (139)-Otro docente",59,0,"",0,0,0,0,0,2,"",null,null,null,null,null,null,null,null,null,null,null,null,null,null,null,null,null,null,null,null,null,null,null,null,null,null,null,null,null,null,null,null,null,null,null,null,null,null,null,null,null,null,null,null,null,null,null,null,null,null,null,null,null,null,null,null,null,null,null,"",""]
["3600: Sharanahua","Administrativos",60,0,"",0,0,0,0,0,2,"",null,null,null,null,null,null,null,null,null,null,null,null,null,null,null,null,null,null,null,null,null,null,null,null,null,null,null,null,null,null,null,null,null,null,null,null,null,null,null,null,null,null,null,null,null,null,null,null,null,null,null,null,null,null,null,null,null,null,null,"",""]
["3700: Shawi","12: (501)-Psicólogo",61,0,"",0,0,0,0,0,2,"",null,null,null,null,null,null,null,null,null,null,null,null,null,null,null,null,null,null,null,null,null,null,null,null,null,null,null,null,null,null,null,null,null,null,null,null,null,null,null,null,null,null,null,null,null,null,null,null,null,null,null,null,null,null,null,null,null,null,null,"",""]
["3800: Shipibo-Konibo","13: (502)-Trabajo social / Servicio social",62,0,"",0,0,0,0,0,2,"",null,null,null,null,null,null,null,null,null,null,null,null,null,null,null,null,null,null,null,null,null,null,null,null,null,null,null,null,null,null,null,null,null,null,null,null,null,null,null,null,null,null,null,null,null,null,null,null,null,null,null,null,null,null,null,null,null,null,null,"",""]
["3900: Shiwilu","14: (503)-Personal de Salud",63,0,"",0,0,0,0,0,2,"",null,null,null,null,null,null,null,null,null,null,null,null,null,null,null,null,null,null,null,null,null,null,null,null,null,null,null,null,null,null,null,null,null,null,null,null,null,null,null,null,null,null,null,null,null,null,null,null,null,null,null,null,null,null,null,null,null,null,null,"",""]
["4000: Taushiro","15: (504)-Administrador o contador",64,0,"",0,0,0,0,0,2,"",null,null,null,null,null,null,null,null,null,null,null,null,null,null,null,null,null,null,null,null,null,null,null,null,null,null,null,null,null,null,null,null,null,null,null,null,null,null,null,null,null,null,null,null,null,null,null,null,null,null,null,null,null,null,null,null,null,null,null,"",""]
["4100: Ticuna","16: (538)-Guía intérprete de sordoceguera",65,0,"",0,0,0,{"$f":"IF(L83<>\"\",1,0)","v":0},0,{"$f":"IF(X83=$A$102,1,IF(X83=$A$103,2,IF(X83=$A$104,3,IF(X83=$A$105,4,IF(X83=$A$106,5,0)))))","v":2},"",null,null,null,null,null,null,null,null,null,null,null,null,null,null,null,null,null,null,null,null,null,null,null,null,null,null,null,null,null,null,null,null,null,null,null,null,null,null,null,null,null,null,null,null,null,null,null,null,null,null,null,null,null,null,null,null,null,null,null,"",""]
["4200: Urarina","17: (539)-Intérprete de Lengua de señas Peruana",66,{"$f":"IF(AND(LEFT(R84,2)=\"01\",LEFT(Y84,2)=\"01\",LEFT(X84,2)=\"01\",E84=1),1,0)","v":0},{"$f":"$B$16","v":""},{"$f":"COUNTIF(AP84:AU84,\"X\")","v":0},{"$f":"IF(R84<>\"\",VALUE(LEFT(R84,2)),0)","v":0},{"$f":"IF(Q84<>\"\",COUNTIF($Q$19:$Q$318,Q84),0)","v":0},0,{"$f":"IF(AND(R84=\"01: Docente\",V84=\"SI\"),1,0)","v":0},2,"",null,null,null,null,null,null,null,null,null,null,null,null,null,null,null,null,null,null,null,null,null,null,null,null,null,null,null,null,null,null,null,null,null,null,null,null,null,null,null,null,null,null,null,null,null,null,null,null,null,null,null,null,null,null,null,null,null,null,null,"",""]
["4300: Wampis","18: (540)-Modelo Lingüístico",67,0,"",0,0,0,0,0,2,{"$f":"IF($C85<=$B$5,C85,\"\")","v":""},null,null,null,null,null,null,null,null,null,null,null,null,null,null,null,null,null,null,null,null,null,null,null,null,null,null,null,null,null,null,null,null,null,null,null,null,null,null,null,null,null,null,null,null,null,null,null,null,null,null,null,null,null,null,null,null,null,null,null,"",""]
["4400: Yagua","19: (505)-Otro personal profesional",68,0,"",0,0,0,0,0,2,"",null,null,null,null,null,null,null,null,null,null,null,null,null,null,null,null,null,null,null,null,null,null,null,null,null,null,null,null,null,null,null,null,null,null,null,null,null,null,null,null,null,null,null,null,null,null,null,null,null,null,null,null,null,null,null,null,null,null,null,"",""]
["4500: Yaminahua","20: (506)-Auxiliar de Biblioteca",69,0,"",0,0,0,0,0,2,"",null,null,null,null,null,null,null,null,null,null,null,null,null,null,null,null,null,null,null,null,null,null,null,null,null,null,null,null,null,null,null,null,null,null,null,null,null,null,null,null,null,null,null,null,null,null,null,null,null,null,null,null,null,null,null,null,null,null,null,"",""]
["4600: Yanesha","21: (507)-Auxiliar de Laboratorio",70,0,"",0,0,0,0,0,2,"",null,null,null,null,null,null,null,null,null,null,null,null,null,null,null,null,null,null,null,null,null,null,null,null,null,null,null,null,null,null,null,null,null,null,null,null,null,null,null,null,null,null,null,null,null,null,null,null,null,null,null,null,null,null,null,null,null,null,null,"",""]
["4700: Yine","22: (508)-Secretaria u Oficinista",71,0,"",0,0,0,0,0,2,"",null,null,null,null,null,null,null,null,null,null,null,null,null,null,null,null,null,null,null,null,null,null,null,null,null,null,null,null,null,null,null,null,null,null,null,null,null,null,null,null,null,null,null,null,null,null,null,null,null,null,null,null,null,null,null,null,null,null,null,"",""]
["4800: Nahua","23: (510)-Coordinador de Taller",72,0,"",0,0,0,0,0,2,"",null,null,null,null,null,null,null,null,null,null,null,null,null,null,null,null,null,null,null,null,null,null,null,null,null,null,null,null,null,null,null,null,null,null,null,null,null,null,null,null,null,null,null,null,null,null,null,null,null,null,null,null,null,null,null,null,null,null,null,"",""]
["5000: Otra lengua originaria","24: (511)-Asistente Administrativo",73,0,"",0,0,0,0,0,2,"",null,null,null,null,null,null,null,null,null,null,null,null,null,null,null,null,null,null,null,null,null,null,null,null,null,null,null,null,null,null,null,null,null,null,null,null,null,null,null,null,null,null,null,null,null,null,null,null,null,null,null,null,null,null,null,null,null,null,null,"",""]
["5100: Alemán","25: (512)-Personal de Servicio - Mantenimiento",74,0,"",0,0,0,0,0,2,"",null,null,null,null,null,null,null,null,null,null,null,null,null,null,null,null,null,null,null,null,null,null,null,null,null,null,null,null,null,null,null,null,null,null,null,null,null,null,null,null,null,null,null,null,null,null,null,null,null,null,null,null,null,null,null,null,null,null,null,"",""]
["5200: Inglés","26: (513)-Personal de Servicio - Cocina",75,0,"",0,0,0,0,0,2,"",null,null,null,null,null,null,null,null,null,null,null,null,null,null,null,null,null,null,null,null,null,null,null,null,null,null,null,null,null,null,null,null,null,null,null,null,null,null,null,null,null,null,null,null,null,null,null,null,null,null,null,null,null,null,null,null,null,null,null,"",""]
["5300: Italiano","27: (514)-Personal de servicio - Limpieza",76,0,"",0,0,0,0,0,2,"",null,null,null,null,null,null,null,null,null,null,null,null,null,null,null,null,null,null,null,null,null,null,null,null,null,null,null,null,null,null,null,null,null,null,null,null,null,null,null,null,null,null,null,null,null,null,null,null,null,null,null,null,null,null,null,null,null,null,null,"",""]
["5400: Japonés","28: (515)-Personal de servicio - Portero",77,0,"",0,0,0,0,0,2,"",null,null,null,null,null,null,null,null,null,null,null,null,null,null,null,null,null,null,null,null,null,null,null,null,null,null,null,null,null,null,null,null,null,null,null,null,null,null,null,null,null,null,null,null,null,null,null,null,null,null,null,null,null,null,null,null,null,null,null,"",""]
["5500: Portugués","29: (516)-Personal de servicio - Vigilante",78,0,"",0,0,0,0,0,2,"",null,null,null,null,null,null,null,null,null,null,null,null,null,null,null,null,null,null,null,null,null,null,null,null,null,null,null,null,null,null,null,null,null,null,null,null,null,null,null,null,null,null,null,null,null,null,null,null,null,null,null,null,null,null,null,null,null,null,null,"",""]
["5600: Ruso","30: (517)-Personal de servicio - Otro",79,0,"",0,0,0,0,0,2,"",null,null,null,null,null,null,null,null,null,null,null,null,null,null,null,null,null,null,null,null,null,null,null,null,null,null,null,null,null,null,null,null,null,null,null,null,null,null,null,null,null,null,null,null,null,null,null,null,null,null,null,null,null,null,null,null,null,null,null,"",""]
["5700: Francés","31: (518)-Otro personal No profesional",80,0,"",0,0,0,0,0,2,"",null,null,null,null,null,null,null,null,null,null,null,null,null,null,null,null,null,null,null,null,null,null,null,null,null,null,null,null,null,null,null,null,null,null,null,null,null,null,null,null,null,null,null,null,null,null,null,null,null,null,null,null,null,null,null,null,null,null,null,"",""]
["5800: Otra lengua extranjera",null,81,0,"",0,0,0,0,0,2,"",null,null,null,null,null,null,null,null,null,null,null,null,null,null,null,null,null,null,null,null,null,null,null,null,null,null,null,null,null,null,null,null,null,null,null,null,null,null,null,null,null,null,null,null,null,null,null,null,null,null,null,null,null,null,null,null,null,null,null,"",""]
[null,"99: (999)-Auxiliar de Educación",82,0,"",0,0,0,0,0,2,"",null,null,null,null,null,null,null,null,null,null,null,null,null,null,null,null,null,null,null,null,null,null,null,null,null,null,null,null,null,null,null,null,null,null,null,null,null,null,null,null,null,null,null,null,null,null,null,null,null,null,null,null,null,null,null,null,null,null,null,"",""]
["308. Lengua Originaria",null,83,0,"",0,0,0,0,0,2,"",null,null,null,null,null,null,null,null,null,null,null,null,null,null,null,null,null,null,null,null,null,null,null,null,null,null,null,null,null,null,null,null,null,null,null,null,null,null,null,null,null,null,null,null,null,null,null,null,null,null,null,null,null,null,null,null,null,null,null,"",""]
["Utilice los códigos de lengua de la tabla 203","Parroquiales",84,0,"",0,0,0,0,0,2,"",null,null,null,null,null,null,null,null,null,null,null,null,null,null,null,null,null,null,null,null,null,null,null,null,null,null,null,null,null,null,null,null,null,null,null,null,null,null,null,null,null,null,null,null,null,null,null,null,null,null,null,null,null,null,null,null,null,null,null,"",""]
[null,"06: Otra fuente Privada",85,0,"",0,0,0,0,0,2,"",null,null,null,null,null,null,null,null,null,null,null,null,null,null,null,null,null,null,null,null,null,null,null,null,null,null,null,null,null,null,null,null,null,null,null,null,null,null,null,null,null,null,null,null,null,null,null,null,null,null,null,null,null,null,null,null,null,null,null,"",""]
["309. Fuente de Financiamiento","01: Sector Educación",86,0,"",0,0,0,0,0,2,"",null,null,null,null,null,null,null,null,null,null,null,null,null,null,null,null,null,null,null,null,null,null,null,null,null,null,null,null,null,null,null,null,null,null,null,null,null,null,null,null,null,null,null,null,null,null,null,null,null,null,null,null,null,null,null,null,null,null,null,"",""]
["01: Sector Educación",null,87,0,"",0,0,0,0,0,2,"",null,null,null,null,null,null,null,null,null,null,null,null,null,null,null,null,null,null,null,null,null,null,null,null,null,null,null,null,null,null,null,null,null,null,null,null,null,null,null,null,null,null,null,null,null,null,null,null,null,null,null,null,null,null,null,null,null,null,null,"",""]
["02: Otro sector (FF.AA. Salud u Otro)",null,88,0,"",0,0,0,0,0,2,"",null,null,null,null,null,null,null,null,null,null,null,null,null,null,null,null,null,null,null,null,null,null,null,null,null,null,null,null,null,null,null,null,null,null,null,null,null,null,null,null,null,null,null,null,null,null,null,null,null,null,null,null,null,null,null,null,null,null,null,"",""]
["03: Municipalidad","322. Situación en el Cargo Directivo",89,0,"",0,0,0,0,0,2,"",null,null,null,null,null,null,null,null,null,null,null,null,null,null,null,null,null,null,null,null,null,null,null,null,null,null,null,null,null,null,null,null,null,null,null,null,null,null,null,null,null,null,null,null,null,null,null,null,null,null,null,null,null,null,null,null,null,null,null,"",""]
["04: Gobierno Regional","01: Titular ratificado evaluación 2014",90,0,"",0,0,0,0,0,2,"",null,null,null,null,null,null,null,null,null,null,null,null,null,null,null,null,null,null,null,null,null,null,null,null,null,null,null,null,null,null,null,null,null,null,null,null,null,null,null,null,null,null,null,null,null,null,null,null,null,null,null,null,null,null,null,null,null,null,null,"",""]
["05: APAFA","02: Titular designado acceso 2015, 2016 y 2018",91,0,"",0,0,0,0,0,2,"",null,null,null,null,null,null,null,null,null,null,null,null,null,null,null,null,null,null,null,null,null,null,null,null,null,null,null,null,null,null,null,null,null,null,null,null,null,null,null,null,null,null,null,null,null,null,null,null,null,null,null,null,null,null,null,null,null,null,null,"",""]
["06: Otra fuente Privada","03: Titular otro",92,0,"",0,0,0,0,0,2,"",null,null,null,null,null,null,null,null,null,null,null,null,null,null,null,null,null,null,null,null,null,null,null,null,null,null,null,null,null,null,null,null,null,null,null,null,null,null,null,null,null,null,null,null,null,null,null,null,null,null,null,null,null,null,null,null,null,null,null,"",""]
[null,"04: Encargado por función, sin doc. formal",93,0,"",0,0,0,0,0,2,"",null,null,null,null,null,null,null,null,null,null,null,null,null,null,null,null,null,null,null,null,null,null,null,null,null,null,null,null,null,null,null,null,null,null,null,null,null,null,null,null,null,null,null,null,null,null,null,null,null,null,null,null,null,null,null,null,null,null,null,"",""]
["310. Condición Laboral","05: Encargado",94,0,"",0,0,0,0,0,2,"",null,null,null,null,null,null,null,null,null,null,null,null,null,null,null,null,null,null,null,null,null,null,null,null,null,null,null,null,null,null,null,null,null,null,null,null,null,null,null,null,null,null,null,null,null,null,null,null,null,null,null,null,null,null,null,null,null,null,null,"",""]
["01: Nombrado",null,95,0,"",0,0,0,0,0,2,"",null,null,null,null,null,null,null,null,null,null,null,null,null,null,null,null,null,null,null,null,null,null,null,null,null,null,null,null,null,null,null,null,null,null,null,null,null,null,null,null,null,null,null,null,null,null,null,null,null,null,null,null,null,null,null,null,null,null,null,"",""]
["02: Contratado","323. Destaque o Licencia",96,0,"",0,0,0,0,0,2,"",null,null,null,null,null,null,null,null,null,null,null,null,null,null,null,null,null,null,null,null,null,null,null,null,null,null,null,null,null,null,null,null,null,null,null,null,null,null,null,null,null,null,null,null,null,null,null,null,null,null,null,null,null,null,null,null,null,null,null,"",""]
[null,"01: Cubriendo una licencia",97,0,"",0,0,0,0,0,2,"",null,null,null,null,null,null,null,null,null,null,null,null,null,null,null,null,null,null,null,null,null,null,null,null,null,null,null,null,null,null,null,null,null,null,null,null,null,null,null,null,null,null,null,null,null,null,null,null,null,null,null,null,null,null,null,null,null,null,null,"",""]
["311. Modalidad de Contrato","02: De otra I.E./DRE/UGEL",98,0,"",0,0,0,0,0,2,"",null,null,null,null,null,null,null,null,null,null,null,null,null,null,null,null,null,null,null,null,null,null,null,null,null,null,null,null,null,null,null,null,null,null,null,null,null,null,null,null,null,null,null,null,null,null,null,null,null,null,null,null,null,null,null,null,null,null,null,"",""]
["Contrato Público","03: No Aplica",99,0,"",0,0,0,0,0,2,"",null,null,null,null,null,null,null,null,null,null,null,null,null,null,null,null,null,null,null,null,null,null,null,null,null,null,null,null,null,null,null,null,null,null,null,null,null,null,null,null,null,null,null,null,null,null,null,null,null,null,null,null,null,null,null,null,null,null,null,"",""]
["01: A plazo fijo D. Leg. 728",null,100,0,"",0,0,0,0,0,2,"",null,null,null,null,null,null,null,null,null,null,null,null,null,null,null,null,null,null,null,null,null,null,null,null,null,null,null,null,null,null,null,null,null,null,null,null,null,null,null,null,null,null,null,null,null,null,null,null,null,null,null,null,null,null,null,null,null,null,null,"",""]
["02: Locación de Servicios/Honorarios",null,101,0,"",0,0,0,0,0,2,"",null,null,null,null,null,null,null,null,null,null,null,null,null,null,null,null,null,null,null,null,null,null,null,null,null,null,null,null,null,null,null,null,null,null,null,null,null,null,null,null,null,null,null,null,null,null,null,null,null,null,null,null,null,null,null,null,null,null,null,"",""]
["03: CAS - D. Leg. 1057",null,102,0,"",0,0,0,0,0,2,"",null,null,null,null,null,null,null,null,null,null,null,null,null,null,null,null,null,null,null,null,null,null,null,null,null,null,null,null,null,null,null,null,null,null,null,null,null,null,null,null,null,null,null,null,null,null,null,null,null,null,null,null,null,null,null,null,null,null,null,"",""]
["04: Contrato D. Leg. 276","324. Jornada Laboral (Nombramiento / Contrato)",103,0,"",0,0,0,0,0,2,"",null,null,null,null,null,null,null,null,null,null,null,null,null,null,null,null,null,null,null,null,null,null,null,null,null,null,null,null,null,null,null,null,null,null,null,null,null,null,null,null,null,null,null,null,null,null,null,null,null,null,null,null,null,null,null,null,null,null,null,"",""]
["05: Contrato Ley 30328","40: 40 horas",104,0,"",0,0,0,0,0,2,"",null,null,null,null,null,null,null,null,null,null,null,null,null,null,null,null,null,null,null,null,null,null,null,null,null,null,null,null,null,null,null,null,null,null,null,null,null,null,null,null,null,null,null,null,null,null,null,null,null,null,null,null,null,null,null,null,null,null,null,"",""]
["06: Otra modalidad","30: 30 horas",105,0,"",0,0,0,0,0,2,"",null,null,null,null,null,null,null,null,null,null,null,null,null,null,null,null,null,null,null,null,null,null,null,null,null,null,null,null,null,null,null,null,null,null,null,null,null,null,null,null,null,null,null,null,null,null,null,null,null,null,null,null,null,null,null,null,null,null,null,"",""]
["Contrato Privado","25: 25 horas",106,0,"",0,0,0,0,0,2,"",null,null,null,null,null,null,null,null,null,null,null,null,null,null,null,null,null,null,null,null,null,null,null,null,null,null,null,null,null,null,null,null,null,null,null,null,null,null,null,null,null,null,null,null,null,null,null,null,null,null,null,null,null,null,null,null,null,null,null,"",""]
["07: A plazo indefinido (Permanente)","24: 24 horas",107,0,"",0,0,0,0,0,2,"",null,null,null,null,null,null,null,null,null,null,null,null,null,null,null,null,null,null,null,null,null,null,null,null,null,null,null,null,null,null,null,null,null,null,null,null,null,null,null,null,null,null,null,null,null,null,null,null,null,null,null,null,null,null,null,null,null,null,null,"",""]
["08: Plazo fijo (Tiempo determinado)","23: Menos 24 horas",108,0,"",0,0,0,0,0,2,"",null,null,null,null,null,null,null,null,null,null,null,null,null,null,null,null,null,null,null,null,null,null,null,null,null,null,null,null,null,null,null,null,null,null,null,null,null,null,null,null,null,null,null,null,null,null,null,null,null,null,null,null,null,null,null,null,null,null,null,"",""]
["09: A tiempo parcial (por horas)",null,109,0,"",0,0,0,0,0,2,"",null,null,null,null,null,null,null,null,null,null,null,null,null,null,null,null,null,null,null,null,null,null,null,null,null,null,null,null,null,null,null,null,null,null,null,null,null,null,null,null,null,null,null,null,null,null,null,null,null,null,null,null,null,null,null,null,null,null,null,"",""]
["10: Locación de Servicios/Honorarios","330.3 ¿Cuál fue el tipo de estudios en EIB?",110,0,"",0,0,0,0,0,2,"",null,null,null,null,null,null,null,null,null,null,null,null,null,null,null,null,null,null,null,null,null,null,null,null,null,null,null,null,null,null,null,null,null,null,null,null,null,null,null,null,null,null,null,null,null,null,null,null,null,null,null,null,null,null,null,null,null,null,null,"",""]
["11: Otra modalidad","01: Doctorado",111,0,"",0,0,0,0,0,2,"",null,null,null,null,null,null,null,null,null,null,null,null,null,null,null,null,null,null,null,null,null,null,null,null,null,null,null,null,null,null,null,null,null,null,null,null,null,null,null,null,null,null,null,null,null,null,null,null,null,null,null,null,null,null,null,null,null,null,null,"",""]
["312. Máximo Nivel Educativo Alcanzado","02: Maestría",112,0,"",0,0,0,0,0,2,"",null,null,null,null,null,null,null,null,null,null,null,null,null,null,null,null,null,null,null,null,null,null,null,null,null,null,null,null,null,null,null,null,null,null,null,null,null,null,null,null,null,null,null,null,null,null,null,null,null,null,null,null,null,null,null,null,null,null,null,"",""]
["01: EP.Concluidos con título","03: Segunda especialidad",113,0,"",0,0,0,0,0,2,"",null,null,null,null,null,null,null,null,null,null,null,null,null,null,null,null,null,null,null,null,null,null,null,null,null,null,null,null,null,null,null,null,null,null,null,null,null,null,null,null,null,null,null,null,null,null,null,null,null,null,null,null,null,null,null,null,null,null,null,"",""]
["02: EP.Concluidos sin título","04: Especialización",114,0,"",0,0,0,0,0,2,"",null,null,null,null,null,null,null,null,null,null,null,null,null,null,null,null,null,null,null,null,null,null,null,null,null,null,null,null,null,null,null,null,null,null,null,null,null,null,null,null,null,null,null,null,null,null,null,null,null,null,null,null,null,null,null,null,null,null,null,"",""]
["03: EP.No concluidos","05: Actualización",115,0,"",0,0,0,0,0,2,"",null,null,null,null,null,null,null,null,null,null,null,null,null,null,null,null,null,null,null,null,null,null,null,null,null,null,null,null,null,null,null,null,null,null,null,null,null,null,null,null,null,null,null,null,null,null,null,null,null,null,null,null,null,null,null,null,null,null,null,"",""]
["04: NP.Concluidos con título","06: Otro",116,0,"",0,0,0,0,0,2,"",null,null,null,null,null,null,null,null,null,null,null,null,null,null,null,null,null,null,null,null,null,null,null,null,null,null,null,null,null,null,null,null,null,null,null,null,null,null,null,null,null,null,null,null,null,null,null,null,null,null,null,null,null,null,null,null,null,null,null,"",""]
["05: NP.Concluidos sin título",null,117,0,"",0,0,0,0,0,2,"",null,null,null,null,null,null,null,null,null,null,null,null,null,null,null,null,null,null,null,null,null,null,null,null,null,null,null,null,null,null,null,null,null,null,null,null,null,null,null,null,null,null,null,null,null,null,null,null,null,null,null,null,null,null,null,null,null,null,null,"",""]
["06: NP.No concluidos","331 ¿En qué turno(s) labora este personal docente o administrativo?",118,0,"",0,0,0,0,0,2,"",null,null,null,null,null,null,null,null,null,null,null,null,null,null,null,null,null,null,null,null,null,null,null,null,null,null,null,null,null,null,null,null,null,null,null,null,null,null,null,null,null,null,null,null,null,null,null,null,null,null,null,null,null,null,null,null,null,null,null,"",""]
["07: Secundaria","11: Sólo en la mañana",119,0,"",0,0,0,0,0,2,"",null,null,null,null,null,null,null,null,null,null,null,null,null,null,null,null,null,null,null,null,null,null,null,null,null,null,null,null,null,null,null,null,null,null,null,null,null,null,null,null,null,null,null,null,null,null,null,null,null,null,null,null,null,null,null,null,null,null,null,"",""]
["08: Primaria","12: Sólo en la tarde",120,0,"",0,0,0,0,0,2,"",null,null,null,null,null,null,null,null,null,null,null,null,null,null,null,null,null,null,null,null,null,null,null,null,null,null,null,null,null,null,null,null,null,null,null,null,null,null,null,null,null,null,null,null,null,null,null,null,null,null,null,null,null,null,null,null,null,null,null,"",""]
[null,"13: Mañana y tarde",121,0,"",0,0,0,0,0,2,"",null,null,null,null,null,null,null,null,null,null,null,null,null,null,null,null,null,null,null,null,null,null,null,null,null,null,null,null,null,null,null,null,null,null,null,null,null,null,null,null,null,null,null,null,null,null,null,null,null,null,null,null,null,null,null,null,null,null,null,"",""]
["313. Especialidad del Título","14: Sólo en la noche",122,0,"",0,0,0,0,0,2,"",null,null,null,null,null,null,null,null,null,null,null,null,null,null,null,null,null,null,null,null,null,null,null,null,null,null,null,null,null,null,null,null,null,null,null,null,null,null,null,null,null,null,null,null,null,null,null,null,null,null,null,null,null,null,null,null,null,null,null,"",""]
["01: Educación Inicial","15: Mañana, tarde y noche",123,0,"",0,0,0,0,0,2,"",null,null,null,null,null,null,null,null,null,null,null,null,null,null,null,null,null,null,null,null,null,null,null,null,null,null,null,null,null,null,null,null,null,null,null,null,null,null,null,null,null,null,null,null,null,null,null,null,null,null,null,null,null,null,null,null,null,null,null,"",""]
["02: Educación Primaria","16: Mañana y noche",124,0,"",0,0,0,0,0,2,"",null,null,null,null,null,null,null,null,null,null,null,null,null,null,null,null,null,null,null,null,null,null,null,null,null,null,null,null,null,null,null,null,null,null,null,null,null,null,null,null,null,null,null,null,null,null,null,null,null,null,null,null,null,null,null,null,null,null,null,"",""]
["03: E.I. Intercultural Bilingüe","17: Tarde y noche",125,0,"",0,0,0,0,0,2,"",null,null,null,null,null,null,null,null,null,null,null,null,null,null,null,null,null,null,null,null,null,null,null,null,null,null,null,null,null,null,null,null,null,null,null,null,null,null,null,null,null,null,null,null,null,null,null,null,null,null,null,null,null,null,null,null,null,null,null,"",""]
["04: E.P. Intercultural Bilingüe","20: Discontinuo",126,0,"",0,0,0,0,0,2,"",null,null,null,null,null,null,null,null,null,null,null,null,null,null,null,null,null,null,null,null,null,null,null,null,null,null,null,null,null,null,null,null,null,null,null,null,null,null,null,null,null,null,null,null,null,null,null,null,null,null,null,null,null,null,null,null,null,null,null,"",""]
["05: Educación Básica Alternativa",null,127,0,"",0,0,0,0,0,2,"",null,null,null,null,null,null,null,null,null,null,null,null,null,null,null,null,null,null,null,null,null,null,null,null,null,null,null,null,null,null,null,null,null,null,null,null,null,null,null,null,null,null,null,null,null,null,null,null,null,null,null,null,null,null,null,null,null,null,null,"",""]
["06: Educación Especial",null,128,0,"",0,0,0,0,0,2,"",null,null,null,null,null,null,null,null,null,null,null,null,null,null,null,null,null,null,null,null,null,null,null,null,null,null,null,null,null,null,null,null,null,null,null,null,null,null,null,null,null,null,null,null,null,null,null,null,null,null,null,null,null,null,null,null,null,null,null,"",""]
["07: Educación Física",null,129,0,"",0,0,0,{"$f":"IF(L147<>\"\",1,0)","v":0},0,{"$f":"IF(X147=$A$102,1,IF(X147=$A$103,2,IF(X147=$A$104,3,IF(X147=$A$105,4,IF(X147=$A$106,5,0)))))","v":2},"",null,null,null,null,null,null,null,null,null,null,null,null,null,null,null,null,null,null,null,null,null,null,null,null,null,null,null,null,null,null,null,null,null,null,null,null,null,null,null,null,null,null,null,null,null,null,null,null,null,null,null,null,null,null,null,null,null,null,null,"",""]
["08: Educación Artística","SI / NO",130,{"$f":"IF(AND(LEFT(R148,2)=\"01\",LEFT(Y148,2)=\"01\",LEFT(X148,2)=\"01\",E148=1),1,0)","v":0},{"$f":"$B$16","v":""},{"$f":"COUNTIF(AP148:AU148,\"X\")","v":0},{"$f":"IF(R148<>\"\",VALUE(LEFT(R148,2)),0)","v":0},{"$f":"IF(Q148<>\"\",COUNTIF($Q$19:$Q$318,Q148),0)","v":0},0,{"$f":"IF(AND(R148=\"01: Docente\",V148=\"SI\"),1,0)","v":0},2,"",null,null,null,null,null,null,null,null,null,null,null,null,null,null,null,null,null,null,null,null,null,null,null,null,null,null,null,null,null,null,null,null,null,null,null,null,null,null,null,null,null,null,null,null,null,null,null,null,null,null,null,null,null,null,null,null,null,null,null,"",""]
["09: E.S. Lengua y Literatura","SI",131,0,"",0,0,0,0,0,2,{"$f":"IF($C149<=$B$5,C149,\"\")","v":""},null,null,null,null,null,null,null,null,null,null,null,null,null,null,null,null,null,null,null,null,null,null,null,null,null,null,null,null,null,null,null,null,null,null,null,null,null,null,null,null,null,null,null,null,null,null,null,null,null,null,null,null,null,null,null,null,null,null,null,"",""]
["10: E.S. especialidad Comunicación","NO",132,0,"",0,0,0,0,0,2,"",null,null,null,null,null,null,null,null,null,null,null,null,null,null,null,null,null,null,null,null,null,null,null,null,null,null,null,null,null,null,null,null,null,null,null,null,null,null,null,null,null,null,null,null,null,null,null,null,null,null,null,null,null,null,null,null,null,null,null,"",""]
["11: E.S. Matemática y Física",null,133,0,"",0,0,0,0,0,2,"",null,null,null,null,null,null,null,null,null,null,null,null,null,null,null,null,null,null,null,null,null,null,null,null,null,null,null,null,null,null,null,null,null,null,null,null,null,null,null,null,null,null,null,null,null,null,null,null,null,null,null,null,null,null,null,null,null,null,null,"",""]
["12: E.S. especialidad Matemática",null,134,0,"",0,0,0,0,0,2,"",null,null,null,null,null,null,null,null,null,null,null,null,null,null,null,null,null,null,null,null,null,null,null,null,null,null,null,null,null,null,null,null,null,null,null,null,null,null,null,null,null,null,null,null,null,null,null,null,null,null,null,null,null,null,null,null,null,null,null,"",""]
["13: E.S. CCSS y Filosofía","333.2 ¿Cuál es el tipo de discapacidad?",135,0,"",0,0,0,0,0,2,"",null,null,null,null,null,null,null,null,null,null,null,null,null,null,null,null,null,null,null,null,null,null,null,null,null,null,null,null,null,null,null,null,null,null,null,null,null,null,null,null,null,null,null,null,null,null,null,null,null,null,null,null,null,null,null,null,null,null,null,"",""]
["14: E.S. Esp. Ciudadanía y Ciencias Sociales","01: Auditiva",136,0,"",0,0,0,0,0,2,"",null,null,null,null,null,null,null,null,null,null,null,null,null,null,null,null,null,null,null,null,null,null,null,null,null,null,null,null,null,null,null,null,null,null,null,null,null,null,null,null,null,null,null,null,null,null,null,null,null,null,null,null,null,null,null,null,null,null,null,"",""]
["15: E.S. Ciencias Naturales","02: Visual",137,0,"",0,0,0,0,0,2,"",null,null,null,null,null,null,null,null,null,null,null,null,null,null,null,null,null,null,null,null,null,null,null,null,null,null,null,null,null,null,null,null,null,null,null,null,null,null,null,null,null,null,null,null,null,null,null,null,null,null,null,null,null,null,null,null,null,null,null,"",""]
["16: E.S. especialidad Ciencia y Tecnología","03: Física o Motora",138,0,"",0,0,0,0,0,2,"",null,null,null,null,null,null,null,null,null,null,null,null,null,null,null,null,null,null,null,null,null,null,null,null,null,null,null,null,null,null,null,null,null,null,null,null,null,null,null,null,null,null,null,null,null,null,null,null,null,null,null,null,null,null,null,null,null,null,null,"",""]
["17: E.S. Alimentación y Nutrición","04: Otros",139,0,"",0,0,0,0,0,2,"",null,null,null,null,null,null,null,null,null,null,null,null,null,null,null,null,null,null,null,null,null,null,null,null,null,null,null,null,null,null,null,null,null,null,null,null,null,null,null,null,null,null,null,null,null,null,null,null,null,null,null,null,null,null,null,null,null,null,null,"",""]
["18: E.S. Biología y Química",null,140,0,"",0,0,0,0,0,2,"",null,null,null,null,null,null,null,null,null,null,null,null,null,null,null,null,null,null,null,null,null,null,null,null,null,null,null,null,null,null,null,null,null,null,null,null,null,null,null,null,null,null,null,null,null,null,null,null,null,null,null,null,null,null,null,null,null,null,null,"",""]
["19: E.S. Historia y Geografía",null,141,0,"",0,0,0,0,0,2,"",null,null,null,null,null,null,null,null,null,null,null,null,null,null,null,null,null,null,null,null,null,null,null,null,null,null,null,null,null,null,null,null,null,null,null,null,null,null,null,null,null,null,null,null,null,null,null,null,null,null,null,null,null,null,null,null,null,null,null,"",""]
["20: E.S. CC.HH. Sociales",null,142,0,"",0,0,0,0,0,2,"",null,null,null,null,null,null,null,null,null,null,null,null,null,null,null,null,null,null,null,null,null,null,null,null,null,null,null,null,null,null,null,null,null,null,null,null,null,null,null,null,null,null,null,null,null,null,null,null,null,null,null,null,null,null,null,null,null,null,null,"",""]
["21: Idiomas especialidad Inglés",null,143,0,"",0,0,0,0,0,2,"",null,null,null,null,null,null,null,null,null,null,null,null,null,null,null,null,null,null,null,null,null,null,null,null,null,null,null,null,null,null,null,null,null,null,null,null,null,null,null,null,null,null,null,null,null,null,null,null,null,null,null,null,null,null,null,null,null,null,null,"",""]
["22: Educación Religiosa",null,144,0,"",0,0,0,0,0,2,"",null,null,null,null,null,null,null,null,null,null,null,null,null,null,null,null,null,null,null,null,null,null,null,null,null,null,null,null,null,null,null,null,null,null,null,null,null,null,null,null,null,null,null,null,null,null,null,null,null,null,null,null,null,null,null,null,null,null,null,"",""]
["23: E.S. Educación Familiar",null,145,0,"",0,0,0,0,0,2,"",null,null,null,null,null,null,null,null,null,null,null,null,null,null,null,null,null,null,null,null,null,null,null,null,null,null,null,null,null,null,null,null,null,null,null,null,null,null,null,null,null,null,null,null,null,null,null,null,null,null,null,null,null,null,null,null,null,null,null,"",""]
["24: E.T. Artes Industriales",null,146,0,"",0,0,0,0,0,2,"",null,null,null,null,null,null,null,null,null,null,null,null,null,null,null,null,null,null,null,null,null,null,null,null,null,null,null,null,null,null,null,null,null,null,null,null,null,null,null,null,null,null,null,null,null,null,null,null,null,null,null,null,null,null,null,null,null,null,null,"",""]
["25: E.T. Artesanía",null,147,0,"",0,0,0,0,0,2,"",null,null,null,null,null,null,null,null,null,null,null,null,null,null,null,null,null,null,null,null,null,null,null,null,null,null,null,null,null,null,null,null,null,null,null,null,null,null,null,null,null,null,null,null,null,null,null,null,null,null,null,null,null,null,null,null,null,null,null,"",""]
["26: E.T. Agropecuaria",null,148,0,"",0,0,0,0,0,2,"",null,null,null,null,null,null,null,null,null,null,null,null,null,null,null,null,null,null,null,null,null,null,null,null,null,null,null,null,null,null,null,null,null,null,null,null,null,null,null,null,null,null,null,null,null,null,null,null,null,null,null,null,null,null,null,null,null,null,null,"",""]
["27: E.T. Construcción en madera",null,149,0,"",0,0,0,0,0,2,"",null,null,null,null,null,null,null,null,null,null,null,null,null,null,null,null,null,null,null,null,null,null,null,null,null,null,null,null,null,null,null,null,null,null,null,null,null,null,null,null,null,null,null,null,null,null,null,null,null,null,null,null,null,null,null,null,null,null,null,"",""]
["28: Computación e Informática",null,150,0,"",0,0,0,0,0,2,"",null,null,null,null,null,null,null,null,null,null,null,null,null,null,null,null,null,null,null,null,null,null,null,null,null,null,null,null,null,null,null,null,null,null,null,null,null,null,null,null,null,null,null,null,null,null,null,null,null,null,null,null,null,null,null,null,null,null,null,"",""]
["29: E.T. Carpintería / Ebanistería",null,151,0,"",0,0,0,0,0,2,"",null,null,null,null,null,null,null,null,null,null,null,null,null,null,null,null,null,null,null,null,null,null,null,null,null,null,null,null,null,null,null,null,null,null,null,null,null,null,null,null,null,null,null,null,null,null,null,null,null,null,null,null,null,null,null,null,null,null,null,"",""]
["30: E.T. Electricidad",null,152,0,"",0,0,0,0,0,2,"",null,null,null,null,null,null,null,null,null,null,null,null,null,null,null,null,null,null,null,null,null,null,null,null,null,null,null,null,null,null,null,null,null,null,null,null,null,null,null,null,null,null,null,null,null,null,null,null,null,null,null,null,null,null,null,null,null,null,null,"",""]
["31: E.T. Electrónica",null,153,0,"",0,0,0,0,0,2,"",null,null,null,null,null,null,null,null,null,null,null,null,null,null,null,null,null,null,null,null,null,null,null,null,null,null,null,null,null,null,null,null,null,null,null,null,null,null,null,null,null,null,null,null,null,null,null,null,null,null,null,null,null,null,null,null,null,null,null,"",""]
["32: E.T. Ebanistería",null,154,0,"",0,0,0,0,0,2,"",null,null,null,null,null,null,null,null,null,null,null,null,null,null,null,null,null,null,null,null,null,null,null,null,null,null,null,null,null,null,null,null,null,null,null,null,null,null,null,null,null,null,null,null,null,null,null,null,null,null,null,null,null,null,null,null,null,null,null,"",""]
["33: E.T. Industria del Vestido",null,155,0,"",0,0,0,0,0,2,"",null,null,null,null,null,null,null,null,null,null,null,null,null,null,null,null,null,null,null,null,null,null,null,null,null,null,null,null,null,null,null,null,null,null,null,null,null,null,null,null,null,null,null,null,null,null,null,null,null,null,null,null,null,null,null,null,null,null,null,"",""]
["34: E.T. Industria del Vestido Alimentación y Alta Costura",null,156,0,"",0,0,0,0,0,2,"",null,null,null,null,null,null,null,null,null,null,null,null,null,null,null,null,null,null,null,null,null,null,null,null,null,null,null,null,null,null,null,null,null,null,null,null,null,null,null,null,null,null,null,null,null,null,null,null,null,null,null,null,null,null,null,null,null,null,null,"",""]
["35: E.T. en Industria del Vestido y Alta Costura",null,157,0,"",0,0,0,0,0,2,"",null,null,null,null,null,null,null,null,null,null,null,null,null,null,null,null,null,null,null,null,null,null,null,null,null,null,null,null,null,null,null,null,null,null,null,null,null,null,null,null,null,null,null,null,null,null,null,null,null,null,null,null,null,null,null,null,null,null,null,"",""]
["36: E.S.Técnica Esp. Ind. del Vestido Ind.Alimentaria y Artesanía",null,158,0,"",0,0,0,0,0,2,"",null,null,null,null,null,null,null,null,null,null,null,null,null,null,null,null,null,null,null,null,null,null,null,null,null,null,null,null,null,null,null,null,null,null,null,null,null,null,null,null,null,null,null,null,null,null,null,null,null,null,null,null,null,null,null,null,null,null,null,"",""]
["37: E.T. Industria Alimentaria",null,159,0,"",0,0,0,0,0,2,"",null,null,null,null,null,null,null,null,null,null,null,null,null,null,null,null,null,null,null,null,null,null,null,null,null,null,null,null,null,null,null,null,null,null,null,null,null,null,null,null,null,null,null,null,null,null,null,null,null,null,null,null,null,null,null,null,null,null,null,"",""]
["38: E.T. Mecánica Automotriz",null,160,0,"",0,0,0,0,0,2,"",null,null,null,null,null,null,null,null,null,null,null,null,null,null,null,null,null,null,null,null,null,null,null,null,null,null,null,null,null,null,null,null,null,null,null,null,null,null,null,null,null,null,null,null,null,null,null,null,null,null,null,null,null,null,null,null,null,null,null,"",""]
["39: E.T. Mecánica de Producción",null,161,0,"",0,0,0,0,0,2,"",null,null,null,null,null,null,null,null,null,null,null,null,null,null,null,null,null,null,null,null,null,null,null,null,null,null,null,null,null,null,null,null,null,null,null,null,null,null,null,null,null,null,null,null,null,null,null,null,null,null,null,null,null,null,null,null,null,null,null,"",""]
["40: E.T. Mecánica de Producción y Soldadura",null,162,0,"",0,0,0,0,0,2,"",null,null,null,null,null,null,null,null,null,null,null,null,null,null,null,null,null,null,null,null,null,null,null,null,null,null,null,null,null,null,null,null,null,null,null,null,null,null,null,null,null,null,null,null,null,null,null,null,null,null,null,null,null,null,null,null,null,null,null,"",""]
["41: Educación para el trabajo Textil y Confección",null,163,0,"",0,0,0,0,0,2,"",null,null,null,null,null,null,null,null,null,null,null,null,null,null,null,null,null,null,null,null,null,null,null,null,null,null,null,null,null,null,null,null,null,null,null,null,null,null,null,null,null,null,null,null,null,null,null,null,null,null,null,null,null,null,null,null,null,null,null,"",""]
["42: Otra pedagógica",null,164,0,"",0,0,0,0,0,2,"",null,null,null,null,null,null,null,null,null,null,null,null,null,null,null,null,null,null,null,null,null,null,null,null,null,null,null,null,null,null,null,null,null,null,null,null,null,null,null,null,null,null,null,null,null,null,null,null,null,null,null,null,null,null,null,null,null,null,null,"",""]
[null,null,165,0,"",0,0,0,0,0,2,"",null,null,null,null,null,null,null,null,null,null,null,null,null,null,null,null,null,null,null,null,null,null,null,null,null,null,null,null,null,null,null,null,null,null,null,null,null,null,null,null,null,null,null,null,null,null,null,null,null,null,null,null,null,null,null,null,null,null,null,"",""]
[null,null,166,0,"",0,0,0,0,0,2,"",null,null,null,null,null,null,null,null,null,null,null,null,null,null,null,null,null,null,null,null,null,null,null,null,null,null,null,null,null,null,null,null,null,null,null,null,null,null,null,null,null,null,null,null,null,null,null,null,null,null,null,null,null,null,null,null,null,null,null,"",""]
[null,null,167,0,"",0,0,0,0,0,2,"",null,null,null,null,null,null,null,null,null,null,null,null,null,null,null,null,null,null,null,null,null,null,null,null,null,null,null,null,null,null,null,null,null,null,null,null,null,null,null,null,null,null,null,null,null,null,null,null,null,null,null,null,null,null,null,null,null,null,null,"",""]
[null,null,168,0,"",0,0,0,0,0,2,"",null,null,null,null,null,null,null,null,null,null,null,null,null,null,null,null,null,null,null,null,null,null,null,null,null,null,null,null,null,null,null,null,null,null,null,null,null,null,null,null,null,null,null,null,null,null,null,null,null,null,null,null,null,null,null,null,null,null,null,"",""]
[null,null,169,0,"",0,0,0,0,0,2,"",null,null,null,null,null,null,null,null,null,null,null,null,null,null,null,null,null,null,null,null,null,null,null,null,null,null,null,null,null,null,null,null,null,null,null,null,null,null,null,null,null,null,null,null,null,null,null,null,null,null,null,null,null,null,null,null,null,null,null,"",""]
[null,null,170,0,"",0,0,0,0,0,2,"",null,null,null,null,null,null,null,null,null,null,null,null,null,null,null,null,null,null,null,null,null,null,null,null,null,null,null,null,null,null,null,null,null,null,null,null,null,null,null,null,null,null,null,null,null,null,null,null,null,null,null,null,null,null,null,null,null,null,null,"",""]
[null,null,171,0,"",0,0,0,0,0,2,"",null,null,null,null,null,null,null,null,null,null,null,null,null,null,null,null,null,null,null,null,null,null,null,null,null,null,null,null,null,null,null,null,null,null,null,null,null,null,null,null,null,null,null,null,null,null,null,null,null,null,null,null,null,null,null,null,null,null,null,"",""]
[null,null,172,0,"",0,0,0,0,0,2,"",null,null,null,null,null,null,null,null,null,null,null,null,null,null,null,null,null,null,null,null,null,null,null,null,null,null,null,null,null,null,null,null,null,null,null,null,null,null,null,null,null,null,null,null,null,null,null,null,null,null,null,null,null,null,null,null,null,null,null,"",""]
[null,null,173,0,"",0,0,0,0,0,2,"",null,null,null,null,null,null,null,null,null,null,null,null,null,null,null,null,null,null,null,null,null,null,null,null,null,null,null,null,null,null,null,null,null,null,null,null,null,null,null,null,null,null,null,null,null,null,null,null,null,null,null,null,null,null,null,null,null,null,null,"",""]
[null,null,174,0,"",0,0,0,0,0,2,"",null,null,null,null,null,null,null,null,null,null,null,null,null,null,null,null,null,null,null,null,null,null,null,null,null,null,null,null,null,null,null,null,null,null,null,null,null,null,null,null,null,null,null,null,null,null,null,null,null,null,null,null,null,null,null,null,null,null,null,"",""]
[null,null,175,0,"",0,0,0,0,0,2,"",null,null,null,null,null,null,null,null,null,null,null,null,null,null,null,null,null,null,null,null,null,null,null,null,null,null,null,null,null,null,null,null,null,null,null,null,null,null,null,null,null,null,null,null,null,null,null,null,null,null,null,null,null,null,null,null,null,null,null,"",""]
[null,null,176,0,"",0,0,0,0,0,2,"",null,null,null,null,null,null,null,null,null,null,null,null,null,null,null,null,null,null,null,null,null,null,null,null,null,null,null,null,null,null,null,null,null,null,null,null,null,null,null,null,null,null,null,null,null,null,null,null,null,null,null,null,null,null,null,null,null,null,null,"",""]
[null,null,177,0,"",0,0,0,0,0,2,"",null,null,null,null,null,null,null,null,null,null,null,null,null,null,null,null,null,null,null,null,null,null,null,null,null,null,null,null,null,null,null,null,null,null,null,null,null,null,null,null,null,null,null,null,null,null,null,null,null,null,null,null,null,null,null,null,null,null,null,"",""]
[null,null,178,0,"",0,0,0,0,0,2,"",null,null,null,null,null,null,null,null,null,null,null,null,null,null,null,null,null,null,null,null,null,null,null,null,null,null,null,null,null,null,null,null,null,null,null,null,null,null,null,null,null,null,null,null,null,null,null,null,null,null,null,null,null,null,null,null,null,null,null,"",""]
[null,null,179,0,"",0,0,0,0,0,2,"",null,null,null,null,null,null,null,null,null,null,null,null,null,null,null,null,null,null,null,null,null,null,null,null,null,null,null,null,null,null,null,null,null,null,null,null,null,null,null,null,null,null,null,null,null,null,null,null,null,null,null,null,null,null,null,null,null,null,null,"",""]
[null,null,180,0,"",0,0,0,0,0,2,"",null,null,null,null,null,null,null,null,null,null,null,null,null,null,null,null,null,null,null,null,null,null,null,null,null,null,null,null,null,null,null,null,null,null,null,null,null,null,null,null,null,null,null,null,null,null,null,null,null,null,null,null,null,null,null,null,null,null,null,"",""]
[null,null,181,0,"",0,0,0,0,0,2,"",null,null,null,null,null,null,null,null,null,null,null,null,null,null,null,null,null,null,null,null,null,null,null,null,null,null,null,null,null,null,null,null,null,null,null,null,null,null,null,null,null,null,null,null,null,null,null,null,null,null,null,null,null,null,null,null,null,null,null,"",""]
[null,null,182,0,"",0,0,0,0,0,2,"",null,null,null,null,null,null,null,null,null,null,null,null,null,null,null,null,null,null,null,null,null,null,null,null,null,null,null,null,null,null,null,null,null,null,null,null,null,null,null,null,null,null,null,null,null,null,null,null,null,null,null,null,null,null,null,null,null,null,null,"",""]
[null,null,183,0,"",0,0,0,0,0,2,"",null,null,null,null,null,null,null,null,null,null,null,null,null,null,null,null,null,null,null,null,null,null,null,null,null,null,null,null,null,null,null,null,null,null,null,null,null,null,null,null,null,null,null,null,null,null,null,null,null,null,null,null,null,null,null,null,null,null,null,"",""]
[null,null,184,0,"",0,0,0,0,0,2,"",null,null,null,null,null,null,null,null,null,null,null,null,null,null,null,null,null,null,null,null,null,null,null,null,null,null,null,null,null,null,null,null,null,null,null,null,null,null,null,null,null,null,null,null,null,null,null,null,null,null,null,null,null,null,null,null,null,null,null,"",""]
[null,null,185,0,"",0,0,0,0,0,2,"",null,null,null,null,null,null,null,null,null,null,null,null,null,null,null,null,null,null,null,null,null,null,null,null,null,null,null,null,null,null,null,null,null,null,null,null,null,null,null,null,null,null,null,null,null,null,null,null,null,null,null,null,null,null,null,null,null,null,null,"",""]
[null,null,186,0,"",0,0,0,0,0,2,"",null,null,null,null,null,null,null,null,null,null,null,null,null,null,null,null,null,null,null,null,null,null,null,null,null,null,null,null,null,null,null,null,null,null,null,null,null,null,null,null,null,null,null,null,null,null,null,null,null,null,null,null,null,null,null,null,null,null,null,"",""]
[null,null,187,0,"",0,0,0,0,0,2,"",null,null,null,null,null,null,null,null,null,null,null,null,null,null,null,null,null,null,null,null,null,null,null,null,null,null,null,null,null,null,null,null,null,null,null,null,null,null,null,null,null,null,null,null,null,null,null,null,null,null,null,null,null,null,null,null,null,null,null,"",""]
[null,null,188,0,"",0,0,0,0,0,2,"",null,null,null,null,null,null,null,null,null,null,null,null,null,null,null,null,null,null,null,null,null,null,null,null,null,null,null,null,null,null,null,null,null,null,null,null,null,null,null,null,null,null,null,null,null,null,null,null,null,null,null,null,null,null,null,null,null,null,null,"",""]
[null,null,189,0,"",0,0,0,0,0,2,"",null,null,null,null,null,null,null,null,null,null,null,null,null,null,null,null,null,null,null,null,null,null,null,null,null,null,null,null,null,null,null,null,null,null,null,null,null,null,null,null,null,null,null,null,null,null,null,null,null,null,null,null,null,null,null,null,null,null,null,"",""]
[null,null,190,0,"",0,0,0,0,0,2,"",null,null,null,null,null,null,null,null,null,null,null,null,null,null,null,null,null,null,null,null,null,null,null,null,null,null,null,null,null,null,null,null,null,null,null,null,null,null,null,null,null,null,null,null,null,null,null,null,null,null,null,null,null,null,null,null,null,null,null,"",""]
[null,null,191,0,"",0,0,0,0,0,2,"",null,null,null,null,null,null,null,null,null,null,null,null,null,null,null,null,null,null,null,null,null,null,null,null,null,null,null,null,null,null,null,null,null,null,null,null,null,null,null,null,null,null,null,null,null,null,null,null,null,null,null,null,null,null,null,null,null,null,null,"",""]
[null,null,192,0,"",0,0,0,0,0,2,"",null,null,null,null,null,null,null,null,null,null,null,null,null,null,null,null,null,null,null,null,null,null,null,null,null,null,null,null,null,null,null,null,null,null,null,null,null,null,null,null,null,null,null,null,null,null,null,null,null,null,null,null,null,null,null,null,null,null,null,"",""]
[null,null,193,0,"",0,0,0,{"$f":"IF(L211<>\"\",1,0)","v":0},0,{"$f":"IF(X211=$A$102,1,IF(X211=$A$103,2,IF(X211=$A$104,3,IF(X211=$A$105,4,IF(X211=$A$106,5,0)))))","v":2},"",null,null,null,null,null,null,null,null,null,null,null,null,null,null,null,null,null,null,null,null,null,null,null,null,null,null,null,null,null,null,null,null,null,null,null,null,null,null,null,null,null,null,null,null,null,null,null,null,null,null,null,null,null,null,null,null,null,null,null,"",""]
[null,null,194,{"$f":"IF(AND(LEFT(R212,2)=\"01\",LEFT(Y212,2)=\"01\",LEFT(X212,2)=\"01\",E212=1),1,0)","v":0},{"$f":"$B$16","v":""},{"$f":"COUNTIF(AP212:AU212,\"X\")","v":0},{"$f":"IF(R212<>\"\",VALUE(LEFT(R212,2)),0)","v":0},{"$f":"IF(Q212<>\"\",COUNTIF($Q$19:$Q$318,Q212),0)","v":0},0,{"$f":"IF(AND(R212=\"01: Docente\",V212=\"SI\"),1,0)","v":0},2,"",null,null,null,null,null,null,null,null,null,null,null,null,null,null,null,null,null,null,null,null,null,null,null,null,null,null,null,null,null,null,null,null,null,null,null,null,null,null,null,null,null,null,null,null,null,null,null,null,null,null,null,null,null,null,null,null,null,null,null,"",""]
[null,null,195,0,"",0,0,0,0,0,2,{"$f":"IF($C213<=$B$5,C213,\"\")","v":""},null,null,null,null,null,null,null,null,null,null,null,null,null,null,null,null,null,null,null,null,null,null,null,null,null,null,null,null,null,null,null,null,null,null,null,null,null,null,null,null,null,null,null,null,null,null,null,null,null,null,null,null,null,null,null,null,null,null,null,"",""]
[null,null,196,0,"",0,0,0,0,0,2,"",null,null,null,null,null,null,null,null,null,null,null,null,null,null,null,null,null,null,null,null,null,null,null,null,null,null,null,null,null,null,null,null,null,null,null,null,null,null,null,null,null,null,null,null,null,null,null,null,null,null,null,null,null,null,null,null,null,null,null,"",""]
[null,null,197,0,"",0,0,0,0,0,2,"",null,null,null,null,null,null,null,null,null,null,null,null,null,null,null,null,null,null,null,null,null,null,null,null,null,null,null,null,null,null,null,null,null,null,null,null,null,null,null,null,null,null,null,null,null,null,null,null,null,null,null,null,null,null,null,null,null,null,null,"",""]
[null,null,198,0,"",0,0,0,0,0,2,"",null,null,null,null,null,null,null,null,null,null,null,null,null,null,null,null,null,null,null,null,null,null,null,null,null,null,null,null,null,null,null,null,null,null,null,null,null,null,null,null,null,null,null,null,null,null,null,null,null,null,null,null,null,null,null,null,null,null,null,"",""]
[null,null,199,0,"",0,0,0,0,0,2,"",null,null,null,null,null,null,null,null,null,null,null,null,null,null,null,null,null,null,null,null,null,null,null,null,null,null,null,null,null,null,null,null,null,null,null,null,null,null,null,null,null,null,null,null,null,null,null,null,null,null,null,null,null,null,null,null,null,null,null,"",""]
[null,null,200,0,"",0,{"$f":"IF(R218<>\"\",VALUE(LEFT(R218,2)),0)","v":0},0,{"$f":"IF(L218<>\"\",1,0)","v":0},0,2,"",null,null,null,null,null,null,null,null,null,null,null,null,null,null,null,null,null,null,null,null,null,null,null,null,null,null,null,null,null,null,null,null,null,null,null,null,null,null,null,null,null,null,null,null,null,null,null,null,null,null,null,null,null,null,null,null,null,null,null,"",""]
[null,null,201,0,"",0,{"$f":"IF(R219<>\"\",VALUE(LEFT(R219,2)),0)","v":0},0,{"$f":"IF(L219<>\"\",1,0)","v":0},0,2,"",null,null,null,null,null,null,null,null,null,null,null,null,null,null,null,null,null,null,null,null,null,null,null,null,null,null,null,null,null,null,null,null,null,null,null,null,null,null,null,null,null,null,null,null,null,null,null,null,null,null,null,null,null,null,null,null,null,null,null,"",""]
[null,null,202,0,"",0,0,0,0,0,2,"",null,null,null,null,null,null,null,null,null,null,null,null,null,null,null,null,null,null,null,null,null,null,null,null,null,null,null,null,null,null,null,null,null,null,null,null,null,null,null,null,null,null,null,null,null,null,null,null,null,null,null,null,null,null,null,null,null,null,null,"",""]
[null,null,203,0,"",0,0,0,0,0,2,"",null,null,null,null,null,null,null,null,null,null,null,null,null,null,null,null,null,null,null,null,null,null,null,null,null,null,null,null,null,null,null,null,null,null,null,null,null,null,null,null,null,null,null,null,null,null,null,null,null,null,null,null,null,null,null,null,null,null,null,"",""]
[null,null,204,0,"",0,0,0,0,0,2,"",null,null,null,null,null,null,null,null,null,null,null,null,null,null,null,null,null,null,null,null,null,null,null,null,null,null,null,null,null,null,null,null,null,null,null,null,null,null,null,null,null,null,null,null,null,null,null,null,null,null,null,null,null,null,null,null,null,null,null,"",""]
[null,null,205,0,"",0,0,0,0,0,2,"",null,null,null,null,null,null,null,null,null,null,null,null,null,null,null,null,null,null,null,null,null,null,null,null,null,null,null,null,null,null,null,null,null,null,null,null,null,null,null,null,null,null,null,null,null,null,null,null,null,null,null,null,null,null,null,null,null,null,null,"",""]
[null,null,206,0,"",0,0,0,0,0,2,"",null,null,null,null,null,null,null,null,null,null,null,null,null,null,null,null,null,null,null,null,null,null,null,null,null,null,null,null,null,null,null,null,null,null,null,null,null,null,null,null,null,null,null,null,null,null,null,null,null,null,null,null,null,null,null,null,null,null,null,"",""]
[null,null,207,0,"",0,0,0,0,0,2,"",null,null,null,null,null,null,null,null,null,null,null,null,null,null,null,null,null,null,null,null,null,null,null,null,null,null,null,null,null,null,null,null,null,null,null,null,null,null,null,null,null,null,null,null,null,null,null,null,null,null,null,null,null,null,null,null,null,null,null,"",""]
[null,null,208,0,"",0,0,0,0,0,2,"",null,null,null,null,null,null,null,null,null,null,null,null,null,null,null,null,null,null,null,null,null,null,null,null,null,null,null,null,null,null,null,null,null,null,null,null,null,null,null,null,null,null,null,null,null,null,null,null,null,null,null,null,null,null,null,null,null,null,null,"",""]
[null,null,209,0,"",0,0,0,0,0,2,"",null,null,null,null,null,null,null,null,null,null,null,null,null,null,null,null,null,null,null,null,null,null,null,null,null,null,null,null,null,null,null,null,null,null,null,null,null,null,null,null,null,null,null,null,null,null,null,null,null,null,null,null,null,null,null,null,null,null,null,"",""]
[null,null,210,0,"",0,0,0,0,0,2,"",null,null,null,null,null,null,null,null,null,null,null,null,null,null,null,null,null,null,null,null,null,null,null,null,null,null,null,null,null,null,null,null,null,null,null,null,null,null,null,null,null,null,null,null,null,null,null,null,null,null,null,null,null,null,null,null,null,null,null,"",""]
[null,null,211,0,"",0,0,0,0,0,2,"",null,null,null,null,null,null,null,null,null,null,null,null,null,null,null,null,null,null,null,null,null,null,null,null,null,null,null,null,null,null,null,null,null,null,null,null,null,null,null,null,null,null,null,null,null,null,null,null,null,null,null,null,null,null,null,null,null,null,null,"",""]
[null,null,212,0,"",0,0,0,0,0,2,"",null,null,null,null,null,null,null,null,null,null,null,null,null,null,null,null,null,null,null,null,null,null,null,null,null,null,null,null,null,null,null,null,null,null,null,null,null,null,null,null,null,null,null,null,null,null,null,null,null,null,null,null,null,null,null,null,null,null,null,"",""]
[null,null,213,0,"",0,0,0,0,0,2,"",null,null,null,null,null,null,null,null,null,null,null,null,null,null,null,null,null,null,null,null,null,null,null,null,null,null,null,null,null,null,null,null,null,null,null,null,null,null,null,null,null,null,null,null,null,null,null,null,null,null,null,null,null,null,null,null,null,null,null,"",""]
[null,null,214,0,"",0,0,0,0,0,2,"",null,null,null,null,null,null,null,null,null,null,null,null,null,null,null,null,null,null,null,null,null,null,null,null,null,null,null,null,null,null,null,null,null,null,null,null,null,null,null,null,null,null,null,null,null,null,null,null,null,null,null,null,null,null,null,null,null,null,null,"",""]
[null,null,215,0,"",0,0,0,0,0,2,"",null,null,null,null,null,null,null,null,null,null,null,null,null,null,null,null,null,null,null,null,null,null,null,null,null,null,null,null,null,null,null,null,null,null,null,null,null,null,null,null,null,null,null,null,null,null,null,null,null,null,null,null,null,null,null,null,null,null,null,"",""]
[null,null,216,0,"",0,0,0,0,0,2,"",null,null,null,null,null,null,null,null,null,null,null,null,null,null,null,null,null,null,null,null,null,null,null,null,null,null,null,null,null,null,null,null,null,null,null,null,null,null,null,null,null,null,null,null,null,null,null,null,null,null,null,null,null,null,null,null,null,null,null,"",""]
[null,null,217,0,"",0,0,0,0,0,2,"",null,null,null,null,null,null,null,null,null,null,null,null,null,null,null,null,null,null,null,null,null,null,null,null,null,null,null,null,null,null,null,null,null,null,null,null,null,null,null,null,null,null,null,null,null,null,null,null,null,null,null,null,null,null,null,null,null,null,null,"",""]
[null,null,218,0,"",0,0,0,0,0,2,"",null,null,null,null,null,null,null,null,null,null,null,null,null,null,null,null,null,null,null,null,null,null,null,null,null,null,null,null,null,null,null,null,null,null,null,null,null,null,null,null,null,null,null,null,null,null,null,null,null,null,null,null,null,null,null,null,null,null,null,"",""]
[null,null,219,0,"",0,0,0,0,0,2,"",null,null,null,null,null,null,null,null,null,null,null,null,null,null,null,null,null,null,null,null,null,null,null,null,null,null,null,null,null,null,null,null,null,null,null,null,null,null,null,null,null,null,null,null,null,null,null,null,null,null,null,null,null,null,null,null,null,null,null,"",""]
[null,null,220,0,"",0,0,0,0,0,2,"",null,null,null,null,null,null,null,null,null,null,null,null,null,null,null,null,null,null,null,null,null,null,null,null,null,null,null,null,null,null,null,null,null,null,null,null,null,null,null,null,null,null,null,null,null,null,null,null,null,null,null,null,null,null,null,null,null,null,null,"",""]
[null,null,221,0,"",0,0,0,0,0,2,"",null,null,null,null,null,null,null,null,null,null,null,null,null,null,null,null,null,null,null,null,null,null,null,null,null,null,null,null,null,null,null,null,null,null,null,null,null,null,null,null,null,null,null,null,null,null,null,null,null,null,null,null,null,null,null,null,null,null,null,"",""]
[null,null,222,0,"",0,0,0,0,0,2,"",null,null,null,null,null,null,null,null,null,null,null,null,null,null,null,null,null,null,null,null,null,null,null,null,null,null,null,null,null,null,null,null,null,null,null,null,null,null,null,null,null,null,null,null,null,null,null,null,null,null,null,null,null,null,null,null,null,null,null,"",""]
[null,null,223,0,"",0,0,0,0,0,2,"",null,null,null,null,null,null,null,null,null,null,null,null,null,null,null,null,null,null,null,null,null,null,null,null,null,null,null,null,null,null,null,null,null,null,null,null,null,null,null,null,null,null,null,null,null,null,null,null,null,null,null,null,null,null,null,null,null,null,null,"",""]
[null,null,224,0,"",0,0,0,0,0,2,"",null,null,null,null,null,null,null,null,null,null,null,null,null,null,null,null,null,null,null,null,null,null,null,null,null,null,null,null,null,null,null,null,null,null,null,null,null,null,null,null,null,null,null,null,null,null,null,null,null,null,null,null,null,null,null,null,null,null,null,"",""]
[null,null,225,0,"",0,0,0,0,0,2,"",null,null,null,null,null,null,null,null,null,null,null,null,null,null,null,null,null,null,null,null,null,null,null,null,null,null,null,null,null,null,null,null,null,null,null,null,null,null,null,null,null,null,null,null,null,null,null,null,null,null,null,null,null,null,null,null,null,null,null,"",""]
[null,null,226,0,"",0,0,0,0,0,2,"",null,null,null,null,null,null,null,null,null,null,null,null,null,null,null,null,null,null,null,null,null,null,null,null,null,null,null,null,null,null,null,null,null,null,null,null,null,null,null,null,null,null,null,null,null,null,null,null,null,null,null,null,null,null,null,null,null,null,null,"",""]
[null,null,227,0,"",0,0,0,0,0,2,"",null,null,null,null,null,null,null,null,null,null,null,null,null,null,null,null,null,null,null,null,null,null,null,null,null,null,null,null,null,null,null,null,null,null,null,null,null,null,null,null,null,null,null,null,null,null,null,null,null,null,null,null,null,null,null,null,null,null,null,"",""]
[null,null,228,0,"",0,0,0,0,0,2,"",null,null,null,null,null,null,null,null,null,null,null,null,null,null,null,null,null,null,null,null,null,null,null,null,null,null,null,null,null,null,null,null,null,null,null,null,null,null,null,null,null,null,null,null,null,null,null,null,null,null,null,null,null,null,null,null,null,null,null,"",""]
[null,null,229,0,"",0,0,0,0,0,2,"",null,null,null,null,null,null,null,null,null,null,null,null,null,null,null,null,null,null,null,null,null,null,null,null,null,null,null,null,null,null,null,null,null,null,null,null,null,null,null,null,null,null,null,null,null,null,null,null,null,null,null,null,null,null,null,null,null,null,null,"",""]
[null,null,230,0,"",0,0,0,0,0,2,"",null,null,null,null,null,null,null,null,null,null,null,null,null,null,null,null,null,null,null,null,null,null,null,null,null,null,null,null,null,null,null,null,null,null,null,null,null,null,null,null,null,null,null,null,null,null,null,null,null,null,null,null,null,null,null,null,null,null,null,"",""]
[null,null,231,0,"",0,0,0,0,0,2,"",null,null,null,null,null,null,null,null,null,null,null,null,null,null,null,null,null,null,null,null,null,null,null,null,null,null,null,null,null,null,null,null,null,null,null,null,null,null,null,null,null,null,null,null,null,null,null,null,null,null,null,null,null,null,null,null,null,null,null,"",""]
[null,null,232,0,"",0,0,0,0,0,2,"",null,null,null,null,null,null,null,null,null,null,null,null,null,null,null,null,null,null,null,null,null,null,null,null,null,null,null,null,null,null,null,null,null,null,null,null,null,null,null,null,null,null,null,null,null,null,null,null,null,null,null,null,null,null,null,null,null,null,null,"",""]
[null,null,233,0,"",0,0,0,0,0,2,"",null,null,null,null,null,null,null,null,null,null,null,null,null,null,null,null,null,null,null,null,null,null,null,null,null,null,null,null,null,null,null,null,null,null,null,null,null,null,null,null,null,null,null,null,null,null,null,null,null,null,null,null,null,null,null,null,null,null,null,"",""]
[null,null,234,0,"",0,0,0,0,0,2,"",null,null,null,null,null,null,null,null,null,null,null,null,null,null,null,null,null,null,null,null,null,null,null,null,null,null,null,null,null,null,null,null,null,null,null,null,null,null,null,null,null,null,null,null,null,null,null,null,null,null,null,null,null,null,null,null,null,null,null,"",""]
[null,null,235,0,"",0,0,0,0,0,2,"",null,null,null,null,null,null,null,null,null,null,null,null,null,null,null,null,null,null,null,null,null,null,null,null,null,null,null,null,null,null,null,null,null,null,null,null,null,null,null,null,null,null,null,null,null,null,null,null,null,null,null,null,null,null,null,null,null,null,null,"",""]
[null,null,236,0,"",0,0,0,0,0,2,"",null,null,null,null,null,null,null,null,null,null,null,null,null,null,null,null,null,null,null,null,null,null,null,null,null,null,null,null,null,null,null,null,null,null,null,null,null,null,null,null,null,null,null,null,null,null,null,null,null,null,null,null,null,null,null,null,null,null,null,"",""]
[null,null,237,0,"",0,0,0,0,0,2,"",null,null,null,null,null,null,null,null,null,null,null,null,null,null,null,null,null,null,null,null,null,null,null,null,null,null,null,null,null,null,null,null,null,null,null,null,null,null,null,null,null,null,null,null,null,null,null,null,null,null,null,null,null,null,null,null,null,null,null,"",""]
[null,null,238,0,"",0,0,0,0,0,2,"",null,null,null,null,null,null,null,null,null,null,null,null,null,null,null,null,null,null,null,null,null,null,null,null,null,null,null,null,null,null,null,null,null,null,null,null,null,null,null,null,null,null,null,null,null,null,null,null,null,null,null,null,null,null,null,null,null,null,null,"",""]
[null,null,239,0,"",0,0,0,0,0,2,"",null,null,null,null,null,null,null,null,null,null,null,null,null,null,null,null,null,null,null,null,null,null,null,null,null,null,null,null,null,null,null,null,null,null,null,null,null,null,null,null,null,null,null,null,null,null,null,null,null,null,null,null,null,null,null,null,null,null,null,"",""]
[null,null,240,0,"",0,0,0,0,0,2,"",null,null,null,null,null,null,null,null,null,null,null,null,null,null,null,null,null,null,null,null,null,null,null,null,null,null,null,null,null,null,null,null,null,null,null,null,null,null,null,null,null,null,null,null,null,null,null,null,null,null,null,null,null,null,null,null,null,null,null,"",""]
[null,null,241,0,"",0,0,0,0,0,2,"",null,null,null,null,null,null,null,null,null,null,null,null,null,null,null,null,null,null,null,null,null,null,null,null,null,null,null,null,null,null,null,null,null,null,null,null,null,null,null,null,null,null,null,null,null,null,null,null,null,null,null,null,null,null,null,null,null,null,null,"",""]
[null,null,242,0,"",0,0,0,0,0,2,"",null,null,null,null,null,null,null,null,null,null,null,null,null,null,null,null,null,null,null,null,null,null,null,null,null,null,null,null,null,null,null,null,null,null,null,null,null,null,null,null,null,null,null,null,null,null,null,null,null,null,null,null,null,null,null,null,null,null,null,"",""]
[null,null,243,0,"",0,0,0,0,0,2,"",null,null,null,null,null,null,null,null,null,null,null,null,null,null,null,null,null,null,null,null,null,null,null,null,null,null,null,null,null,null,null,null,null,null,null,null,null,null,null,null,null,null,null,null,null,null,null,null,null,null,null,null,null,null,null,null,null,null,null,"",""]
[null,null,244,0,"",0,0,0,0,0,2,"",null,null,null,null,null,null,null,null,null,null,null,null,null,null,null,null,null,null,null,null,null,null,null,null,null,null,null,null,null,null,null,null,null,null,null,null,null,null,null,null,null,null,null,null,null,null,null,null,null,null,null,null,null,null,null,null,null,null,null,"",""]
[null,null,245,0,"",0,0,0,0,0,2,"",null,null,null,null,null,null,null,null,null,null,null,null,null,null,null,null,null,null,null,null,null,null,null,null,null,null,null,null,null,null,null,null,null,null,null,null,null,null,null,null,null,null,null,null,null,null,null,null,null,null,null,null,null,null,null,null,null,null,null,"",""]
[null,null,246,0,"",0,0,0,0,0,2,"",null,null,null,null,null,null,null,null,null,null,null,null,null,null,null,null,null,null,null,null,null,null,null,null,null,null,null,null,null,null,null,null,null,null,null,null,null,null,null,null,null,null,null,null,null,null,null,null,null,null,null,null,null,null,null,null,null,null,null,"",""]
[null,null,247,0,"",0,0,0,0,0,2,"",null,null,null,null,null,null,null,null,null,null,null,null,null,null,null,null,null,null,null,null,null,null,null,null,null,null,null,null,null,null,null,null,null,null,null,null,null,null,null,null,null,null,null,null,null,null,null,null,null,null,null,null,null,null,null,null,null,null,null,"",""]
[null,null,248,0,"",0,0,0,0,0,2,"",null,null,null,null,null,null,null,null,null,null,null,null,null,null,null,null,null,null,null,null,null,null,null,null,null,null,null,null,null,null,null,null,null,null,null,null,null,null,null,null,null,null,null,null,null,null,null,null,null,null,null,null,null,null,null,null,null,null,null,"",""]
[null,null,249,0,"",0,0,0,0,0,2,"",null,null,null,null,null,null,null,null,null,null,null,null,null,null,null,null,null,null,null,null,null,null,null,null,null,null,null,null,null,null,null,null,null,null,null,null,null,null,null,null,null,null,null,null,null,null,null,null,null,null,null,null,null,null,null,null,null,null,null,"",""]
[null,null,250,0,"",0,0,0,0,0,2,"",null,null,null,null,null,null,null,null,null,null,null,null,null,null,null,null,null,null,null,null,null,null,null,null,null,null,null,null,null,null,null,null,null,null,null,null,null,null,null,null,null,null,null,null,null,null,null,null,null,null,null,null,null,null,null,null,null,null,null,"",""]
[null,null,251,0,"",0,0,0,0,0,2,"",null,null,null,null,null,null,null,null,null,null,null,null,null,null,null,null,null,null,null,null,null,null,null,null,null,null,null,null,null,null,null,null,null,null,null,null,null,null,null,null,null,null,null,null,null,null,null,null,null,null,null,null,null,null,null,null,null,null,null,"",""]
[null,null,252,0,"",0,0,0,0,0,2,"",null,null,null,null,null,null,null,null,null,null,null,null,null,null,null,null,null,null,null,null,null,null,null,null,null,null,null,null,null,null,null,null,null,null,null,null,null,null,null,null,null,null,null,null,null,null,null,null,null,null,null,null,null,null,null,null,null,null,null,"",""]
[null,null,253,0,"",0,0,0,0,0,2,"",null,null,null,null,null,null,null,null,null,null,null,null,null,null,null,null,null,null,null,null,null,null,null,null,null,null,null,null,null,null,null,null,null,null,null,null,null,null,null,null,null,null,null,null,null,null,null,null,null,null,null,null,null,null,null,null,null,null,null,"",""]
[null,null,254,0,"",0,0,0,0,0,2,"",null,null,null,null,null,null,null,null,null,null,null,null,null,null,null,null,null,null,null,null,null,null,null,null,null,null,null,null,null,null,null,null,null,null,null,null,null,null,null,null,null,null,null,null,null,null,null,null,null,null,null,null,null,null,null,null,null,null,null,"",""]
[null,null,255,0,"",0,0,0,0,0,2,"",null,null,null,null,null,null,null,null,null,null,null,null,null,null,null,null,null,null,null,null,null,null,null,null,null,null,null,null,null,null,null,null,null,null,null,null,null,null,null,null,null,null,null,null,null,null,null,null,null,null,null,null,null,null,null,null,null,null,null,"",""]
[null,null,256,0,"",0,0,0,0,0,2,"",null,null,null,null,null,null,null,null,null,null,null,null,null,null,null,null,null,null,null,null,null,null,null,null,null,null,null,null,null,null,null,null,null,null,null,null,null,null,null,null,null,null,null,null,null,null,null,null,null,null,null,null,null,null,null,null,null,null,null,"",""]
[null,null,257,0,"",0,0,0,0,0,{"$f":"IF(X275=$A$102,1,IF(X275=$A$103,2,IF(X275=$A$104,3,IF(X275=$A$105,4,IF(X275=$A$106,5,0)))))","v":2},"",null,null,null,null,null,null,null,null,null,null,null,null,null,null,null,null,null,null,null,null,null,null,null,null,null,null,null,null,null,null,null,null,null,null,null,null,null,null,null,null,null,null,null,null,null,null,null,null,null,null,null,null,null,null,null,null,null,null,null,"",""]
[null,null,258,{"$f":"IF(AND(LEFT(R276,2)=\"01\",LEFT(Y276,2)=\"01\",LEFT(X276,2)=\"01\",E276=1),1,0)","v":0},{"$f":"$B$16","v":""},{"$f":"COUNTIF(AP276:AU276,\"X\")","v":0},0,{"$f":"IF(Q276<>\"\",COUNTIF($Q$19:$Q$318,Q276),0)","v":0},0,{"$f":"IF(AND(R276=\"01: Docente\",V276=\"SI\"),1,0)","v":0},2,"",null,null,null,null,null,null,null,null,null,null,null,null,null,null,null,null,null,null,null,null,null,null,null,null,null,null,null,null,null,null,null,null,null,null,null,null,null,null,null,null,null,null,null,null,null,null,null,null,null,null,null,null,null,null,null,null,null,null,null,"",""]
[null,null,259,0,"",0,0,0,0,0,2,{"$f":"IF($C277<=$B$5,C277,\"\")","v":""},null,null,null,null,null,null,null,null,null,null,null,null,null,null,null,null,null,null,null,null,null,null,null,null,null,null,null,null,null,null,null,null,null,null,null,null,null,null,null,null,null,null,null,null,null,null,null,null,null,null,null,null,null,null,null,null,null,null,null,"",""]
[null,null,260,0,"",0,0,0,0,0,2,"",null,null,null,null,null,null,null,null,null,null,null,null,null,null,null,null,null,null,null,null,null,null,null,null,null,null,null,null,null,null,null,null,null,null,null,null,null,null,null,null,null,null,null,null,null,null,null,null,null,null,null,null,null,null,null,null,null,null,null,"",""]
[null,null,261,0,"",0,0,0,0,0,2,"",null,null,null,null,null,null,null,null,null,null,null,null,null,null,null,null,null,null,null,null,null,null,null,null,null,null,null,null,null,null,null,null,null,null,null,null,null,null,null,null,null,null,null,null,null,null,null,null,null,null,null,null,null,null,null,null,null,null,null,"",""]
[null,null,262,0,"",0,0,0,0,0,2,"",null,null,null,null,null,null,null,null,null,null,null,null,null,null,null,null,null,null,null,null,null,null,null,null,null,null,null,null,null,null,null,null,null,null,null,null,null,null,null,null,null,null,null,null,null,null,null,null,null,null,null,null,null,null,null,null,null,null,null,"",""]
[null,null,263,0,"",0,0,0,0,0,2,"",null,null,null,null,null,null,null,null,null,null,null,null,null,null,null,null,null,null,null,null,null,null,null,null,null,null,null,null,null,null,null,null,null,null,null,null,null,null,null,null,null,null,null,null,null,null,null,null,null,null,null,null,null,null,null,null,null,null,null,"",""]
[null,null,264,0,"",0,0,0,0,0,2,"",null,null,null,null,null,null,null,null,null,null,null,null,null,null,null,null,null,null,null,null,null,null,null,null,null,null,null,null,null,null,null,null,null,null,null,null,null,null,null,null,null,null,null,null,null,null,null,null,null,null,null,null,null,null,null,null,null,null,null,"",""]
[null,null,265,0,"",0,{"$f":"IF(R283<>\"\",VALUE(LEFT(R283,2)),0)","v":0},0,{"$f":"IF(L283<>\"\",1,0)","v":0},0,2,"",null,null,null,null,null,null,null,null,null,null,null,null,null,null,null,null,null,null,null,null,null,null,null,null,null,null,null,null,null,null,null,null,null,null,null,null,null,null,null,null,null,null,null,null,null,null,null,null,null,null,null,null,null,null,null,null,null,null,null,"",""]
[null,null,266,0,"",0,0,0,0,0,2,"",null,null,null,null,null,null,null,null,null,null,null,null,null,null,null,null,null,null,null,null,null,null,null,null,null,null,null,null,null,null,null,null,null,null,null,null,null,null,null,null,null,null,null,null,null,null,null,null,null,null,null,null,null,null,null,null,null,null,null,"",""]
[null,null,267,0,"",0,0,0,0,0,2,"",null,null,null,null,null,null,null,null,null,null,null,null,null,null,null,null,null,null,null,null,null,null,null,null,null,null,null,null,null,null,null,null,null,null,null,null,null,null,null,null,null,null,null,null,null,null,null,null,null,null,null,null,null,null,null,null,null,null,null,"",""]
[null,null,268,0,"",0,0,0,0,0,2,"",null,null,null,null,null,null,null,null,null,null,null,null,null,null,null,null,null,null,null,null,null,null,null,null,null,null,null,null,null,null,null,null,null,null,null,null,null,null,null,null,null,null,null,null,null,null,null,null,null,null,null,null,null,null,null,null,null,null,null,"",""]
[null,null,269,0,"",0,0,0,0,0,2,"",null,null,null,null,null,null,null,null,null,null,null,null,null,null,null,null,null,null,null,null,null,null,null,null,null,null,null,null,null,null,null,null,null,null,null,null,null,null,null,null,null,null,null,null,null,null,null,null,null,null,null,null,null,null,null,null,null,null,null,"",""]
[null,null,270,0,"",0,0,0,0,0,2,"",null,null,null,null,null,null,null,null,null,null,null,null,null,null,null,null,null,null,null,null,null,null,null,null,null,null,null,null,null,null,null,null,null,null,null,null,null,null,null,null,null,null,null,null,null,null,null,null,null,null,null,null,null,null,null,null,null,null,null,"",""]
[null,null,271,0,"",0,0,0,0,0,2,"",null,null,null,null,null,null,null,null,null,null,null,null,null,null,null,null,null,null,null,null,null,null,null,null,null,null,null,null,null,null,null,null,null,null,null,null,null,null,null,null,null,null,null,null,null,null,null,null,null,null,null,null,null,null,null,null,null,null,null,"",""]
[null,null,272,0,"",0,0,0,0,0,2,"",null,null,null,null,null,null,null,null,null,null,null,null,null,null,null,null,null,null,null,null,null,null,null,null,null,null,null,null,null,null,null,null,null,null,null,null,null,null,null,null,null,null,null,null,null,null,null,null,null,null,null,null,null,null,null,null,null,null,null,"",""]
[null,null,273,0,"",0,0,0,0,0,2,"",null,null,null,null,null,null,null,null,null,null,null,null,null,null,null,null,null,null,null,null,null,null,null,null,null,null,null,null,null,null,null,null,null,null,null,null,null,null,null,null,null,null,null,null,null,null,null,null,null,null,null,null,null,null,null,null,null,null,null,"",""]
[null,null,274,0,"",0,0,0,0,0,2,"",null,null,null,null,null,null,null,null,null,null,null,null,null,null,null,null,null,null,null,null,null,null,null,null,null,null,null,null,null,null,null,null,null,null,null,null,null,null,null,null,null,null,null,null,null,null,null,null,null,null,null,null,null,null,null,null,null,null,null,"",""]
[null,null,275,0,"",0,0,0,0,0,2,"",null,null,null,null,null,null,null,null,null,null,null,null,null,null,null,null,null,null,null,null,null,null,null,null,null,null,null,null,null,null,null,null,null,null,null,null,null,null,null,null,null,null,null,null,null,null,null,null,null,null,null,null,null,null,null,null,null,null,null,"",""]
[null,null,276,0,"",0,0,0,0,0,2,"",null,null,null,null,null,null,null,null,null,null,null,null,null,null,null,null,null,null,null,null,null,null,null,null,null,null,null,null,null,null,null,null,null,null,null,null,null,null,null,null,null,null,null,null,null,null,null,null,null,null,null,null,null,null,null,null,null,null,null,"",""]
[null,null,277,0,"",0,0,0,0,0,2,"",null,null,null,null,null,null,null,null,null,null,null,null,null,null,null,null,null,null,null,null,null,null,null,null,null,null,null,null,null,null,null,null,null,null,null,null,null,null,null,null,null,null,null,null,null,null,null,null,null,null,null,null,null,null,null,null,null,null,null,"",""]
[null,null,278,0,"",0,0,0,0,0,2,"",null,null,null,null,null,null,null,null,null,null,null,null,null,null,null,null,null,null,null,null,null,null,null,null,null,null,null,null,null,null,null,null,null,null,null,null,null,null,null,null,null,null,null,null,null,null,null,null,null,null,null,null,null,null,null,null,null,null,null,"",""]
[null,null,279,0,"",0,0,0,0,0,2,"",null,null,null,null,null,null,null,null,null,null,null,null,null,null,null,null,null,null,null,null,null,null,null,null,null,null,null,null,null,null,null,null,null,null,null,null,null,null,null,null,null,null,null,null,null,null,null,null,null,null,null,null,null,null,null,null,null,null,null,"",""]
[null,null,280,0,"",0,0,0,0,0,2,"",null,null,null,null,null,null,null,null,null,null,null,null,null,null,null,null,null,null,null,null,null,null,null,null,null,null,null,null,null,null,null,null,null,null,null,null,null,null,null,null,null,null,null,null,null,null,null,null,null,null,null,null,null,null,null,null,null,null,null,"",""]
[null,null,281,0,"",0,0,0,0,0,2,"",null,null,null,null,null,null,null,null,null,null,null,null,null,null,null,null,null,null,null,null,null,null,null,null,null,null,null,null,null,null,null,null,null,null,null,null,null,null,null,null,null,null,null,null,null,null,null,null,null,null,null,null,null,null,null,null,null,null,null,"",""]
[null,null,282,0,"",0,0,0,0,0,2,"",null,null,null,null,null,null,null,null,null,null,null,null,null,null,null,null,null,null,null,null,null,null,null,null,null,null,null,null,null,null,null,null,null,null,null,null,null,null,null,null,null,null,null,null,null,null,null,null,null,null,null,null,null,null,null,null,null,null,null,"",""]
[null,null,283,0,"",0,0,0,0,0,2,"",null,null,null,null,null,null,null,null,null,null,null,null,null,null,null,null,null,null,null,null,null,null,null,null,null,null,null,null,null,null,null,null,null,null,null,null,null,null,null,null,null,null,null,null,null,null,null,null,null,null,null,null,null,null,null,null,null,null,null,"",""]
[null,null,284,0,"",0,0,0,0,0,2,"",null,null,null,null,null,null,null,null,null,null,null,null,null,null,null,null,null,null,null,null,null,null,null,null,null,null,null,null,null,null,null,null,null,null,null,null,null,null,null,null,null,null,null,null,null,null,null,null,null,null,null,null,null,null,null,null,null,null,null,"",""]
[null,null,285,0,"",0,0,0,0,0,2,"",null,null,null,null,null,null,null,null,null,null,null,null,null,null,null,null,null,null,null,null,null,null,null,null,null,null,null,null,null,null,null,null,null,null,null,null,null,null,null,null,null,null,null,null,null,null,null,null,null,null,null,null,null,null,null,null,null,null,null,"",""]
[null,null,286,0,"",0,0,0,0,0,2,"",null,null,null,null,null,null,null,null,null,null,null,null,null,null,null,null,null,null,null,null,null,null,null,null,null,null,null,null,null,null,null,null,null,null,null,null,null,null,null,null,null,null,null,null,null,null,null,null,null,null,null,null,null,null,null,null,null,null,null,"",""]
[null,null,287,0,"",0,0,0,0,0,2,"",null,null,null,null,null,null,null,null,null,null,null,null,null,null,null,null,null,null,null,null,null,null,null,null,null,null,null,null,null,null,null,null,null,null,null,null,null,null,null,null,null,null,null,null,null,null,null,null,null,null,null,null,null,null,null,null,null,null,null,"",""]
[null,null,288,0,"",0,0,0,0,0,2,"",null,null,null,null,null,null,null,null,null,null,null,null,null,null,null,null,null,null,null,null,null,null,null,null,null,null,null,null,null,null,null,null,null,null,null,null,null,null,null,null,null,null,null,null,null,null,null,null,null,null,null,null,null,null,null,null,null,null,null,"",""]
[null,null,289,0,"",0,0,0,0,0,2,"",null,null,null,null,null,null,null,null,null,null,null,null,null,null,null,null,null,null,null,null,null,null,null,null,null,null,null,null,null,null,null,null,null,null,null,null,null,null,null,null,null,null,null,null,null,null,null,null,null,null,null,null,null,null,null,null,null,null,null,"",""]
[null,null,290,0,"",0,0,0,0,0,2,"",null,null,null,null,null,null,null,null,null,null,null,null,null,null,null,null,null,null,null,null,null,null,null,null,null,null,null,null,null,null,null,null,null,null,null,null,null,null,null,null,null,null,null,null,null,null,null,null,null,null,null,null,null,null,null,null,null,null,null,"",""]
[null,null,291,0,"",0,0,0,0,0,2,"",null,null,null,null,null,null,null,null,null,null,null,null,null,null,null,null,null,null,null,null,null,null,null,null,null,null,null,null,null,null,null,null,null,null,null,null,null,null,null,null,null,null,null,null,null,null,null,null,null,null,null,null,null,null,null,null,null,null,null,"",""]
[null,null,292,0,"",0,0,0,0,0,2,"",null,null,null,null,null,null,null,null,null,null,null,null,null,null,null,null,null,null,null,null,null,null,null,null,null,null,null,null,null,null,null,null,null,null,null,null,null,null,null,null,null,null,null,null,null,null,null,null,null,null,null,null,null,null,null,null,null,null,null,"",""]
[null,null,293,0,"",0,0,0,0,0,2,"",null,null,null,null,null,null,null,null,null,null,null,null,null,null,null,null,null,null,null,null,null,null,null,null,null,null,null,null,null,null,null,null,null,null,null,null,null,null,null,null,null,null,null,null,null,null,null,null,null,null,null,null,null,null,null,null,null,null,null,"",""]
[null,null,294,0,"",0,0,0,0,0,2,"",null,null,null,null,null,null,null,null,null,null,null,null,null,null,null,null,null,null,null,null,null,null,null,null,null,null,null,null,null,null,null,null,null,null,null,null,null,null,null,null,null,null,null,null,null,null,null,null,null,null,null,null,null,null,null,null,null,null,null,"",""]
[null,null,295,0,"",0,0,0,0,0,2,"",null,null,null,null,null,null,null,null,null,null,null,null,null,null,null,null,null,null,null,null,null,null,null,null,null,null,null,null,null,null,null,null,null,null,null,null,null,null,null,null,null,null,null,null,null,null,null,null,null,null,null,null,null,null,null,null,null,null,null,"",""]
[null,null,296,0,"",0,0,0,0,0,2,"",null,null,null,null,null,null,null,null,null,null,null,null,null,null,null,null,null,null,null,null,null,null,null,null,null,null,null,null,null,null,null,null,null,null,null,null,null,null,null,null,null,null,null,null,null,null,null,null,null,null,null,null,null,null,null,null,null,null,null,"",""]
[null,null,297,0,"",0,0,0,0,0,2,"",null,null,null,null,null,null,null,null,null,null,null,null,null,null,null,null,null,null,null,null,null,null,null,null,null,null,null,null,null,null,null,null,null,null,null,null,null,null,null,null,null,null,null,null,null,null,null,null,null,null,null,null,null,null,null,null,null,null,null,"",""]
[null,null,298,0,"",0,0,0,0,0,2,"",null,null,null,null,null,null,null,null,null,null,null,null,null,null,null,null,null,null,null,null,null,null,null,null,null,null,null,null,null,null,null,null,null,null,null,null,null,null,null,null,null,null,null,null,null,null,null,null,null,null,null,null,null,null,null,null,null,null,null,"",""]
[null,null,299,0,"",0,0,0,0,0,2,"",null,null,null,null,null,null,null,null,null,null,null,null,null,null,null,null,null,null,null,null,null,null,null,null,null,null,null,null,null,null,null,null,null,null,null,null,null,null,null,null,null,null,null,null,null,null,null,null,null,null,null,null,null,null,null,null,null,null,null,"",""]
[null,null,300,0,{"$f":"$B$16","v":""},0,{"$f":"IF(R318<>\"\",VALUE(LEFT(R318,2)),0)","v":0},0,{"$f":"IF(L318<>\"\",1,0)","v":0},0,2,"",null,null,null,null,null,null,null,null,null,null,null,null,null,null,null,null,null,null,null,null,null,null,null,null,null,null,null,null,null,null,null,null,null,null,null,null,null,null,null,null,null,null,null,null,null,null,null,null,null,null,null,null,null,null,null,null,null,null,null,"",""]
[]
[null,null,null,null,null,null,null,null,null,null,null,"Limite"]

{"sheet":"C334","index":5,"n_rows":130,"n_cols":31,"rows_kept":130,"cut":false,"hidden":false,"merged":[[0,16,2,16],[1,4,1,15],[2,4,2,15],[25,8,25,10],[26,6,27,6],[26,11,27,11],[26,12,27,12],[15,5,15,16],[26,5,27,5],[26,7,27,7],[26,8,26,10]]}
[null,null,null,null,null,null,null,null,null,null,null,null,null,null,null,null,"3AP"]
[null,null,null,null,"CENSO EDUCATIVO 2022"]
[null,null,null,null,"MATRÍCULA, DOCENTES Y MATERIALES EDUCATIVOS"]
[]
[]
[]
[null,null,null,null,null,null,"334. ¿CUENTA CON LA ASIGNATURA DE ARTE Y CULTURA?"]
[]
[null,null,null,null,null,null,null,null,null,null,"¿Cuántos docentes están asignados al dictado de la asignatura?"]
[null,null,null,null,null,null,null,"Sí   "]
[null,null,null,null,null,null,null,null,null,null,"¿Cuántas horas a la semana se dictan?"]
[]
[null,null,null,null,null,null,null,"No  "]
[]
[]
[null,null,null,null,null,"DOCENTES QUE DOMINAN LENGUA ORIGINARIA (Solo para II.EE. Públicas)"]
[]
["GESTIÓN",null,null,null,null,null,"335. SEGÚN LO ANOTADO EN LA PREGUNTA 307, ¿CUENTA CON UN DOCENTE QUE DOMINE UNA LENGUA ORIGINARIA?"]
[null,null,null,null,null,null,"Hacer click en el botón [Verificar] para revisar los docentes que dominan una lengua originaria"]
[1]
[null,null,null,null,null,null,null,"Sí   ",null,null,null,null,"¿Cuántos?"]
[]
[null,null,null,null,null,null,null,"No  ",null,null,null,null,"Pase a la sección 400."]
[]
[null,null,null,null,null,6,7,8,9,10,11,12]
[null,null,null,null,null,null,null,null,"335.1",null,null,"335.2","335.3","335.4","335.5","335.6","335.7"]
[null,null,null,null,null,"Nº","Nº de fila registrado en la pregunta 307","Documento de Identidad","Conocimiento de\nlengua originaria",null,null,"¿Cuenta con estudios en Educación Intercultural Bilingüe?","Solo si respondió \"SÍ\"  en la pregunta 335.2 ¿Cuál fue el tipo de estudios en EIB?","¿Ha recibido\ncapacitación en EIB?","¿El docente enseña\nen lengua originaria?","¿El material recibido coincide con la lengua que enseña?","¿En la actualidad el Docente se encuentra en el Registro de Docentes Bilingües?"]
["330.3 ¿Cuál fue el tipo de estudios en EIB?","Corr","Gest","Fmt",null,null,null,null,"Habla","Lee","Escribe",null,null," Sí / No"," Sí / No"," Sí / No"," Sí / No"]
["01: Doctorado",1,{"$f":"$A$20","v":1},{"$f":"IF(F29<>\"\",1,0)","v":0},null,{"$f":"IF(AND($B29<=$N$21,$C29=1),$B29,\"\")","v":""},null,null,"","","","","","","","","","","","","","","","","","","","","","",""]
["02: Maestría",{"$f":"B29+1","v":2},1,{"$f":"IF(F30<>\"\",1,0)","v":0},null,{"$f":"IF(AND($B30<=$N$21,$C30=1),$B30,\"\")","v":""},null,null,"","","","","","","","","","","","","","","","","","","","","","",""]
["03: Segunda especialidad",{"$f":"B30+1","v":3},1,0,null,{"$f":"IF(AND($B31<=$N$21,$C31=1),$B31,\"\")","v":""},"","","","","","","","","","","","","","","","","","","","","","","","",""]
["04: Especialización",4,1,0,null,"","","","","","","","","","","","","","","","","","","","","","","","","",""]
["05: Actualización",5,1,0,null,"","","","","","","","","","","","","",null,"","","","","","","","","","","",""]
["06: Otro",6,1,0,null,"","","","","","","","","","","","","","","","","","","","","","","","","",""]
[null,7,1,0,null,"","","","","","","","","","","","","","","","","","","","","","","","","",""]
[null,8,1,0,null,"","","","","","","","","","","","","","","","","","","","","","","","","",""]
["SI",9,1,0,null,"","","","","","","","","","","","","","","","","","","","","","","","","",""]
["NO",10,1,0,null,"","","","","","","","","","","","","","","","","","","","","","","","","",""]
[null,11,1,0,null,"","","","","","","","","","","","","","","","","","","","","","","","","",""]
[null,12,1,0,null,"","","","","","","","","","","","","","","","","","","","","","","","","",""]
[null,13,1,0,null,"","","","","","","","","","","","","","","","","","","","","","","","","",""]
[null,14,1,0,null,"","","","","","","","","","","","","","","","","","","","","","","","","",""]
[null,15,1,0,null,"","","","","","","","","","","","","","","","","","","","","","","","","",""]
[null,16,1,0,null,"","","","","","","","","","","","","","","","","","","","","","","","","",""]
[null,17,1,0,null,"","","","","","","","","","","","","","","","","","","","","","","","","",""]
[null,18,1,0,null,"","","","","","","","","","","","","","","","","","","","","","","","","",""]
[null,19,1,0,null,"","","","","","","","","","","","","","","","","","","","","","","","","",""]
[null,20,1,0,null,"","","","","","","","","","","","","","","","","","","","","","","","","",""]
[null,21,1,0,null,"","","","","","","","","","","","","","","","","","","","","","","","","",""]
[null,22,1,0,null,"","","","","","","","","","","","","","","","","","","","","","","","","",""]
[null,23,1,0,null,"","","","","","","","","","","","","","","","","","","","","","","","","",""]
[null,24,1,0,null,"","","","","","","","","","","","","","","","","","","","","","","","","",""]
[null,25,1,0,null,"","","","","","","","","","","","","","","","","","","","","","","","","",""]
[null,26,1,0,null,"","","","","","","","","","","","","","","","","","","","","","","","","",""]
[null,27,1,0,null,"","","","","","","","","","","","","","","","","","","","","","","","","",""]
[null,28,1,0,null,"","","","","","","","","","","","","","","","","","","","","","","","","",""]
[null,29,1,0,null,"","","","","","","","","","","","","","","","","","","","","","","","","",""]
[null,30,1,0,null,"","","","","","","","","","","","","","","","","","","","","","","","","",""]
[null,31,1,0,null,"","","","","","","","","","","","","","","","","","","","","","","","","",""]
[null,32,1,0,null,"","","","","","","","","","","","","","","","","","","","","","","","","",""]
[null,33,1,0,null,"","","","","","","","","","","","","","","","","","","","","","","","","",""]
[null,34,1,0,null,"","","","","","","","","","","","","","","","","","","","","","","","","",""]
[null,35,1,0,null,"","","","","","","","","","","","","","","","","","","","","","","","","",""]
[null,36,1,0,null,"","","","","","","","","","","","","","","","","","","","","","","","","",""]
[null,37,1,0,null,"","","","","","","","","","","","","","","","","","","","","","","","","",""]
[null,38,1,0,null,"","","","","","","","","","","","","","","","","","","","","","","","","",""]
[null,39,1,0,null,"","","","","","","","","","","","","","","","","","","","","","","","","",""]
[null,40,1,0,null,"","","","","","","","","","","","","","","","","","","","","","","","","",""]
[null,41,1,0,null,"","","","","","","","","","","","","","","","","","","","","","","","","",""]
[null,42,1,0,null,"","","","","","","","","","","","","","","","","","","","","","","","","",""]
[null,43,1,0,null,"","","","","","","","","","","","","","","","","","","","","","","","","",""]
[null,44,1,0,null,"","","","","","","","","","","","","","","","","","","","","","","","","",""]
[null,45,1,0,null,"","","","","","","","","","","","","","","","","","","","","","","","","",""]
[null,46,1,0,null,"","","","","","","","","","","","","","","","","","","","","","","","","",""]
[null,47,1,0,null,"","","","","","","","","","","","","","","","","","","","","","","","","",""]
[null,48,1,0,null,"","","","","","","","","","","","","","","","","","","","","","","","","",""]
[null,49,1,0,null,"","","","","","","","","","","","","","","","","","","","","","","","","",""]
[null,50,1,0,null,"","","","","","","","","","","","","","","","","","","","","","","","","",""]
[null,51,1,0,null,"","","","","","","","","","","","","","","","","","","","","","","","","",""]
[null,52,1,0,null,"","","","","","","","","","","","","","","","","","","","","","","","","",""]
[null,53,1,0,null,"","","","","","","","","","","","","","","","","","","","","","","","","",""]
[null,54,1,0,null,"","","","","","","","","","","","","","","","","","","","","","","","","",""]
[null,55,1,0,null,"","","","","","","","","","","","","","","","","","","","","","","","","",""]
[null,56,1,0,null,"","","","","","","","","","","","","","","","","","","","","","","","","",""]
[null,57,1,0,null,"","","","","","","","","","","","","","","","","","","","","","","","","",""]
[null,58,1,0,null,"","","","","","","","","","","","","","","","","","","","","","","","","",""]
[null,59,1,0,null,"","","","","","","","","","","","","","","","","","","","","","","","","",""]
[null,60,1,0,null,"","","","","","","","","","","","","","","","","","","","","","","","","",""]
[null,61,1,0,null,"","","","","","","","","","","","","","","","","","","","","","","","","",""]
[null,62,1,0,null,"","","","","","","","","","","","","","","","","","","","","","","","","",""]
[null,63,1,0,null,"","","","","","","","","","","","","","","","","","","","","","","","","",""]
[null,64,1,0,null,"","","","","","","","","","","","","","","","","","","","","","","","","",""]
[null,65,{"$f":"$A$20","v":1},0,null,"","","","","","","","","","","","","","","","","","","","","","","","","",""]
[null,66,1,{"$f":"IF(F94<>\"\",1,0)","v":0},null,"","","","","","","","","","","","","","","","","","","","","","","","","",""]
[null,{"$f":"B94+1","v":67},1,0,null,{"$f":"IF(AND($B95<=$N$21,$C95=1),$B95,\"\")","v":""},"","","","","","","","","","","","","","","","","","","","","","","","",""]
[null,68,1,0,null,"","","","","","","","","","","","","","","","","","","","","","","","","",""]
[null,69,1,0,null,"","","","","","","","","","","","","","","","","","","","","","","","","",""]
[null,70,1,0,null,"","","","","","","","","","","","","","","","","","","","","","","","","",""]
[null,71,1,0,null,"","","","","","","","","","","","","","","","","","","","","","","","","",""]
[null,72,1,0,null,"","","","","","","","","","","","","","","","","","","","","","","","","",""]
[null,73,1,0,null,"","","","","","","","","","","","","","","","","","","","","","","","","",""]
[null,74,1,0,null,"","","","","","","","","","","","","","","","","","","","","","","","","",""]
[null,75,1,0,null,"","","","","","","","","","","","","","","","","","","","","","","","","",""]
[null,76,1,0,null,"","","","","","","","","","","","","","","","","","","","","","","","","",""]
[null,77,1,0,null,"","","","","","","","","","","","","","","","","","","","","","","","","",""]
[null,78,1,0,null,"","","","","","","","","","","","","","","","","","","","","","","","","",""]
[null,79,1,0,null,"","","","","","","","","","","","","","","","","","","","","","","","","",""]
[null,80,1,0,null,"","","","","","","","","","","","","","","","","","","","","","","","","",""]
[null,81,1,0,null,"","","","","","","","","","","","","","","","","","","","","","","","","",""]
[null,82,1,0,null,"","","","","","","","","","","","","","","","","","","","","","","","","",""]
[null,83,1,0,null,"","","","","","","","","","","","","","","","","","","","","","","","","",""]
[null,84,1,0,null,"","","","","","","","","","","","","","","","","","","","","","","","","",""]
[null,85,1,0,null,"","","","","","","","","","","","","","","","","","","","","","","","","",""]
[null,86,1,0,null,"","","","","","","","","","","",""]
[null,87,1,0,null,"","","","","","","","","","","",""]
[null,88,1,0,null,"","","","","","","","","","","",""]
[null,89,1,0,null,"","","","","","","","","","","",""]
[null,90,1,0,null,"","","","","","","","","","","",""]
[null,91,1,0,null,"","","","","","","","","","","",""]
[null,92,1,0,null,"","","","","","","","","","","",""]
[null,93,1,0,null,"","","","","","","","","","","",""]
[null,94,1,0,null,"","","","","","","","","","","",""]
[null,95,1,0,null,"","","","","","","","","","","",""]
[null,96,1,0,null,"","","","","","","","","","","",""]
[null,97,1,0,null,"","","","","","","","","","","",""]
[null,98,1,0,null,"","","","","","","","","","","",""]
[null,99,1,0,null,"","","","","","","","","","","",""]
[null,100,1,0,null,"","","","","","","","","","","","","","","","","","","","","","","","","",""]
[null,null,null,null,null,null,null,"","","","","","","","",""]
[null,null,null,null,null,"Limite",null,"Limite","Limite","Limite","Limite","Limite","Limite","Limite","Limite",null,"Limite"]

{"sheet":"C400","index":6,"n_rows":63,"n_cols":33,"rows_kept":63,"cut":false,"hidden":false,"merged":[[30,3,35,4],[26,3,29,4],[6,2,6,19],[26,5,29,7],[26,8,28,8],[26,9,28,9],[26,10,27,16],[26,17,27,23],[0,17,2,19],[1,1,1,16],[2,1,2,16],[26,24,27,30],[26,31,29,31],[28,10,29,10],[28,11,28,16],[28,17,29,17],[28,18,28,23],[28,24,29,24],[28,25,28,30],[36,3,39,4],[40,3,48,4],[49,3,56,4],[56,5,56,7],[57,3,60,4],[60,5,60,7],[42,5,42,7],[43,5,43,7]]}
[null,null,null,null,null,null,null,null,null,null,null,null,null,null,null,null,null,"3AP"]
[null,"CENSO EDUCATIVO 2022"]
[null,"MATRÍCULA, DOCENTES Y MATERIALES EDUCATIVOS"]
[]
[]
[]
["",null,"400. MATERIALES EDUCATIVOS (SOLO GESTIÓN PÚBLICA)"]
[""]
[null,null,"401. ¿RECIBIÓ MATERIALES CORRESPONDIENTES A LA DOTACIÓN 2022?"]
[]
[]
[null,null,null," Sí","","No  ","",null,"Pase a la SECCIÓN 500."]
[]
[]
[null,null,"402. ¿RECIBIÓ CUADERNOS DE TRABAJO EN LENGUA ORIGINARIA?"]
[]
[null,null,null," Sí",""," No  ",""]
[]
[null,null,null,null,null,"¿Corresponden a la lengua de los estudiantes "]
[null,null,null,null,null,"  de este servicio/nivel educativo?"]
[]
[null,null,null,null,null," Sí  ","",null," No  ",""]
[]
[]
[null,null,"403. DETALLE DE CUADERNOS DE TRABAJO, TEXTOS, KITS Y GUÍAS CORRESPONDIENTES A LA DOTACIÓN 2022 POR GRADO"]
[]
[null,null,null,"BENEFICIARIO",null,"MATERIAL EDUCATIVO",null,null,"¿Recibió los materiales?","¿En qué fecha\nrecibió los\nmateriales?","CANTIDAD DE MATERIAL RECIBIDO",null,null,null,null,null,null,"CANTIDAD DE MATERIAL SOBRANTE",null,null,null,null,null,null,"CANTIDAD DE MATERIAL FALTANTE",null,null,null,null,null,null,"¿En qué fecha se culminó con la entrega \nde todos los materia les educativos a los \nbeneficiarios?\nDía/Mes/Año"]
[]
[null,null,null,null,null,null,null,null,null,null,"TOTAL RECIBIDO","GRADO DE ESTUDIO",null,null,null,null,null,"TOTAL SOBRANTE","GRADO DE ESTUDIO",null,null,null,null,null,"TOTAL FALTANTE","GRADO DE ESTUDIO"]
[null,null,null,null,null,null,null,null," SI - NO","Día / Mes / Año",null,"1º","2º","3º","4º","5º","6º",null,"1º","2º","3º","4º","5º","6º",null,"1º","2º","3º","4º","5º","6º"]
[null,null,{"$f":"COUNTIF(I31:I61,\"NO\")","v":0},"ESTUDIANTE DE PRIMARIA",null,"Cuaderno de trabajo de matemática",null,null,null,null,{"$f":"SUM(L31:Q31)","v":0},null,null,null,null,null,null,{"$f":"SUM(S31:X31)","v":0},null,null,null,null,null,null,{"$f":"SUM(Z31:AE31)","v":0},null,null,null,null,null,null,null,"01"]
[null,null,null,null,null,"Cuaderno de trabajo de Comunicación",null,null,null,null,0,null,null,null,null,null,null,{"$f":"SUM(S32:X32)","v":0},null,null,null,null,null,null,0,null,null,null,null,null,null,null,"02"]
[null,null,null,null,null,"Cuaderno de trabajo - Cuadernillo de Tutoría",null,null,null,null,{"$f":"SUM(L33:Q33)","v":0},null,null,null,null,null,null,0,null,null,null,null,null,null,0,null,null,null,null,null,null,null,"03"]
["01",null,null,null,null,"Kit de evaluación - Prueba diagnóstica matemática",null,null,null,null,0,null,null,null,null,null,null,0,null,null,null,null,null,null,0,null,null,null,null,null,null,null,"04"]
["02",null,null,null,null,"Kit de evaluación - Prueba diagnóstica lectura",null,null,null,null,0,null,null,null,null,null,null,0,null,null,null,null,null,null,0,null,null,null,null,null,null,null,"05"]
["03",null,null,null,null,"Kit de evaluación - Prueba diagnóstica escritura",null,null,null,null,0,null,null,null,null,null,null,0,null,null,null,null,null,null,0,null,null,null,null,null,null,null,"06"]
["04",null,null,"ESTUDIANTE DE PRIMARIA MULTIGRADO",null,"Cuaderno de autoaprendizaje de Matemática",null,null,null,null,0,null,null,null,null,null,null,0,null,null,null,null,null,null,0,null,null,null,null,null,null,null,"07"]
["05",null,null,null,null,"Cuaderno de autoaprendizaje de Comunicación",null,null,null,null,0,null,null,null,null,null,null,0,null,null,null,null,null,null,0,null,null,null,null,null,null,null,"08"]
["06",null,null,null,null,"Cuaderno de autoaprendizaje de Personal Social",null,null,null,null,0,null,null,null,null,null,null,0,null,null,null,null,null,null,0,null,null,null,null,null,null,null,"09"]
["07",null,null,null,null,"Cuaderno de autoaprendizaje de Ciencia y Tecnología",null,null,null,null,0,null,null,null,null,null,null,0,null,null,null,null,null,null,0,null,null,null,null,null,null,null,"10"]
["08",null,null,"ESTUDIANTE DE PRIMARIA EIB",null,"Cuaderno de trabajo - Matemáticas en lengua originaria",null,null,null,null,0,null,null,null,null,null,null,0,null,null,null,null,null,null,0,null,null,null,null,null,null,null,"11"]
["09",null,null,null,null,"Cuaderno de trabajo - Comunicación en lengua originaria",null,null,null,null,0,null,null,null,null,null,null,0,null,null,null,null,null,null,0,null,null,null,null,null,null,null,"12"]
["10",null,null,null,null,"Cuaderno de trabajo - Pers. Social - Ciencia y Tecnología en lengua originaria",null,null,null,null,0,null,null,null,null,null,null,0,null,null,null,null,null,null,0,null,null,null,null,null,null,null,"13"]
["11",null,null,null,null,"Texto - Personal Social - Ciencia y Tecnología en lengua originaria",null,null,null,null,0,null,null,null,null,null,null,0,null,null,null,null,null,null,0,null,null,null,null,null,null,null,"14"]
["12",null,null,null,null,"Cuaderno de trabajo castellano como 2da lengua",null,null,null,null,0,null,null,null,null,null,null,0,null,null,null,null,null,null,0,null,null,null,null,null,null,null,"15"]
["13",null,null,null,null,"Texto - Cancionero Escolar III Ciclo",null,null,null,null,null,null,null,null,null,null,null,null,null,null,null,null,null,null,null,null,null,null,null,null,null,null,"16"]
["14",null,null,null,null,"Texto - Diccionario Escolar III Ciclo",null,null,null,null,null,null,null,null,null,null,null,null,null,null,null,null,null,null,null,null,null,null,null,null,null,null,"17"]
["15",null,null,null,null,"Fichas de autoaprendizaje en lengua originaria",null,null,null,null,null,null,null,null,null,null,null,null,null,null,null,null,null,null,null,null,null,null,null,null,null,null,"18"]
["16",null,null,null,null,"Fichas trabajo de comunicación en lengua originaria",null,null,null,null,null,null,null,null,null,null,null,null,null,null,null,null,null,null,null,null,null,null,null,null,null,null,"19"]
["17",null,null,"DOCENTES",null,"Guía docente cuaderno de autoaprendiz. Matemática",null,null,null,null,null,null,null,null,null,null,null,null,null,null,null,null,null,null,null,null,null,null,null,null,null,null,"20"]
["18",null,null,null,null,"Guía docente cuaderno de autoaprendiz. Comunicac.",null,null,null,null,null,null,null,null,null,null,null,null,null,null,null,null,null,null,null,null,null,null,null,null,null,null,"21"]
["19",null,null,null,null,"Kit de evaluación - Registro de Matemática",null,null,null,null,null,null,null,null,null,null,null,null,null,null,null,null,null,null,null,null,null,null,null,null,null,null,"22"]
["20",null,null,null,null,"Kit de evaluación - Registro de lectura",null,null,null,null,null,null,null,null,null,null,null,null,null,null,null,null,null,null,null,null,null,null,null,null,null,null,"23"]
["21",null,null,null,null,"Kit de evaluación - Registro de escritura",null,null,null,null,null,null,null,null,null,null,null,null,null,null,null,null,null,null,null,null,null,null,null,null,null,null,"24"]
["22",null,null,null,null,"Kit de evaluación - Manual de la prueba diagnóstica",null,null,null,null,null,null,null,null,null,null,null,null,null,null,null,null,null,null,null,null,null,null,null,null,null,null,"25"]
["23",null,null,null,null,"Texto - Vocabulario pedagógico en lengua originaria",null,null,null,null,null,null,null,null,null,null,null,null,null,null,null,null,null,null,null,null,null,null,null,null,null,null,"26"]
["24",null,null,null,null,"Texto - Manual de escritura en lengua originaria",null,null,null,null,null,null,null,null,null,null,null,null,null,null,null,null,null,null,null,null,null,null,null,null,null,null,"27"]
["25",null,null,"AULA",null,"Colección de adivinanzas y poemas en lengua originaria",null,null,null,null,null,null,null,null,null,null,null,null,null,null,null,null,null,null,null,null,null,null,null,null,null,null,"28"]
["26",null,null,null,null,"Colección de relatos en lengua originaria",null,null,null,null,null,null,null,null,null,null,null,null,null,null,null,null,null,null,null,null,null,null,null,null,null,null,"29"]
["27",null,null,null,null,"Diccionario visual en lengua originaria",null,null,null,null,null,null,null,null,null,null,null,null,null,null,null,null,null,null,null,null,null,null,null,null,null,null,"30"]
["28",null,null,null,null,"Nuestros cantos en lengua originaria",null,null,null,null,null,null,null,null,null,null,null,null,null,null,null,null,null,null,null,null,null,null,null,null,null,null,"31"]
["29",null,null,null,null,null,null,null,{"$f":"COUNTIF(I31:I61,\"SI\")+COUNTIF(I31:I61,\"NO\")","v":0},null,{"$f":"SUM(K31:K61)","v":0},null,null,null,null,null,null,{"$f":"SUM(R31:R61)","v":0},null,null,null,null,null,null,{"$f":"SUM(Y31:Y61)","v":0}]
["30"]

{"sheet":"C500","index":7,"n_rows":119,"n_cols":23,"rows_kept":119,"cut":false,"hidden":false,"merged":[[0,20,2,22],[1,0,1,19],[2,1,2,19],[118,16,118,20],[21,13,24,21],[49,18,49,21],[46,5,46,10],[60,7,61,10],[9,8,11,8],[16,10,16,11],[17,10,17,11],[73,7,74,10],[60,2,62,6],[73,2,75,6],[9,9,11,9],[9,2,11,6],[9,10,11,11],[12,10,12,11],[22,10,22,11],[24,10,24,11],[13,10,13,11],[14,10,14,11],[15,10,15,11],[85,18,86,21],[30,6,30,7],[31,6,31,7],[31,8,31,11],[18,10,18,11],[19,10,19,11],[20,10,20,11],[21,10,21,11],[30,8,30,11],[23,10,23,11],[87,7,88,10],[87,2,89,6],[112,6,112,10],[94,15,94,17],[95,15,95,17],[85,13,87,17]]}
[null,null,null,null,null,null,null,null,null,null,null,null,null,null,null,null,null,null,null,null,"3AP"]
["CENSO EDUCATIVO 2022"]
[null,"MATRÍCULA, DOCENTES Y MATERIALES EDUCATIVOS"]
["No"]
[]
[]
[null,"500. OTROS RECURSOS DISPONIBLES PARA LA ENSEÑANZA (Para II.EE. Públicas y Privadas)"]
[]
[null,"501. EQUIPOS Y SERVICIOS QUE DISPONE EL SERVICIO/NIVEL EDUCATIVO",null,null,null,null,null,null,null,null,null,null,"502. ¿QUÉ GRADOS ATENDIDOS CUENTAN CON UNA BIBLIOTECA DE AULA?"]
[null,"SI","EQUIPOS Y SERVICIOS",null,null,null,null,null,"¿Cuántos tiene?","¿Cuántos estan operativos?","¿Son utilizados para la enseñanza en interacción con los estudiantes?\nSí - No",null,null,"  DETALLE EL NÚMERO DE EJEMPLARES (LIBROS QUE LA CONFORMAN)."]
[null,"NO",null,null,null,null,null," SI - NO",null,null,null,null,null,"(Marque con un aspa “X” el grado de estudio correspondiente y anote el"]
[null,null,null,null,null,null,null,{"$f":"COUNTIF(H13:H25,\"SI\")+COUNTIF(H13:H25,\"NO\")","v":0},null,null,null,null,null,"número total de ejemplares según corresponda)."]
[null,null,"01","Televisor(es)",null,null,null,null,null,null,null,null,null,"Grado Atendido",null,null,null,null,null,"Nº Total de Ejemplares"]
[null,null,"02","Computadoras (PC de escritorio)",null,null,null,null,null,null,null,null,null,null,null," 1º Grado","----------------------"]
[null,null,"03","Laptop convencionales",null,null,null,null,null,null,null,null,null,null,null," 2º Grado","----------------------"]
[null,null,"04","Laptop XO",null,null,null,null,null,null,null,null,null,null,null," 3º Grado","----------------------"]
[null,null,"05"," Servidores (Exclusivo del nivel)",null,null,null,null,null,null,null,null,null,null,null," 4º Grado","----------------------"]
[null,null,"06","Tablets",null,null,null,null,null,null,null,null,null,null,null," 5º Grado","----------------------"]
[null,null,"07","Proyector",null,null,null,null,null,null,null,null,null,null,null," 6º Grado","----------------------"]
[null,null,"08","Radiograbadora",null,null,null,null,null,null,null,null,null,null,null," NINGÚN GRADO",null,null,null,{"$f":"SUM(T14:T19)","v":0}]
[null,null,"09","Reproductor de DVD o Blue Ray"]
[null,null,"10","Impresoras",null,null,null,null,null,null,null,null,null,"Las bibliotecas de aula están constituidas por libros, láminas y otros materiales didácticos similares, puestos al alcance de los estudiantes en el aula."]
[null,null,11,"Pizarras digitales"]
[null,null,12,"Modem"]
[null,null,13,"Servicio de Internet"]
[]
[]
[null,"503. INICIATIVA RUTA SOLIDARIA: (Solo Gestión Pública)"]
[null,"503.1 DURANTE LOS ÚLTIMOS AÑOS, ESTE NIVEL/SERVICIO EDUCATIVO, HA RECIBIDO DOTACIÓN DE BICICLETAS EN EL MARCO DE LA INICIATIVA RUTAS SOLIDARIAS?"]
[]
[null,null,null,null,null,null,"TOTAL",null,"Última fecha de recepción"]
[null,null," Sí","",null,null,"",null,"",null,null,null,null,null,"¿Cuántas bicicletas se han asignado a los estudiantes?",null,null,null,null,null,null,""]
[]
[null,null,"No","",null,"Pase a la pregunta 504"]
[]
[]
[null,"SI EL NÚMERO DE BICICLETAS RECIBIDAS POR EL SERVICIO/NIVEL EDUCATIVO ES MAYOR AL NÚMERO DE BICICLETAS ENTREGADAS A LOS ESTUDIANTES, RESPONDER:"]
[null,"503.2 ¿PORQUÉ MOTIVO(S) NO SE HA ASIGNADO LA TOTALIDAD DE LAS",null,null,null,null,null,null,null,null,null,null,"503.4 ¿SE LOGRARON REALIZAR LAS ACCIONES DE MANTENIMIENTO DE"]
[null,"    BICICLETAS A LOS ESTUDIANTES?",null,null,null,null,null,null,null,null,null,null,"    BICICLETAS CON LOS RECURSOS DE PRONIED?"]
[null,null,null,"(Marque con una “X” una o más opciones)"]
[null,null,null,"","Los padres no quieren asumir la responsabilidad ante pérdidas",null,null,null,null,null,null,null,null," Sí",""]
[null,null,null,"","Los padres no quieren poner en riesgo a sus hijos."]
[null,null,null,"","No hay suficientes estudiantes que vivan lejos.",null,null,null,null,null,null,null,null,null,null,null,"¿Por qué no se logró realizar el mantenimiento?"]
[null,null,null,"","Los caminos no permiten el traslado en bicicleta",null,null,null,null,null,null,null,null,"No  ","",null,"(Marque con una “X” hasta 3 opciones)"]
[null,null,null,"","Las bicicletas se encuentran en malestado.",null,null,null,null,null,null,null,null,null,null,{"$f":"COUNTIF(Q45:Q50,\"X\")","v":0},"","No hay mecánicos en la zona."]
[null,null,null,"","Están esperando que termine la temporada de lluvias.",null,null,null,null,null,null,null,null,null,null,null,null,"El servicio de reparación es muy costoso."]
[null,null,null,"","Otro","",null,null,null,null,null,null,null,null,null,null,null,"No existen repuestos en la zona."]
[null,null,null,null,null,null,null,null,null,null,null,null,null,null,null,null,null,"Los repuestos son muy costosos"]
[null,"503.3 ESTE SERVICIO/NIVEL EDUCATIVO, ¿HA RECIBIDO PRESUPUESTO DE ",null,null,null,null,null,null,null,null,null,null,null,null,null,null,null,"Aislamiento social"]
[null,"   PRONIED PARA EL MANTENIMIENTO DE BICICLETAS PARA EL PRESENTE ",null,null,null,null,null,null,null,null,null,null,null,null,null,null,"","Otro",""]
[null,"   AÑO 2022?"]
[]
[null,null," Sí","","No  ","",null,"Pase a la pregunta 504"]
[]
[]
[null,"INTERNET, SEGURIDAD E IMPLEMENTACION"]
[null,"504. SOBRE EL ACCESO A INTERNET EN LAS INSTALACIONES DONDE",null,null,null,null,null,null,null,null,null,null,"507. SEÑOR(A) DIRECTOR(A) ¿CUAL(ES) DISPOSITIVO(S) INFORMATICO(S)"]
[null,null,"   FUNCIONA EL NIVEL/SERVICIO EDUCATIVO",null,null,null,null,null,null,null,null,null,null,"  UTILIZA PRINCIPALMENTE PARA REALIZAR LAS LABORES DE GESTION"]
[null,null,"  (Marque con una “X” según corresponda)",null,null,null,null,null,null,null,null,null,null,"  DE ESTE SERVICIO/NIVEL EDUCATIVO EN SU HOGAR?"]
[null,null,null,null,null,null,null,null,null,null,null,null,null,null,"(Marque con una “X” una o más opciones)"]
[null,null,"ACTOR",null,null,null,null,"¿Tienen acceso a internet en el Servicio Educativo?",null,null,null,null,null,"",null,"Trabajo con una PC"]
[null,null,null,null,null,null,null,null,null,null,null,null,null,"",null,"Trabajo con una Laptop"]
[null,null,null,null,null,null,null," Sí,"," Sí, la"," Sí,",null,null,null,"",null,"Trabajo con una Tablet"]
[null,null,null,null,null,null,{"$f":"SUM(G65:G68)","v":0},"Todos","Mayoria","Algunos","Ninguno",null,null,"",null,"Trabajo con un Celular"]
[null,null,"Los estudiantes",null,null,null,{"$f":"COUNTIF(H65:K65,\"X\")","v":0},null,null,null,null,"01",null,"",null,"No, no cuento con ninguno de los anteriores"]
[null,null,"El personal directivo",null,null,null,{"$f":"COUNTIF(H66:K66,\"X\")","v":0},null,null,null,null,"02"]
[null,null,"El personal docente",null,null,null,{"$f":"COUNTIF(H67:K67,\"X\")","v":0},null,null,null,null,"03","508. EN ESTE SERVICIO/NIVEL EDUCATIVO, ¿SE ENCUENTRA BENEFICIADO"]
[null,null,"El personal administrativo",null,null,null,{"$f":"COUNTIF(H68:K68,\"X\")","v":0},null,null,null,null,"04",null,"POR EL PLAN DE DATOS OTORGADO POR EL MINEDU?"]
[]
[null,null,null,null,null,null,null,null,null,null,null,null,null," Sí",null,null,"¿Cuál es la cantidad de profesores y"]
[null,"505. SOBRE EL ACCESO A INTERNET EN EL DOMICILIO",null,null,null,null,null,null,null,null,null,null,null,null,null,null,"auxiliares de educación, beneficiados?"]
[null,null,"  (Marque con una “X” según corresponda)"]
[null,null,null,null,null,null,null,null,null,null,null,null,null," No",null,null,"Pase a la pregunta 510."]
[null,null,"ACTOR",null,null,null,null,"¿Tienen acceso a internet en su domicilio?"]
[null,null,null,null,null,null,null,null,null,null,null,null,"509. SOBRE EL PLAN DE DATOS OTORGADOS POR EL MINEDU, ¿ CREE UD. QUE"]
[null,null,null,null,null,null,null," Sí,"," Sí, la"," Sí,",null,null,null,"  LA MEDIDA IMPLEMENTADA CONTRIBUYÓ AL EJERCICIO DE LAS FUNCIONES"]
[null,null,null,null,null,null,{"$f":"SUM(G78:G81)","v":0},"Todos","Mayoria","Algunos","Ninguno",null,null,"  DE PROFESORES Y AUXILIARES DE EDUCACIÓN?"]
[null,null,"Los estudiantes",null,null,null,{"$f":"COUNTIF(H78:K78,\"X\")","v":0},null,null,null,null,"01"]
[null,null,"El personal directivo",null,null,null,{"$f":"COUNTIF(H79:K79,\"X\")","v":0},null,null,null,null,"02",null," Sí",null,"No  "]
[null,null,"El personal docente",null,null,null,{"$f":"COUNTIF(H80:K80,\"X\")","v":0},null,null,null,null,"03"]
[null,null,"El personal administrativo",null,null,null,{"$f":"COUNTIF(H81:K81,\"X\")","v":0},null,null,null,null,"04","510. CON RESPECTO AL CONCOCIMIENTO Y ELABORACION DE CLASES"]
[null,null,null,null,null,null,null,null,null,null,null,null,null,"  VIRTUALES PARA LOS ESTUDIANTES. ¿CUAL ES EL NIVEL DE USO DE LAS"]
[null,null,null,null,null,null,null,null,null,null,null,null,null,"  HERRAMIENTAS O PLATAFORMAS TECNOLOGICAS PARA ESTE FIN ?"]
[]
[null,"506. EN EL PRESENTE AÑO, ¿CUENTAN CON PC O LAPTOP EN SU DOMICILIO?",null,null,null,null,null,null,null,null,null,null,null,"(Marque con una “X” según corresponda para cada caso)"]
[null,null,"(Marque con una “X” según corresponda)",null,null,null,null,null,null,null,null,null,null,"HERRAMIENTA/PLATAFORMA TECNOLÓGICA PARA LA ELABORACIÓN DE CLASES VIRTUALES",null,null,null,null,"Nivel de uso de los docentes"]
[]
[null,null,"ACTOR",null,null,null,null,"¿Cuéntan con Pc o Laptop en su domicilio?",null,null,null,null,{"$f":"SUM(M89:M96)","v":0},null,null,null,null,null,"Todos","Mayoria","Algunos","Ninguno"]
[null,null,null,null,null,null,null,null,null,null,null,null,{"$f":"COUNTIF(S89:V89,\"X\")","v":0},"Moodle",null,null,null,null,null,null,null,null,"01"]
[null,null,null,null,null,null,null," Sí,"," Sí, la"," Sí,",null,null,{"$f":"COUNTIF(S90:V90,\"X\")","v":0},"Canvas",null,null,null,null,null,null,null,null,"02"]
[null,null,null,null,null,null,{"$f":"SUM(G92:G95)","v":0},"Todos","Mayoria","Algunos","Ninguno",null,0,"Zoom",null,null,null,null,null,null,null,null,"03"]
[null,null,"Los estudiantes",null,null,null,{"$f":"COUNTIF(H92:K92,\"X\")","v":0},null,null,null,null,"01",0,"Meet",null,null,null,null,null,null,null,null,"04"]
[null,null,"El personal directivo",null,null,null,{"$f":"COUNTIF(H93:K93,\"X\")","v":0},null,null,null,null,"02",0,"Whatsapp",null,null,null,null,null,null,null,null,"05"]
[null,null,"El personal docente",null,null,null,{"$f":"COUNTIF(H94:K94,\"X\")","v":0},null,null,null,null,"03",0,"Facebook/Messenger",null,null,null,null,null,null,null,null,"06"]
[null,null,"El personal administrativo",null,null,null,{"$f":"COUNTIF(H95:K95,\"X\")","v":0},null,null,null,null,"04",0,"Otro 1",null,"",null,null,null,null,null,null,"07"]
[null,null,null,null,null,null,null,null,null,null,null,null,0,"Otro 2",null,"",null,null,null,null,null,null,"08"]
[]
[]
[null,"600. EDUCACIÓN FÍSICA Y DEPORTE (Para II.EE. Públicas y Privadas)"]
[]
[null,"A. SITUACIÓN DEL DEPORTE ESCOLAR"]
[null,"601. DURANTE EL AÑO 2021, EN ESTE SERVICIO/NIVEL EDUCATIVO, ¿SE FOMENTÓ",null,null,null,null,null,null,null,null,null,null,"602. ¿EL SERVICIO/NIVEL EDUCATIVO CUENTA CON LA ASIGNATURA DE"]
[null,null,"LA REALIZACIÓN DE ACTIVIDADES FÍSICAS O DEPORTE, CON LA FINALIDAD",null,null,null,null,null,null,null,null,null,null,"  EDUCACIÓN FÍSICA?"]
[null,null,"DE PRIORIZAR EL CUIDADO DEL ESTUDIANTE Y SU BIENESTAR INTEGRAL?",null,null,null,null,null,null,null,null,null,null,null,null,null,"¿Cuántas horas a la semana se dictan?"]
[null,null,null,null,null,null,null,null,null,null,null,null,null," Sí"]
[null,null,"Sí",null,"No  ",null,null,null,null,null,null,null,null,null,null,null,"¿Cuántos docentes están asignados al "]
[null,null,null,null,null,null,null,null,null,null,null,null,null,null,null,null,"dictado del curso?"]
[null,null,null,null,"(Marque con una “X” una o más opciones)",null,null,null,null,null,null,null,null," No"]
[null,null,null,null,"Actividades de movimiento"]
[null,null,null,null,"Actividades de deporte",null,null,null,null,null,null,null,"603. EN EL PRESENTE AÑO 2022, ¿ESTE SERVICIO/NIVEL EDUCATIVO TIENE"]
[null,null,null,null,"Actividades artístico culturales",null,null,null,null,null,null,null,null,"PLANIFICADO LA EJECUCIÓN DE TALLERES COMPLEMENTARIOS?"]
[null,null,null,null,"Actividades complementarias de encuentro con la comunidad educativa"]
[null,null,null,null,"Otras Actividades",null,null,null,null,null,null,null,null," Sí",null,"No  "]
[]
[null,null,null,null,null,null,null,null,null,null,null,null,null,null,null,"(Marque con una “X” una o más opciones)"]
[null,null,null,null,null,null,null,null,null,null,null,null,null,null,null,"Expresarte"]
[null,null,null,null,null,null,null,null,null,null,null,null,null,null,null,"Orquestando"]
[null,null,null,null,null,null,null,null,null,null,null,null,null,null,null,"Talleres deportivos recreativos"]
[null,null,null,null,null,null,null,null,null,null,null,null,null,null,null,"Otro"]

{"sheet":"C700","index":8,"n_rows":246,"n_cols":21,"rows_kept":246,"cut":false,"hidden":false,"merged":[[168,17,169,17],[179,11,179,14],[152,15,152,16],[167,11,169,12],[170,11,170,12],[171,11,171,12],[172,11,172,12],[167,13,167,15],[167,16,167,18],[153,15,153,16],[153,12,153,13],[168,14,169,14],[146,18,147,18],[145,14,145,18],[245,5,245,6],[62,17,62,18],[81,13,84,17],[107,11,107,14],[110,12,110,14],[119,13,119,16],[92,5,92,7],[98,5,98,7],[111,7,111,8],[152,6,152,7],[173,5,173,6],[124,14,124,16],[131,13,131,14],[131,16,132,16],[235,11,238,14],[235,15,236,16],[237,15,238,15],[237,16,238,16],[239,11,239,14],[146,17,147,17],[79,16,79,17],[101,13,101,14],[29,5,30,7],[31,8,32,8],[35,2,36,3],[27,8,28,8],[22,2,22,3],[22,4,22,7],[23,2,30,3],[23,5,24,7],[25,5,26,7],[25,8,26,8],[23,8,24,8],[29,8,30,8],[31,2,34,3],[31,5,32,7],[188,2,190,3],[188,4,189,4],[188,5,189,6],[188,7,189,8],[0,17,2,18],[1,1,1,16],[2,1,2,16],[51,8,52,8],[48,8,50,8],[46,8,47,8],[44,8,45,8],[41,8,42,8],[46,5,47,7],[48,2,52,3],[48,5,50,7],[51,5,52,7],[37,2,47,3],[37,5,38,7],[44,5,45,7],[43,5,43,7],[37,8,38,8],[40,5,40,7],[41,5,42,7],[27,5,28,7],[145,11,147,13],[148,15,148,16],[132,13,132,14],[150,15,150,16],[151,15,151,16],[149,15,149,16],[146,14,147,14],[146,15,147,16],[185,12,185,14],[63,2,63,3],[63,4,63,5],[63,6,63,7],[64,8,65,8],[66,8,67,8],[68,8,69,8],[70,8,71,8],[72,8,73,8],[74,8,76,8],[196,2,196,3],[197,2,197,3],[191,2,191,3],[194,2,194,3],[195,2,195,3],[199,14,199,16],[222,13,222,16],[207,13,207,15],[227,14,227,16],[195,13,195,16]]}
[null,null,null,null,null,null,null,null,null,null,null,null,null,null,null,null,null,"3AP"]
[null,"CENSO EDUCATIVO 2022"]
["Si","MATRÍCULA, DOCENTES Y MATERIALES EDUCATIVOS"]
["No"]
[]
[]
[null,"700. FORTALECIMIENTO DE LA GESTIÓN"]
[]
[null,"701. ESTE SERVICIO/NIVEL EDUCATIVO ¿COORDINA ALGUNA ACCIÓN CON EL",null,null,null,null,null,null,null,null,"721. SEÑOR(A) DIRECTOR(A), DESDE QUE EMPEZASTE TU CARRERA COMO DOCENTE, "]
[null,null,"GOBIERNO LOCAL (DISTRITAL O PROVINCIAL) PARA MEJORAR LA",null,null,null,null,null,null,null,null,"   ¿CUÁNTOS AÑOS DE EXPERIENCIA TIENES COMO?"]
[null,null,"PRESTACIÓN DEL SERVICIO EDUCATIVO?"]
[null,null,null,null,null,null,null,null,null,null,null,"  (Marque con una “X”, una opción)"]
[null,"1: Siempre",null,"Sí    ",null,null,"No  ",null,"Pase a la",null,null,null,"Directivo encargado_cantidad de años"]
[null,"2: Casi Siempre",null,null,null,null,null,null,"pregunta 703."]
[null,"3: A Veces",null,null,null,"(Marque con una “X” una opción)",null,null,null,null,null,null,"Directivo designado_cantidad de años"]
[null,"4: Casi Nunca",null,null,null,"Con Municipalidad Distrital"]
[null,"5: Nunca",null,null,null,"Con Municipalidad Provincial",null,null,null,null,"722. CON QUÉ FRECUENCIA VISITA EL PORTAL WEB PARA DIRECTIVO DE I.E. DEL MINEDU "]
[null,null,null,null,null,"Con ambas",null,null,null,null,null,"https://directivos.minedu.gob.pe/)?"]
[]
[null,"702. FRECUENCIA DE LA ACCION QUE AYUDA EL GOBIERNO LOCAL PARA",null,null,null,null,null,null,null,null,null,"  (Marque con una “X”, una opción)"]
[null,null,"MEJORAR LA PRESTACIÓN DEL SERVICIO",null,null,null,null,null,null,null,null,null,"Frecuentemente"]
[null,null,null,null,null,null,null,null,null,null,null,null,"Poca frecuencia"]
[null,{"$f":"SUM(B24:B53)","v":0},"COMPONENTE",null,"ACCIÓN",null,null,null,"FRECUENCIA",null,null,null,"Casi nunca"]
[null,{"$f":"IF(I24<>\"\",1,0)","v":0},"Infraestructura",null,"01","Proyecto de inversión pública para el mejoramiento o ampliación del local escolar",null,null,"",null,null,null,"No visito el portal web",null,null,"Pase a la pregunta 725."]
[]
[null,{"$f":"IF(I26<>\"\",1,0)","v":0},null,null,"02","Apoyo y asistencia técnica para el uso de recursos de mantenimiento preventivo",null,null,"",null,"723. CONSIDERAS QUE LA INFORMACIÓN QUE ENCUENTRAS EN EL PORTAL WEB DE"]
[null,null,null,null,null,null,null,null,null,null,null,"  DIRECTIVOS ES ÚTIL?"]
[null,{"$f":"IF(I28<>\"\",1,0)","v":0},null,null,"03","Gestiones para el acceso a servicios básicos de IIEE",null,null,""]
[null,null,null,null,null,null,null,null,null,null,null,"  (Marque con una “X”, una opción)"]
[null,{"$f":"IF(I30<>\"\",1,0)","v":0},null,null,"04","Adquisición de mobiliario y equipamiento para la IIEE",null,null,"",null,null,null,"Muy útil"]
[null,null,null,null,null,null,null,null,null,null,null,null,"Útil"]
[null,{"$f":"IF(I32<>\"\",1,0)","v":0},"Aprendizajes",null,"05","Proyecto de inversión pública para la mejora de los aprendizajes",null,null,"",null,null,null,"Poco útil"]
[null,null,null,null,null,null,null,null,null,null,null,null,"Nada útil"]
[null,{"$f":"IF(I34<>\"\",1,0)","v":0},null,null,"06","Programas de reforzamiento escolar",null,null,""]
[null,{"$f":"IF(I35<>\"\",1,0)","v":0},null,null,"07","Apoyo con material educativo",null,null,"",null,"724. QUÉ CONTENIDOS NORMATIVOS ESPERARÍA ENCONTRAR EN EL PORTAL WEB"]
[null,{"$f":"IF(I36<>\"\",1,0)","v":0},"Docentes",null,"08","Contratación de docentes",null,null,"",null,null,"  PARA DIRECTIVO DE IE DEL MINEDU?"]
[null,{"$f":"IF(I37<>\"\",1,0)","v":0},null,null,"09","Talleres o cursos de capacitación",null,null,""]
[null,{"$f":"IF(I38<>\"\",1,0)","v":0},"Gestión",null,"10","Articulación local con actores públicos y privados a nivel local",null,null,"",null,null,"  (Marque con una “X”, hasta dos opciones)"]
[null,null,null,null,null,null,null,null,null,null,{"$f":"COUNTIF(L39:L42,\"X\")","v":0},null,"Sobre sus funciones"]
[null,{"$f":"IF(I40<>\"\",1,0)","v":0},null,null,"11","Atención de casos en DEMUNA",null,null,"",null,null,null,"Sobre los documentos de gestión de debe elaborar"]
[null,{"$f":"IF(I41<>\"\",1,0)","v":0},null,null,"12","Articulación con UGEL y DRE de su ámbito",null,null,"",null,null,null,"Sobre su rol de líder pedagógico "]
[null,{"$f":"IF(I42<>\"\",1,0)","v":0},null,null,"13","Gestiones para la instalación de servicios básicos de conectividad",null,null,"",null,null,null,"Sobre las faltas en las que podría incurrir de incumplir sus funciones "]
[]
[null,{"$f":"IF(I44<>\"\",1,0)","v":0},null,null,"14","Apoyo con alimentación para estudiantes",null,null,"",null,"725. DESDE EL 2019 A LA FECHA DE APLICACIÓN DEL CENSO 2022, ¿CONOCE LAS NORMAS"]
[null,{"$f":"IF(I45<>\"\",1,0)","v":0},null,null,"15","Vivienda y alimentación para docentes (zonas rurales, fronteras, etc)",null,null,"",null,null,"  QUE REGULAN SUS FUNCIONES COMO DIRECTOR?"]
[]
[null,{"$f":"IF(I47<>\"\",1,0)","v":0},null,null,"16","Apoyo con movilidad local para estudiantes y docentes",null,null,"",null,null,"Sí    ",null,null,"No  "]
[]
[null,{"$f":"IF(I49<>\"\",1,0)","v":0},"Recuperación",null,"17","Promoción de acciones comunitarias para identificación de estudiantes que interrumpen estudios",null,null,"",null,"726. TIENE CONOCIMIENTO QUE EXISTE UNA HERRAMIENTA DIGITAL PARA LA EMISIÓN"]
[null,null,null,null,null,null,null,null,null,null,null,"  DE CERTIFICADOS DE ESTUDIOS?"]
[]
[null,{"$f":"IF(I52<>\"\",1,0)","v":0},null,null,"18","Impulso del registro nominal de estudiantes en Alerta Escuela por parte de directores de II.EE",null,null,"",null,null,"Sí    ",null,null,"¿Has hecho uso de la herramienta?"]
[null,null,null,null,null,null,null,null,null,null,null,null,null,null,"Sí    ",null,null,"No  "]
[null,null,null,null,null,null,null,null,{"$f":"COUNTIF(I24:I53,\"5: Nunca\")","v":0}]
[null,"703. ¿INCORPORA LA SEGURIDAD Y DEFENSA NACIONAL EN LOS INSTRUMENTOS"]
[null,null,"DE GESTIÓN Y PLANIFICACIÓN CURRICULAR PARA EL DESARROLLO DE UNA"]
[null,null,"CULTURA DE PAZ, Y FORTALECIMIENTO DE LA IDENTIDAD NACIONAL?",null,null,null,null,null,null,null,null,null,null,null,null,"¿Por qué?"]
[null,null,null,null,null,null,null,null,null,null,null,null,null,null,null,"(Marque con una \"X\", una o más opciones)"]
[null,null,null,"Sí    ",null,null,"No  ",null,null,null,null,null,null,null,null,null,"Baja demanda educativa o pocos …"]
[null,null,null,null,null,null,null,null,null,null,null,"No",null,null,null,null,"la IE que dirijo es multigrado"]
[null,"704. SOBRE LA GESTIÓN DEL RIESGO DE DESASTRES Y LA SEGURIDAD EN ESTE",null,null,null,null,null,null,null,null,null,null,null,null,null,null,"Bajo o escaso acceso a internet …"]
[null,null,"SERVICIO/NIVEL EDUCATIVO, ATIENDA LAS SIGUIENTES PREGUNTAS:",null,null,null,null,null,null,null,null,null,null,null,null,null,"En la localidad se habla otra …"]
[null,null,null,null,null,null,null,null,null,null,null,null,null,null,null,null,"Otro motivo"]
[null,{"$f":"SUM(B65:B77)","v":0},null,null,"PREGUNTA",null,null,null,"RESPUESTA"]
[null,{"$f":"IF(I65<>\"\",1,0)","v":0},"¿Incorpora la Gestión del Riesgo de Desastres en los instrumentos de",null,null,null,null,null,null,null,"727. EN SU OPINIÓN, ¿CUÁL DE LAS SIGUIENTES ALTERNATIVAS CONSIDERA MÁS ÚTIL, SI SE"]
[null,null,"Gestión y Planificación Curricular para el desarrollo de una cultura de …",null,null,null,null,null,null,null,null,"  IMPLEMENTA EL SISTEMA DE MATRÍCULA DIGITAL /1 EN SU JURISDICCIÓN? "]
[null,{"$f":"IF(I67<>\"\",1,0)","v":0},"¿El Plan de Gestión de Riesgo de Desastres contiene acciones con",null,null,null,null,null,null,null,null,null,"  (Marque con una “X”, una opción)"]
[null,null,"enfásis en la contingencia ante la emergencia sanitaria por Covid19?",null,null,null,null,null,null,null,null,null,null,"Reducción carga administrativa"]
[null,{"$f":"IF(I69<>\"\",1,0)","v":0},"Las zonas seguras para el desplazamiento de los miembros de la comu-",null,null,null,null,null,null,null,null,null,null,"Mayor transparencia en los procesos de admisión de los estudiantes"]
[null,null,"nidad educativa y las rutas de evacuación ¿se encuentran señalizadas?",null,null,null,null,null,null,null,null,null,null,"Mejoras en la difusión de vacantes"]
[null,{"$f":"IF(I71<>\"\",1,0)","v":0},"¿Se cuenta con el mínimo de dispositivos de seguridad",null,null,null,null,null,null,null,null,null,null,"Mejoras en la difusión de información sobre las características de su IE"]
[null,null,"para situaciones de emergencia y desastres?",null,null,null,null,null,null,null,null,null,null,"No sería útil"]
[null,{"$f":"IF(I73<>\"\",1,0)","v":0},"¿Fomenta la participación, compromiso y responsabilidad"]
[null,null,"sobre la Gestión del Riesgo de Desastres en la comunidad educativa?",null,null,null,null,null,null,null,null,null,null,"¿Por qué?"]
[null,{"$f":"IF(I75<>\"\",1,0)","v":0},"¿Desarrolla actividades de soporte socioemcional como el autocuidado,",null,null,null,null,null,null,null,null,null,null,"(Marque con una \"X\", una o más opciones)"]
[null,null,"la autoprotección y la resilencia en la comunidad educativa como",null,null,null,null,null,null,null,null,null,null,null,"Baja demanda educativa o pocos estudiantes"]
[null,null,"respuesta ante situaciones de emergencias y desastres?",null,null,null,null,null,null,null,null,null,null,null,"la IE que dirijo es multigrado"]
[null,null,null,null,null,null,null,null,{"$f":"COUNTIF(I65:I77,\"SI\")+COUNTIF(I65:I77,\"NO\")","v":0},null,null,null,null,null,"Bajo o escaso acceso a internet en la localidad"]
[null,null,null,null,null,null,null,null,null,null,null,null,null,null,"En la localidad se habla otra lengua distinta al español"]
[null,"705. EN ESTE SERVICIO/NIVEL EDUCATIVO, ¿SE CUENTA CON PERSONAL QUE",null,null,null,null,null,null,null,null,null,null,null,null,"Otro motivo"]
[null,null,"SE ENCUENTRE DENTRO DEL GRUPO DE RIESGO DE LA COVID19 SEGÚN LO"]
[null,null,"DEFINIDO POR EL NUMERAL 6.1.17 DE LA RM N° 972-2020-MINSA",null,null,null,null,null,null,null,null,null,null,"/1 Matrícula Digital, es un sistema a través del cual las familias podrán realizar el proceso de matrícula para primer ingreso, reincorporación o traslado, de forma gratuita sin exámenes ni colas, ya que todo el proceso se realiza de manera virtual"]
[]
[null,null,"Sí    ",null,null,"No  "]
[]
[null,null,null,null,"Indique la cantidad de personal del grupo de riesgo:"]
[null,null,null,null,null,null,null,null,null,null,"728. SEÑOR(A) DIRECTOR(A), ¿USTED HA PARTICIPADO EN CURSOS, CAPACITACIONES Y/O"]
[null,null,null,"Directivos y docentes:",null,null,null,null,null,null,null,"  CONGRESOS PARA EL FORTALECIMIENTO DE SU FORMACIÓN DOCENTE EN LOS ÚLTIMOS"]
[null,null,null,"Administrativos y No docentes:",null,null,null,null,null,null,null,"  DOS AÑOS?"]
[]
[null,"706. ¿CUÁL ES LA PRIMERA PALABRA QUE SE LE VIENE A LA MENTE CUANDO",null,null,null,null,null,null,null,null,null,"Sí    ",null,null,"No  ",null,null,"Pase a la pregunta 730."]
[null,null,"PIENSA O ESCUCHA ‘’MINISTERIO DE EDUCACIÓN’’"]
[null,null,"Escriba solo una palabra",null,null,null,null,null,null,null,"729. QUÉ ASPECTOS DE SU FORMACIÓN DOCENTE HA FORTALECIDO EN SUS CURSOS,"]
[null,null,null,null,null,null,null,null,null,null,null,"  CAPACITACIONES Y/O CONGRESOS EN ESTOS DOS ÚLTIMOS AÑOS?"]
[null,"707. ¿CON CUÁL DE LOS SIGUIENTES LEMAS O FRASES ASOCIA AL MINEDU?"]
[null,null,null,null,"Mejor educación, mejores peruanos",null,null,null,null,null,null,"  (Marque con una “X”, una o más opciones)"]
[null,null,null,null,"La educación no para",null,null,null,null,null,null,null,"Metodología"]
[null,null,null,null,"No asocio un lema específico al Minedu",null,null,null,null,null,null,null,"Competencia lingüística"]
[null,null,null,null,"Otro",null,null,null,null,null,null,null,"Innovación y/o proyectos de innovación"]
[null,null,null,null,null,null,null,null,null,null,null,null,"Enfoques e instrumentos para investigar en el aula"]
[null,"708. ¿CON QUÉ EMOCIONES ASOCIA CON EL MINEDU?",null,null,null,null,null,null,null,null,null,null,"Competencia socioemocional y/o habilidades socioemocionales"]
[null,null,null,null,"Positivas",null,null,null,null,null,null,null,"Otros"]
[null,null,null,null,"Neutra"]
[null,null,null,null,"Negativas",null,null,null,null,null,"730. EN EL AÑO 2022, ¿ESTE SERVICIO/NIVEL EDUCATIVO HA REALIZADO O PARTICIPADO EN"]
[null,null,null,null,null,null,null,null,null,null,null,"  ACCIONES DE SEGURIDAD Y DEFENSA NACIONAL?"]
[null,"709. ¿QUÉ CANAL DE COMUNICACIÓN UTILIZA PARA INFORMARSE SOBRE LAS"]
[null,null,"LAS NOVEDADES DEL MINEDU?",null,null,null,null,null,null,null,null,"Marque todas las opciones implementadas"]
[null,null,null,null,"SIAGIE",null,null,"Programas radiales",null,null,null,"Actividad",null,null,null,"Marcar con \"X\""]
[null,null,null,null,"Redes sociales",null,null,"Mensajes de texto",null,null,null,"Capacitaciones"]
[null,null,null,null,"Portales del Minedu",null,null,"Correo electrónico",null,null,null,"Utilizado una estrategía comunicacional"]
[null,null,null,null,"Programas televisivos",null,null,"Otro",null,null,null,"Otros"]
[]
[null,null,null,null,null,null,null,null,null,null,"731. EN EL AÑO 2022, ¿ESTE SERVICIO/NIVEL EDUCATIVO HA INCORPORADO ACCIONES DE"]
[null,"710. ¿CUÁLES SON LOS PRINCIPALES TEMAS QUE REQUIERE COMO CAPACITACIÓN",null,null,null,null,null,null,null,null,null,"  GESTIÓN DEL RIESGO DE EMERGENCIAS Y DESASTRES EN SUS INSTRUMENTOS DE GESTIÓN "]
[null,null,"PARA MEJORAR SU DESEMPEÑO COMO DIRECTOR(A)? ",null,null,null,null,null,null,null,null,"  VIGENTES?"]
[null,null,null,"(Marque con una \"X\", hasta 4 opciones)"]
[null,null,{"$f":"COUNTIF(D117:D123,\"X\")","v":0},null,"Estrategias y didáctica de las áreas de aprendizaje",null,null,null,null,null,null,"Sí    ",null,null,"No  "]
[null,null,null,null,"Evaluación de aprendizajes"]
[null,null,null,null,"Manejo de herramientas TIC y ofimáticas",null,null,null,null,null,null,null,null,"  Precise los documentos de gestión"]
[null,null,null,null,"Gestión del duelo y del bienestar socioemocional ",null,null,null,null,null,null,null,null,"Documentos de Gestión",null,null,null,"Marcar con \"X\""]
[null,null,null,null,"Habilidades blandas para la gestión del equipo de docentes",null,null,null,null,null,null,null,null,"Proyecto Educativo Institucional (PEI)"]
[null,null,null,null,"Relacionamiento institucional y gestión de alianzas",null,null,null,null,null,null,null,null,"Plan Anual de Trabajo (PAT)"]
[null,null,null,null,"Participación estudiantil",null,null,null,null,null,null,null,null,"Proyecto Currícular Institucional (PCI)"]
[null,null,null,null,"Ninguno de los temas anteriores",null,null,null,null,null,null,null,null,"Reglamento Interno (RI)"]
[null,null,null,null,null,null,null,null,null,null,null,null,null,"Otros"]
[null,"711. DURANTE EL 2021 Y HASTA LA FECHA DEL CENSO 2022, ¿HA REALIZADO ACCIONES"]
[null,"        EN FAVOR DEL BIENESTAR SOCIOEMOCIONAL DE LOS ESTUDIANTES Y/O DE LOS",null,null,null,null,null,null,null,null,"732. EN EL AÑO 2022, ¿ESTE SERVICIO/NIVEL EDUCATIVO CUENTA CON SU PLAN DE GESTIÓN DEL "]
[null,"        DOCENTES?",null,null,null,null,null,null,null,null,null,"  RIESGO DE DESASTRES VIGENTE?"]
[]
[null,null,"Sí    ",null,null,null,null,null,null,null,null,"Sí    ",null,null,"No  "]
[]
[null,null,null,null,null,"¿Qué acciones realizó?",null,null,null,null,null,null,null,"Documento de"]
[null,null,null,null,null,"(Marque con una \"X\", una o más opciones)",null,null,null,null,null,null,null,"aprobación N°"]
[null,null,null,null,null,null,"Elaborar un diagnóstico del estado del …"]
[null,null,null,null,null,null,"Elaborar un diagnóstico del estado del …"]
[null,null,null,null,null,null,"Ejecutar acciones en la IE para trabajar …",null,null,null,null,null,null,null,"Fecha de ",null,"Día","Mes","Año"]
[null,null,null,null,null,null,"Generar espacios de diálogo en la …",null,null,null,null,null,null,null,"aprobación"]
[null,null,null,null,null,null,"Promover espacios específicamente para …"]
[null,null,null,null,null,null,"Ejecutar acciones en el marco de la …",null,null,null,"733. EN EL AÑO 2022, ¿LOS MIEMBROS DE ESTE SERVICIO/NIVEL EDUCATIVO HAN SIDO "]
[null,null,null,null,null,null,null,null,null,null,null,"  CAPACITADOS EN MATERIA DE GESTIÓN INTEGRAL DEL RIESGO DE EMERGENCIAS Y "]
[null,null,"No",null,null,null,null,null,null,null,null,"  DESASTRES?"]
[]
[null,"712. SEÑOR(A) DIRECTOR(A), DURANTE EL 2021 Y HASTA LA FECHA DEL CENSO 2022,",null,null,null,null,null,null,null,null,null,"Sí    ",null,null,"No  "]
[null,null,"¿A TRAVÉS DE QUE MEDIO RECIBIÓ LA CAPACITACIÓN EL PERSONAL AUXILIAR DE"]
[null,null,"EDUCACIÓN?"]
[null,null,null,"  (Marque con una “X”, una o más opciones)",null,null,null,null,null,null,null,"Tipo de Capacitación",null,null,"Cantidad de personas capacitadas"]
[null,null,null,null,"Perueduca, cursos específicos para auxiliares ",null,null,null,null,null,null,null,null,null,"N° de Directores","N° de Docentes",null,"N° de\nAdministra\ntivos","N° de capacitados que pertenecen a la CEA y GRD/1"]
[null,null,null,null,"Perueduca, cursos para la comunidad educativa"]
[null,null,null,null,"Mi Institución Educativa",null,null,null,null,null,"01","Curso",null,null,null,null,null,null,null,null,{"$f":"SUM(O149:S149)","v":0}]
[null,null,null,null,"Mi UGEL",null,null,null,null,null,"02","Taller",null,null,null,null,null,null,null,null,0]
[null,null,null,null,"Otra UGEL",null,null,null,null,null,"03","Charla",null,null,null,null,null,null,null,null,0]
[null,null,null,null,"DRE",null,null,null,null,null,"04","Seminario",null,null,null,null,null,null,null,null,0]
[null,null,null,null,"Otras instituciones",null,null,null,null,null,"05","Webinar",null,null,null,null,null,null,null,null,0]
[null,null,null,null,"No cuento con personal auxiliar de educación",null,null,null,null,null,"06","Otro",null,null,null,null,null,null,null,null,0]
[null,null,null,null,"El personal auxiliar de educación no recibió capacitación",null,null,null,null,null,null,null,null,null,null,null,null,null,{"$f":"SUM(O149:S154)","v":0}]
[null,null,null,null,null,null,null,null,null,null,null,"/1 CEA y GRD: Comisión de Educación Ambiental y Gestión del Riesgo de Desastres."]
[null,"713. SEÑOR(A) DIRECTOR(A),¿CUÁL CONSIDERA USTED COMO PRINCIPAL TEMA QUE"]
[null,null,"REQUIERE COMO CAPACITACIÓN EL PERSONAL AUXILIAR DE EDUCACIÓN, PARA ",null,null,null,null,null,null,null,"734. ESTE SERVICIO/NIVEL EDUCATIVO ¿CUENTA CON ALGUNA EXPERIENCIA EXITOSA O BUENA"]
[null,null,"MEJORAR SU DESEMPEÑO?",null,null,null,null,null,null,null,null,"  PRÁCTICA DOCENTE Y/O GESTIÓN ESCOLAR ENMARCADAS EN ALGUNA DE LAS LÍNEAS"]
[null,null,null,"  (Marque con una “X”, una o más opciones)",null,null,null,null,null,null,null,"  ESTRATÉGICAS?"]
[null,null,null,null,"Habilidades blandas (inteligencia emocional, comunicación …"]
[null,null,null,null,"Habilidades duras (TICs, primeros auxilios, uso y peligros de …",null,null,null,null,null,null,"Sí    ",null,null,"No  "]
[null,null,null,null,"Relación con los estudiantes (el juego, soporte socioemocional…"]
[null,null,null,null,"No cuento con personal auxiliar de educación"]
[]
[null,"714. SEÑOR(A) DIRECTOR(A), DURANTE EL 2021, ¿EL PERSONAL AUXILIAR DE EDUCACIÓN",null,null,null,null,null,null,null,null,null,"       Complete la tabla"]
[null,null,"DESEMPEÑO O DESEMPEÑA OTRAS LABORES ADICIONALES A SU ROL COMO AUXILIAR"]
[null,null,"DE EDUCACIÓN?",null,null,null,null,null,null,null,null,"Línea Estratégica",null,"Experiencia exitosa",null,null,"Buena práctica docente y/o \nGestión escolar"]
[null,null,null,"  (Marque con una “X”, una o más opciones)",null,null,null,null,null,null,null,null,null,"¿Cuenta con experiencia exitosa?","Año de la experiencia exitosa","Se socializó con otras entidades","Cuenta con buena práctica docente y/o Gestión escolar?","Año de la buena práctica docente y/o Gestión escolar","Se socializó con otras entidades"]
[null,null,null,null,"No realizó/realiza otras labores adicionales en la IE",null,null,null,null,null,null,null,null,"Sí - No"]
[null,null,null,null,"Trabaja como docente",null,null,null,null,null,"01","a. Gestión del Riesgo de Desastres",null,"","","","","",""]
[null,null,null,null,"Trabaja como personal administrativo en la IE",null,null,null,null,null,"02","b. Adaptación al cambio climático",null,"","","","","",""]
[null,null,null,null,"Trabaja en otra IE",null,null,null,null,null,"03","c. Seguridad y Defensa Nacional",null,"","","","","",""]
[null,null,null,null,"Otro",null,null,null,null,null,"04","d. Otro","","","","","","",""]
[null,null,null,null,"No cuento con personal auxiliar de educación"]
[null,null,null,null,null,null,null,null,null,null,null,null,null,{"$f":"COUNTIF(N171:N174,\"SI\")+COUNTIF(N171:N174,\"NO\")","v":0},null,null,{"$f":"COUNTIF(Q171:Q174,\"SI\")+COUNTIF(Q171:Q174,\"NO\")","v":0}]
[null,"715. SEÑOR(A) DIRECTOR(A), ¿ESTE SERVICIO/NIVEL EDUCATIVO QUE USTED DIRIGE ",null,null,null,null,null,null,null,null,"735. EN EL AÑO 2022 ¿CUÁLES SON LOS EQUIPOS Y SERVICIOS INFORMÁTICOS QUE CUENTA ESTE SERVICIO/"]
[null,"         CUENTA CON PERSONAL ADMINISTRATIVO?",null,null,null,null,null,null,null,null,null,"  NIVEL EDUCATIVO PARA REPORTAR LAS EMERGENCIAS, DESASTRES Y/O PELIGRO INMINENTE?"]
[null,null,null,null,null,null,null,null,null,null,null,null,null,null,null,"(Marque con una “X”, una o más opciones)"]
[null,null,"Sí    ",null,null,"No  ",null,null,"Pase a la",null,null,"Equipos",null,null,null,"Marcar con \"X\""]
[null,null,null,null,null,null,null,null,"pregunta 720.",null,null,"PC"]
[null,null,null,null,null,null,null,null,null,null,null,"Tablet"]
[null,null,"Nota.- Responder según el tipo de personal declarado en la sección 300 sobre Personal",null,null,null,null,null,null,null,null,"Equipos Móviles"]
[null,null,"           docente, auxiliares de educación y administrativos",null,null,null,null,null,null,null,null,"Internet"]
[null,null,null,null,null,null,null,null,null,null,null,"No se cuenta"]
[null,"716. SOBRE EL PERSONAL ADMINISTRATIVO QUE LABORA EN ESTE SERVICIO/NIVEL",null,null,null,null,null,null,null,null,null,"Otros"]
[null,"        EDUCATIVO, COMPLETA PARA CADA CARGO/PUESTO LOS SIGUIENTES DATOS:"]
[null,null,null,null,null,null,null,null,null,null,"736. EN EL AÑO 2022, ANTE LA DETECCIÓN DEL PELIGRO INMINENTE, EMERGENCIA O DESASTRE ¿ESTE SERVICIO/"]
[null,null,"Puestos Administrativos",null,"¿Cuenta con este tipo de personal?","¿Ha sido capacitado durante el 2021?",null,"¿La cantidad de personal que tiene es suficiente?",null,null,null,"  NIVEL EDUCATIVO REALIZA LA ALERTA AL ESPACIO DE MONITOREO Y SEGUIMIENTO SECTORIAL (EMSS) DE"]
[null,null,null,null,null,null,null,null,null,null,null,"  LA UGEL?"]
[null,null,null,null,"Sí - No","Sí - No","¿Cuántas veces?","Sí - No","¿Qué cantidad sería suficiente?"]
[null,"01","a. Coordinador / Administrativo",null,"","","","","",null,null,null,"Sí    ",null,null,"No  "]
[null,"02","b. Secretaria(o)",null,"","","","",""]
[null,"03","c. Oficinista",null,"","","","",""]
[null,"04","d. Trabajador de servicio que cumple funciones de guardanía y/o vigilancia",null,"","","","","",null,null,null,null,null,"¿Por qué?"]
[null,"05","e. Trabajador de servicio que cumple funciones de limpieza y mantenimiento",null,"","","","","",null,null,null,null,"Items",null,null,null,"Marcar con \"X\""]
[null,"06","f. Auxiliar de biblioteca",null,"","","","","",null,null,null,null,"No se tuvo emergencia en territorio"]
[null,"07","g. Auxiliar de laboratorio",null,"","","","","",null,null,null,null,"No se cuenta con los instrumentos y/o herramientas"]
[null,null,null,null,{"$f":"COUNTIF(E192:E198,\"SI\")+COUNTIF(E192:E198,\"NO\")","v":0},null,null,null,null,null,null,null,null,"No se conoce el procedimiento"]
[null,"717. ¿CUÁL DE LAS SIGUIENTES COMPETENCIAS CONSIDERA USTED COMO LA MÁS RELEVANTE ",null,null,null,null,null,null,null,null,null,null,null,"Otro"]
[null,null,"EN EL EQUIPO DE PERSONAL ADMINISTRATIVO DE ESTE SERVICIO/NIVEL EDUCATIVO?"]
[null,null,null,null,null,null,null,null,null,null,"737. EN EL AÑO 2022, ¿ESTE SERVICIO/NIVEL EDUCATIVO PARTICIPÓ EN LOS SIMULACROS CONVOCADOS POR"]
[null,null,null,"  (Marque con una “X”, una opción)",null,null,null,null,null,null,null,"  MINEDU Y/O INDECI?"]
[null,null,null,null,"Trabajo en equipo"]
[null,null,null,null,"Atención a usuarios",null,null,null,null,null,null,"Sí    ",null,null,"No  "]
[null,null,null,null,"Comunicación asertiva"]
[null,null,null,null,"Orientación a resultados"]
[null,null,null,null,"Orden y planificación estratégica",null,null,null,null,null,null,null,null,"Items",null,null,"Marcar con \"X\""]
[null,null,null,null,"Orientación al servicio",null,null,null,null,null,null,null,null,"Primer simulacro"]
[null,null,null,null,"Proactividad",null,null,null,null,null,null,null,null,"Segundo simulacro"]
[null,null,null,null,null,null,null,null,null,null,null,null,null,"Tercer simulacro"]
[null,"718. ¿CUÁLES SON LAS DOS PRINCIPALES TEMÁTICAS QUE CONSIDERA USTED QUE EL",null,null,null,null,null,null,null,null,null,null,null,"Cuarto simulacro"]
[null,null,"PERSONAL ADMINISTRATIVO DE ESTE SERVICIO/NIVEL EDUCATIVO PODRÍA SER "]
[null,null,"CAPACITADO?",null,null,null,null,null,null,null,"738. ESTE SERVICIO/NIVEL EDUCATIVO, ¿HA RECIBIDO POR PARTE DE LA UGEL ACCIONES DE COMUNICACIÓN"]
[null,null,null,"  (Marque con una “X”, solamente dos opciones)",null,null,null,null,null,null,null,"  PRESENCIAL O VIRTUAL PARA SENSIBILIZAR A LA COMUNIDAD EDUCATIVA EN TEMAS DE GESTIÓN DEL"]
[null,null,{"$f":"COUNTIF(D216:D223,\"X\")","v":0},null,"Seguridad de control de accesos y de control interno de la IE",null,null,null,null,null,null,"  RIESGO DE DESASTRES, CAMBIO CLIMÁTICO Y/O SEGURIDAD Y DEFENSA NACIONAL?"]
[null,null,null,null,"Gestión del mantenimiento de la IE (materiales, ambientes y equipos) "]
[null,null,null,null,"Manejo de habilidades interpersonales (atención de usuarios)",null,null,null,null,null,null,"Sí    ",null,null,"No  "]
[null,null,null,null,"Técnicas de archivo y despacho de documentos"]
[null,null,null,null,"Manejo de los sistemas informáticos del Minedu"]
[null,null,null,null,"Administración y control de recursos propios (financieros)",null,null,null,null,null,null,null,null,"Indique, ¿qué acciones implementó o recibió?"]
[null,null,null,null,"Manejo de herramientas TIC y ofimática",null,null,null,null,null,null,null,null,"Marque con una “X”, según corresponda"]
[null,null,null,null,"Prevención y atención de situaciones de riesgo ",null,null,null,null,null,null,null,null,"Items",null,null,null,"Marcar con \"X\""]
[null,null,null,null,null,null,null,null,null,null,null,null,null,"Afiches y/o díptico y/o tríptico"]
[null,"719. RESPECTO A LA CONTRIBUCIÓN DE PERSONAL ADMINISTRATIVO DURANTE EL",null,null,null,null,null,null,null,null,null,null,null,"Carteles o murales"]
[null,null,"  2021 Y HASTA LA FECHA DE LA APLICACIÓN DEL CENSO 2022, ¿EN QUÉ ÁMBITO(S)",null,null,null,null,null,null,null,null,null,null,"Ferias estudiantiles"]
[null,null,"  IDENTIFICÓ UN MAYOR INCREMENTO DE ACTIVIDADES OPERATIVAS ",null,null,null,null,null,null,null,null,null,null,"Radionovela y/o audios y/o radioteatro y/o videos animados"]
[null,null,"  ADMINISTRATIVAS?",null,null,null,null,null,null,null,null,null,null,"Otro"]
[null,null,"  (Marque con una “X”, una o más opciones)"]
[null,null,null,null,"Gestión de recursos financieros, bienes, servicios e infraestructura"]
[null,null,null,null,"Gestión de información de la IE (registro en sistemas administrativos …",null,null,null,null,null,"739. ESTE SERVICIO/NIVEL EDUCATIVO, ¿CUENTA CON EL APOYO DE ALIADOS ESTRATEGICOS DE SU LOCALIDAD"]
[null,null,null,null,"Gestión y seguimiento del uso de los recursos educativos",null,null,null,null,null,null,"  PARA ATENDER ALGUNO DE LOS SIGUIENTES TEMAS?"]
[null,null,null,null,"Limpieza y mantenimiento"]
[null,null,null,null,"Prevención y atención de situaciones de riesgo"]
[null,null,null,null,"No hubo incremento de las actividades administrativas-operativas …"]
[null,null,null,null,null,null,null,null,null,null,null,"Temas por atender",null,null,null,"¿Cuenta con el apoyo de aliados estrategicos de su localidad?"]
[null,"720. QUÉ INFORMACIÓN LE GUSTARÍA ENCONTRAR EN EL PORTAL WEB PARA "]
[null,null,"  DIRECTIVO DE I.E. DEL MINEDU?",null,null,null,null,null,null,null,null,null,null,null,null,"Sí - No","Mencione al principal aliado en cada caso"]
[]
[null,null,"  (Marque con una “X”, una o más opciones)",null,null,null,null,null,null,null,null,"Gestión Integral del riesgo de emergencias y desastres",null,null,null,null,"",{"$f":"COUNTIF(P240,\"SI\")+COUNTIF(P240,\"NO\")","v":0}]
[null,null,null,null,"Lecturas, infografías y materiales diversos sobre las funciones como …",null,null,null,null,null,null,"Adaptación al cambio climático",null,null,null,null,"",{"$f":"COUNTIF(P241,\"SI\")+COUNTIF(P241,\"NO\")","v":0}]
[null,null,null,null,"Videos tutoriales sobre las labores como directivos",null,null,null,null,null,null,"Seguridad y Defensa Nacional",null,null,null,null,"",{"$f":"COUNTIF(P242,\"SI\")+COUNTIF(P242,\"NO\")","v":0}]
[null,null,null,null,"Material diverso sobre habilidades blandas necesarias para el cargo",null,null,null,null,null,null,null,null,null,null,{"$f":"COUNTIF(P240:P242,\"SI\")+COUNTIF(P240:P242,\"NO\")","v":0}]
[null,null,null,null,"Buenas prácticas para la gestión directiva "]
[null,null,null,null,"Información sobre las normativas sobre la gestión escolar"]
[null,null,null,null,"Otros"]

{"sheet":"C800","index":9,"n_rows":181,"n_cols":19,"rows_kept":181,"cut":false,"hidden":false,"merged":[[1,4,1,16],[2,4,2,16],[123,10,123,14],[58,18,59,18],[123,15,123,17],[116,2,116,17],[52,11,59,11],[110,4,110,7],[81,11,81,17],[58,4,58,7],[122,2,122,6],[123,2,123,6],[122,7,122,9],[56,18,57,18],[123,7,123,9],[47,18,48,18],[33,12,33,17],[49,11,51,11],[34,11,40,11],[41,11,48,11],[45,18,46,18],[36,7,36,9],[39,18,40,18],[37,18,38,18],[35,18,36,18],[43,18,44,18],[0,18,2,18],[124,2,124,6],[121,3,121,5],[121,7,121,9],[41,18,42,18],[52,18,53,18],[49,18,50,18],[124,7,124,9],[121,10,121,14],[122,10,122,14],[124,15,124,17],[121,15,121,17],[122,15,122,17],[54,18,55,18],[124,10,124,14],[95,4,95,7]]}
[null,null,null,null,null,null,null,null,null,null,null,null,null,null,null,null,null,null,"3AP"]
[null,null,null,null,"CENSO EDUCATIVO 2022"]
["Si",null,null,null,"MATRÍCULA, DOCENTES Y MATERIALES EDUCATIVOS"]
["No"]
[]
[]
[null,"800. APRENDO EN CASA - MULTICANALES"]
[]
[null,"801. INDIQUE CUÁLES SON LOS MEDIOS DE COMUNICACIÓN O MULTICANALES POR LOS QUE LOS ESTUDIANTES DE ESTE SERVICIO/NIVEL EDUCATIVO,"]
[null,null,"PARTICIPAN DE LA ESTRATEGIA “APRENDO EN CASA” - AeC?"]
[null,null,null,null,null,null,null,null,null,null,"¿QUE ESTACIÓN DE RADIO USA PARA ESCUCHAR EL CONTENIDO DE AeC?"]
[null,{"$f":"COUNTIF(C12:C18,\"X\")","v":0},null,"Radio (propia o familiar)",null,null,null,null,null,null,null,"Radio Nacional del Perú"]
[null,null,null,"Radio (autoparlantes o parlantes comunitarios)",null,null,null,null,{"$f":"CONCATENATE(C12,C13)","v":""},null,null,"Radio Regional que emite el programa"]
[null,null,null,"Televisión",null,null,null,null,null,null,null,"Radio local"]
[null,null,null,"Plataforma Web"]
[null,null,null,"WhatsApp",null,null,null,null,null,null,"LAS ACTIVIDADES PROPUESTAS EN LA WEB, ¿SON DESARROLLADAS POR LOS"]
[null,null,null,"Megáfono",null,null,null,null,null,null,"ESTUDIANTES DE LA IE?"]
[null,null,null,"Ninguno",null,"Pase a la pregunta 811.",null,null,null,null,null," Sí  ",null,null,null,"No  "]
[]
[null,"802. SOLO SI MARCO MAS DE UNA ALTERNATIVA EN LA PREGUNTA 801, INDIQUE",null,null,null,null,null,null,null,null,"806. DURANTE EL AÑO 2021, ESTE SERVICIO/NIVEL EDUCATIVO ¿COORDINADO O"]
[null,null,"¿CUÁL ES LA PLATAFORMA DE MULTICANALES DE MAYOR USO POR PARTE",null,null,null,null,null,null,null," ARTICULADO ALGUNA ACCIÓN CON EL GOBIERNO LOCAL (DISTRITAL O PROVINCIAL)"]
[null,null,"DE LOS ESTUDIANTES PARA ACCEDER A LA ESTRATEGIA APRENDO EN CASA?",null,null,null,null,null,null,null," PARA INCREMENTAR EL ACCESO A LA ESTRATEGIA APRENDO EN CASA?"]
[null,null,"(Marque con una “X”, una opción)"]
[null,{"$f":"IF(C12<>\"\",C12,\"\")","v":""},null,"Radio (propia o familiar)",null,null,null,null,null,null,null," Sí  ",null,null,null,"No  ",null,"Pase a la pregunta 808."]
[null,"",null,"Radio (autoparlantes o parlantes comunitarios)"]
[null,"",null,"Televisión"]
[null,"",null,"Plataforma Web",null,null,null,null,null,null,null,null,null,"Con Municipalidad Distrital"]
[null,"",null,"WhatsApp",null,null,null,null,null,null,null,null,null,"Con Municipalidad Provincial"]
[null,"",null,"Megáfono",null,null,null,null,null,null,null,null,null,"Con ambas"]
[]
[null,null,null,null,null,null,null,null,null,null,"807. FRECUENCIA DE LAS ACCIONES DE AYUDA A LA ESTRATEGIA APRENDO"]
[null,"803. ¿EN QUÉ LENGUA ACCEDEN MAYORITARIAMENTE LOS ESTUDIANTES DE ESTE",null,null,null,null,null,null,null,null,null,"EN CASA, POR PARTE DEL GOBIERNO LOCAL"]
[null,null,"SERVICIO/NIVEL EDUCATIVO A LA MODALIDAD DE “APRENDO EN CASA”?",null,null,null,null,null,null,null,null,"(Marque con una “X”, una opción)"]
[null,null,null,null,null,null,null,null,null,null,{"$f":"SUM(K35:K60)","v":0},"MEDIO","ACCIÓN",null,null,null,null,null,"FRECUENCIA"]
[null,null,null,"Castellano",null,null,null,null,null,null,{"$f":"IF(S35<>\"\",1,0)","v":0},"Radio","01","Contratación y convenios con emisoras radiales."]
[null,null,null,"Lengua Originaria",null,null,null,"INDIQUE LA LENGUA ORIGINARIA",null,null,{"$f":"IF(S36<>\"\",1,0)","v":0},null,"02","Uso de radio municipal para retransmitir"]
[null,null,null,"Ambas lenguas",null,null,{"$f":"CONCATENATE(C36,C37)","v":""},null,null,null,null,null,null,"la estrategia AeC."]
[null,null,null,null,null,null,null,null,null,null,{"$f":"IF(S38<>\"\",1,0)","v":0},null,"03","Uso de altoparlantes para difusión de"]
[null,null,null,null,null,null,null,null,null,null,null,null,null,"la estrategia Aec."]
[null,"804. SEÑOR(A) DIRECTOR(A), ¿SE ENCUENTRA USTED SATISFECHO CON EL CONTENIDO",null,null,null,null,null,null,null,null,{"$f":"IF(S40<>\"\",1,0)","v":0},null,"04","Instalación y repotenciación de antenas "]
[null,null,"DE “APRENDO EN CASA”?, YA SEA EN CASTELLANO O EN LENGUA ORIGINARIA",null,null,null,null,null,null,null,null,null,null,"equipos de radio."]
[null,null,null,null,null,null,null,null,null,null,{"$f":"IF(S42<>\"\",1,0)","v":0},"TV y Cable","05","Instalación, repotenciación, reparación o"]
[null,null,"En castellano",null,null,null,"En lengua originaria",null,null,null,null,null,null,"reactivación de antenas y equipos de TV."]
[null,null,null,"Satisfecho",null,null,null,"Satisfecho",null,null,{"$f":"IF(S44<>\"\",1,0)","v":0},null,"06","Uso de antena repetidora y TV municipal"]
[null,null,null,"Poco satisfecho",null,null,null,"Poco satisfecho",null,null,null,null,null,"para retransmitir la estrategia AeC."]
[null,null,null,"Insatisfecho",null,null,null,"Insatisfecho",null,null,{"$f":"IF(S46<>\"\",1,0)","v":0},null,"07","Alquiler e instalación de antenas y equipos"]
[null,null,null,"No aplica",null,null,null,"No aplica",null,null,null,null,null,"de cable (DIRECTV)."]
[null,null,null,null,null,null,null,null,null,null,{"$f":"IF(S48<>\"\",1,0)","v":0},null,"08","Trámite para licencias de funcionamiento"]
[null,null,null,null,null,null,null,null,null,null,null,null,null,"y antenas"]
[null,"805.  DE LAS SIGUIENTES CARACTERÍSTICAS ¿CUÁL O CUÁLES CONSIDERA QUE",null,null,null,null,null,null,null,null,{"$f":"IF(S50<>\"\",1,0)","v":0},"Internet","09","Instalación y ampliación del servicio de"]
[null,null," SON LAS CARACTERÍSTICAS QUE DESCRIBEN MEJOR LAS VENTAJAS DE LA",null,null,null,null,null,null,null,null,null,null,"internet satelital."]
[null,null," PLATAFORMA “APRENDO EN CASA”?",null,null,null,null,null,null,null,{"$f":"IF(S52<>\"\",1,0)","v":0},null,"10","Wifi gratuito en espacios públicos."]
[null,null,null,null,null,null,null,"1: Siempre",null,null,{"$f":"IF(S53<>\"\",1,0)","v":0},"Otros","11","Elaboración y difusión de recursos para"]
[null,null,null,"Es amigable",null,null,null,"2: Casi Siempre",null,null,null,null,null,"promocionar la estrategia AeC"]
[null,null,null,"Es rápido",null,null,null,"3: A Veces",null,null,{"$f":"IF(S55<>\"\",1,0)","v":0},null,"12","Fotocopiado, impresión y distribución de"]
[null,null,null,"Esta bien organizado",null,null,null,"4: Casi Nunca",null,null,null,null,null,"material educativo"]
[null,null,null,"Tiene buen contenido",null,null,null,"5: Nunca",null,null,{"$f":"IF(S57<>\"\",1,0)","v":0},null,"13","Trámite para instalar nuevas antenas y ampliar"]
[null,null,null,"Ninguna de las anteriores","",null,null,null,null,null,null,null,null,"cobertura de las existentes (Radio, Tv y celular)"]
[null,null,null,"Otro",null,null,null,null,null,null,{"$f":"IF(S59<>\"\",1,0)","v":0},null,"14","Diálogo con actores públicos y privados para"]
[null,null,null,null,null,null,null,null,null,null,null,null,null,"ampliar la cobertura y difundir la estrategia AeC"]
[null,null,null,null,null,null,null,null,null,null,null,null,null,null,null,null,null,null,{"$f":"COUNTIF(S35:S60,\"5: Nunca\")","v":0}]
[]
[null,"808. LA WEB DE APRENDO EN CASA CONTIENE EXPERIENCIAS DE APRENDIZAJE PARA",null,null,null,null,null,null,null,null,"812. EN UN ESCENARIO DE EDUCACIÓN SEMIPRESENCIAL O REMOTA ¿CUÁL ES EL MEDIO"]
[null,null,"EL ÁREA DE ARTE Y CULTURA ¿CUÁL FUE EL USO QUE LE DIO A DICHOS ",null,null,null,null,null,null,null,null,"DE COMUNICACIÓN PERTINENTE, QUE SEGÚN LAS CONDICIONES DE LA ZONA,"]
[null,null,"RECURSOS?",null,null,null,null,null,null,null,null,"PERMITEN LA COMUNICACIÓN Y APRENDIZAJE DE LOS ESTUDIANTES?."]
[null,null,"(Marque con una \"X\" , la opción que es más pertinente a su experiencia)",null,null,null,null,null,null,null,null,null,"(Marque con una \"X\" una o más opciones)"]
[null,null,null,"La usé sin modificarlas porque era lo que necesitaba",null,null,null,null,null,null,null,null,null,"Llamadas telefónicas (celular)"]
[null,null,null,"Decidí adaptarlas para que respondan mejor a Las necesidades de mis …",null,null,null,null,null,null,null,null,null,"Whatsapp (audios o vídeos)"]
[null,null,null,"Las utilicé como un material de consulta o referencia para elaborar mis …",null,null,null,null,null,null,null,null,null,"Facebook - Messenger"]
[null,null,null,"No Las usé porque No se adaptaban a lo que necesitaba",null,null,null,null,null,null,null,null,null,"Videoconferencias (Meet, Zoom, Skype, etc)"]
[null,null,null,"No Las usé porque era difícil encontrarlas en la web o No Las encontré …",null,null,null,null,null,null,null,null,null,"Correo electrónico"]
[null,null,null,null,null,null,null,null,null,null,null,null,null,"Visitas domiciliarias"]
[null,"809. LA MAYORÍA DE LOS DOCENTES DE ESTE SERVICIO/NIVEL EDUCATIVO, ¿REALIZAN"]
[null,null,"LA RETROALIMENTACIÓN A LOS ESTUDIANTES?",null,null,null,null,null,null,null,"813. ¿LOS ESTUDIANTES DE ESTE SERVICIO/NIVEL EDUCATIVO HAN"]
[null,null,null,null,null,null,null,null,null,null,null,"RECIBIDO TABLET?"]
[null,null,null," Sí  ",null,"No  "]
[null,null,null,null,null,null,null,null,null,null,null," Sí  ",null,null,null,"No  ","","Finalice esta sección"]
[null,null,null,"(Marque con una \"X\" , una opción)"]
[null,null,null,"Elemental",null,null,null,null,null,null,"814. CANTIDAD DE ESTUDIANTES DE ESTE SERVICIO/NIVEL EDUCATIVO QUE HAN"]
[null,null,null,"Descriptiva",null,null,null,null,null,null,null,"RECIBIDO TABLET MINEDU OPERATIVA"]
[null,null,null,"Reflexiva por descubrimiento"]
[null,null,null,null,null,null,null,null,null,null,null,"Grados de estudio"]
[null,null,null,null,null,null,null,null,null,null,null,"1º","2º","3º","4º","5º","6º","TOTAL"]
[null,null,null,null,null,null,null,null,null,null,null,null,null,null,null,null,null,{"$f":"SUM(L84:Q84)","v":0}]
[null,"810. LA MAYORIA DE LOS DOCENTES DE ESTE SERVICIO/NIVEL EDUCATIVO, ¿HAN"]
[null,null,"ESTABLECIDO EL MEDIO DE COMUNICACIÓN, PARA LA COORDINACIÓN Y"]
[null,null,"ACOMPAÑAMIENTO DEL TRABAJO REMOTO CON LOS PPFF Y/O ESTUDIANTES?"]
[null,null,null,null,null,null,null,null,null,null,"815. RESPECTO AL APROVECHAMIENTO Y NIVEL DE UTILIDAD DE LOS CONTENIDOS"]
[null,null,null," Sí  ",null,"No  ",null,null,null,null,null,"Y TEMAS QUE SE ABORDAN EN LAS TABLETS, USTED CONSIDERA QUE ES:"]
[null,null,null,null,null,null,null,null,null,null,null,null,null,"(Marque con una \"X\" , una opción)"]
[null,null,null,"(Marque con una \"X\" , una o más opciones)",null,null,null,null,null,null,null,null,"","Excelente"]
[null,null,null,"WhatsApp",null,null,null,null,null,null,null,null,"","Suficiente"]
[null,null,null,"Facebook",null,null,null,null,null,null,null,null,"","Mejorable"]
[null,null,null,"Correo electrónico",null,null,null,null,null,null,null,null,null,"Deficiente"]
[null,null,null,"Llamada telefónica"]
[null,null,null,"Otros",null,null,null,null,null,null,"816. ¿QUÉ TAN ENTENDIBLES O DE FÁCIL COMPRENSIÓN PARA LOS ESTUDIANTES,"]
[null,null,null,null,null,null,null,null,null,null,null,"SON LOS CONTENIDOS Y HERRAMIENTAS DIGITALES PROPUESTAS EN LAS"]
[null,null,null,null,null,null,null,null,null,null,null," TABLETS?"]
[null,null,null,null,null,null,null,null,null,null,null,null,null,"(Marque con una \"X\" , una opción)"]
[null,"811. SI MARCÓ LA ALTERNATIVA “NINGUNO” EN LA PREGUNTA 801, RESPONDA:",null,null,null,null,null,null,null,null,null,null,"","Muy entendibles"]
[null,null,"¿CUÁLES SON LOS MOTIVOS POR LOS QUE LOS ESTUDIANTES DE ESTE SERVICIO/",null,null,null,null,null,null,null,null,null,"","Entendibles"]
[null,null,"NIVEL EDUCATIVO NO ACCEDEN A “APRENDO EN CASA”?",null,null,null,null,null,null,null,null,null,"","Poco entendibles"]
[null,null,"(Marque con una \"X\" una o más opciones",null,null,null,null,null,null,null,null,null,null,"Nada entendibles"]
[null,null,"","No sabe cómo acceder"]
[null,null,"","No tiene TV o la señal es mala",null,null,null,null,null,null,"817. CON LAS EXPERIENCIAS DE APRENDIZAJE PROPUESTAS EN LAS TABLET, ¿QUE"]
[null,null,"","No tiene Radio o la señal es mala",null,null,null,null,null,null,null,"TAN FLUIDA ES LA MANERA EN QUE SE PROMUEVE EL USO DE CONTENIDOS Y"]
[null,null,"","No tiene Internet o la señal es mala",null,null,null,null,null,null,null,"HERRAMIENTAS DIGITALES?"]
[null,null,"","Usar otros recursos educativos",null,null,null,null,null,null,null,null,null,"(Marque con una \"X\" , una opción)"]
[null,null,"","Se dedican a otras actividades productivas de la comunidad",null,null,null,null,null,null,null,null,"","Muy fluida"]
[null,null,"","No encuentra útiles los recursos de Aprendo en casa",null,null,null,null,null,null,null,null,"","Fluida"]
[null,null,"","Otro","",null,null,null,null,null,null,null,"","Poco fluida"]
[null,null,null,null,null,null,null,null,null,null,null,null,null,"Nada fluida"]
[]
[]
[null,"ANOTACIONES COMPLEMENTARIAS QUE CONSIDERE NECESARIO AGREGAR"]
[]
[]
[]
[]
[null,"DATOS DEL DIRECTOR(A) Y/O RESPONSABLE (S) DEL LLENADO DE LA CÉDULA"]
[]
[null,null,null,"NOMBRES Y APELLIDOS",null,null,null,"CARGO",null,null,"CORREO ELECTRÓNICO",null,null,null,null,"TELÉFONO"]
[]
[]
[]
[]
[]
[]
["DIRECTOR(A)"]
["SUB DIRECTOR(A)"]
["DOCENTE"]
["COORDINADOR(A)"]
["ASESOR"]
["ADMINISTRATIVO"]
["ASISTENTE"]
["AUXILIAR"]
["SECRETARIA(O)"]
["ESTADÍSTICO"]
["ESPECIALISTA"]
["BIBLIOTECARIO"]
["CARE"]
["COMANDANTE PNP"]
["CONTADOR"]
["DAIP"]
["DIGITADOR(A)"]
["GERENTE"]
["JEFE ACADÉMICO"]
["JEFE ADMINISTRATIVO"]
["JEFE DE ÁREA"]
["JEFE DE LABORATORIO"]
["JEFE DE PERSONAL"]
["JEFE DE SEDE"]
["JEFE DE UNIDAD"]
["OFICINISTA"]
["OPERADOR DE SISTEMAS"]
["PERSONAL DE SERVICIO"]
["PROGRAMADOR"]
["PROMOTOR(A)"]
["PSICOLOGO"]
["REGISTRADOR(A)"]
["OTROS"]
["SOPORTE TECNOLOGICO"]
["TÉCNICO ADMINISTRATIVO"]
["TESORERO(A)"]
["A1: INICIAL - Cuna "]
["A2: INICIAL - Jardín"]
["A3: INICIAL - Cuna Jardín"]
["A5: INICIAL No Escolarizado"]
["B0: EBR-Primaria"]
["F0: EBR-Secundaria"]
["D1: EBA-Ini e Int"]
["D2: EBA-Avanzado"]
["E0: EBE-PRITE"]
["E1: EBE-Inicial"]
["E2: EBE-Primaria"]
["K0: IESP"]
["P0: EESP"]
["T0: IEST"]
["S0: EEST"]
["M0: ESFA"]
["L0: ETP-CETPRO"]

{"sheet":"Enviar","index":10,"n_rows":9,"n_cols":3,"rows_kept":9,"cut":false,"hidden":false,"merged":[[0,0,0,3],[1,0,1,3]]}
["CENSO EDUCATIVO 2022"]
["MATRÍCULA, DOCENTES Y MATERIALES EDUCATIVOS"]
[]
[]
[null,"Paso 1:","Realice el ENVÍO con su clave EOL."]
[]
[null,"Paso 2:","Una vez realizado el ENVÍO,  Revise su constancia de envio."]
[]
[null,"  ADVERTENCIA","ASEGÚRESE DE REGISTRAR TODA LA INFORMACIÓN DEL NIVEL INFORMANTE"]